{"text_format":"1","workbook":"xlsx","n_sheets":2,"sheets":["הצעת דיווח מכירות","טבלת קטגוריות"],"not_rendered":{"charts":0,"images":0,"macros":0,"external_links":0,"defined_names":5,"comments":1,"pivot_tables":0},"unopened":[],"bounds":{"document_bytes":16777216,"sheet_cells":100000,"rows_first":2000,"rows_last":500,"rows_between":2000,"halvings":0,"cell_chars":16384,"cell_head_chars":4096},"cells_cut":0,"cells_raw":0,"read":"whole","date_system":"1900"}

{"sheet":"הצעת דיווח מכירות","index":0,"n_rows":211,"n_cols":8,"rows_kept":211,"cut":false,"hidden":false,"merged":[]}
["קוד מ.א.י","שם פריט","קטגורית חוק  לטיפול סביבתי בציוד חשמלי ואלקטרוני ובסוללות, התשע\"ב–2012 - תוספת ראשונה","תת קטגוריה","ציוד","כמות פריטים שנמכרה לתקופה (פרוט סוללות מובנות בנפרד)\n1/3/2014-31/12/2014",null,"משקל הפריטים שנמכרה לתקופה (בטון)\n(פרוט סוללות\nמובנות בנפרד)\n1/3/2014-31/12/2014"]
[1100,null,{"$f":"IF(ISERROR(VLOOKUP($A2,'טבלת קטגוריות'!$A$1:$E$261,2,0)),\" -\",VLOOKUP($A2,'טבלת קטגוריות'!$A$1:$E$261,2,0))","v":"(1) מכשירי חימום או קירור"},{"$f":"IF(ISERROR(VLOOKUP($A2,'טבלת קטגוריות'!$A$1:$E$261,3,0)),\" -\",VLOOKUP($A2,'טבלת קטגוריות'!$A$1:$E$261,3,0))","v":"מקררים או מקפיאים"},{"$f":"IF(ISERROR(VLOOKUP($A2,'טבלת קטגוריות'!$A$1:$E$261,5,0)),\" -\",VLOOKUP($A2,'טבלת קטגוריות'!$A$1:$E$261,5,0))","v":"מקררים או מקפיאים עד 200 ליטר"}]
[3137,null,{"$f":"IF(ISERROR(VLOOKUP($A3,'טבלת קטגוריות'!$A$1:$E$261,2,0)),\" -\",VLOOKUP($A3,'טבלת קטגוריות'!$A$1:$E$261,2,0))","v":"(3) מנורות"},{"$f":"IF(ISERROR(VLOOKUP($A3,'טבלת קטגוריות'!$A$1:$E$261,3,0)),\" -\",VLOOKUP($A3,'טבלת קטגוריות'!$A$1:$E$261,3,0))","v":"גופי תאורה"},{"$f":"IF(ISERROR(VLOOKUP($A3,'טבלת קטגוריות'!$A$1:$E$261,5,0)),\" -\",VLOOKUP($A3,'טבלת קטגוריות'!$A$1:$E$261,5,0))","v":"פנס הצפה לד לתאורת גינה וחוץ מעל 50 סמ"}]
[3102,null,{"$f":"IF(ISERROR(VLOOKUP($A4,'טבלת קטגוריות'!$A$1:$E$261,2,0)),\" -\",VLOOKUP($A4,'טבלת קטגוריות'!$A$1:$E$261,2,0))","v":"(3) מנורות"},{"$f":"IF(ISERROR(VLOOKUP($A4,'טבלת קטגוריות'!$A$1:$E$261,3,0)),\" -\",VLOOKUP($A4,'טבלת קטגוריות'!$A$1:$E$261,3,0))","v":"נורות"},{"$f":"IF(ISERROR(VLOOKUP($A4,'טבלת קטגוריות'!$A$1:$E$261,5,0)),\" -\",VLOOKUP($A4,'טבלת קטגוריות'!$A$1:$E$261,5,0))","v":"מנורות LED."}]
[4001,null,{"$f":"IF(ISERROR(VLOOKUP($A5,'טבלת קטגוריות'!$A$1:$E$261,2,0)),\" -\",VLOOKUP($A5,'טבלת קטגוריות'!$A$1:$E$261,2,0))","v":"(4) מכשירי חשמל גדולים, שצלע אחת שלהם לפחות ארוכה מ-50 ס\"מ ושאינם כלולים בפרטים 1 עד 3"},{"$f":"IF(ISERROR(VLOOKUP($A5,'טבלת קטגוריות'!$A$1:$E$261,3,0)),\" -\",VLOOKUP($A5,'טבלת קטגוריות'!$A$1:$E$261,3,0))","v":"מכשירים המשמשים לבישול או לחימום מזון"},{"$f":"IF(ISERROR(VLOOKUP($A5,'טבלת קטגוריות'!$A$1:$E$261,5,0)),\" -\",VLOOKUP($A5,'טבלת קטגוריות'!$A$1:$E$261,5,0))","v":"אחר לפי טון"}]
[5102,null,{"$f":"IF(ISERROR(VLOOKUP($A6,'טבלת קטגוריות'!$A$1:$E$261,2,0)),\" -\",VLOOKUP($A6,'טבלת קטגוריות'!$A$1:$E$261,2,0))","v":"(5) מכשירי חשמל קטנים, שאף צלע שלהם לא ארוכה מ-50 ס\"מ ושאינם כלולים בפרטים 1 עד 3"},{"$f":"IF(ISERROR(VLOOKUP($A6,'טבלת קטגוריות'!$A$1:$E$261,3,0)),\" -\",VLOOKUP($A6,'טבלת קטגוריות'!$A$1:$E$261,3,0))","v":"מכשירים קטנים המשמשים לבישול ולעיבוד אחר של מזון, כגון"},{"$f":"IF(ISERROR(VLOOKUP($A6,'טבלת קטגוריות'!$A$1:$E$261,5,0)),\" -\",VLOOKUP($A6,'טבלת קטגוריות'!$A$1:$E$261,5,0))","v":"מתקן מים"}]
[6002,null,{"$f":"IF(ISERROR(VLOOKUP($A7,'טבלת קטגוריות'!$A$1:$E$261,2,0)),\" -\",VLOOKUP($A7,'טבלת קטגוריות'!$A$1:$E$261,2,0))","v":"(6) ציוד תקשורת וטכנולוגיית מידע (IT) קטן, שאף צלע שלו לא ארוכה מ-50 ס\"מ"},{"$f":"IF(ISERROR(VLOOKUP($A7,'טבלת קטגוריות'!$A$1:$E$261,3,0)),\" -\",VLOOKUP($A7,'טבלת קטגוריות'!$A$1:$E$261,3,0))","v":"ציוד משרדי"},{"$f":"IF(ISERROR(VLOOKUP($A7,'טבלת קטגוריות'!$A$1:$E$261,5,0)),\" -\",VLOOKUP($A7,'טבלת קטגוריות'!$A$1:$E$261,5,0))","v":"ציוד משרדי – כגון: מדפסות ,סורקים , מכשירי כריכה ולמינציה,אחר"}]
[7004,null,{"$f":"IF(ISERROR(VLOOKUP($A8,'טבלת קטגוריות'!$A$1:$E$261,2,0)),\" -\",VLOOKUP($A8,'טבלת קטגוריות'!$A$1:$E$261,2,0))","v":"סוללות אחר"},{"$f":"IF(ISERROR(VLOOKUP($A8,'טבלת קטגוריות'!$A$1:$E$261,3,0)),\" -\",VLOOKUP($A8,'טבלת קטגוריות'!$A$1:$E$261,3,0))","v":0},{"$f":"IF(ISERROR(VLOOKUP($A8,'טבלת קטגוריות'!$A$1:$E$261,5,0)),\" -\",VLOOKUP($A8,'טבלת קטגוריות'!$A$1:$E$261,5,0))","v":0}]
[null,null,{"$f":"IF(ISERROR(VLOOKUP($A9,'טבלת קטגוריות'!$A$1:$E$261,2,0)),\" -\",VLOOKUP($A9,'טבלת קטגוריות'!$A$1:$E$261,2,0))","v":" -"},{"$f":"IF(ISERROR(VLOOKUP($A9,'טבלת קטגוריות'!$A$1:$E$261,3,0)),\" -\",VLOOKUP($A9,'טבלת קטגוריות'!$A$1:$E$261,3,0))","v":" -"},{"$f":"IF(ISERROR(VLOOKUP($A9,'טבלת קטגוריות'!$A$1:$E$261,5,0)),\" -\",VLOOKUP($A9,'טבלת קטגוריות'!$A$1:$E$261,5,0))","v":" -"}]
[null,null,{"$f":"IF(ISERROR(VLOOKUP($A10,'טבלת קטגוריות'!$A$1:$E$261,2,0)),\" -\",VLOOKUP($A10,'טבלת קטגוריות'!$A$1:$E$261,2,0))","v":" -"},{"$f":"IF(ISERROR(VLOOKUP($A10,'טבלת קטגוריות'!$A$1:$E$261,3,0)),\" -\",VLOOKUP($A10,'טבלת קטגוריות'!$A$1:$E$261,3,0))","v":" -"},{"$f":"IF(ISERROR(VLOOKUP($A10,'טבלת קטגוריות'!$A$1:$E$261,5,0)),\" -\",VLOOKUP($A10,'טבלת קטגוריות'!$A$1:$E$261,5,0))","v":" -"}]
[null,null,{"$f":"IF(ISERROR(VLOOKUP($A11,'טבלת קטגוריות'!$A$1:$E$261,2,0)),\" -\",VLOOKUP($A11,'טבלת קטגוריות'!$A$1:$E$261,2,0))","v":" -"},{"$f":"IF(ISERROR(VLOOKUP($A11,'טבלת קטגוריות'!$A$1:$E$261,3,0)),\" -\",VLOOKUP($A11,'טבלת קטגוריות'!$A$1:$E$261,3,0))","v":" -"},{"$f":"IF(ISERROR(VLOOKUP($A11,'טבלת קטגוריות'!$A$1:$E$261,5,0)),\" -\",VLOOKUP($A11,'טבלת קטגוריות'!$A$1:$E$261,5,0))","v":" -"}]
[null,null,{"$f":"IF(ISERROR(VLOOKUP($A12,'טבלת קטגוריות'!$A$1:$E$261,2,0)),\" -\",VLOOKUP($A12,'טבלת קטגוריות'!$A$1:$E$261,2,0))","v":" -"},{"$f":"IF(ISERROR(VLOOKUP($A12,'טבלת קטגוריות'!$A$1:$E$261,3,0)),\" -\",VLOOKUP($A12,'טבלת קטגוריות'!$A$1:$E$261,3,0))","v":" -"},{"$f":"IF(ISERROR(VLOOKUP($A12,'טבלת קטגוריות'!$A$1:$E$261,5,0)),\" -\",VLOOKUP($A12,'טבלת קטגוריות'!$A$1:$E$261,5,0))","v":" -"}]
[null,null,{"$f":"IF(ISERROR(VLOOKUP($A13,'טבלת קטגוריות'!$A$1:$E$261,2,0)),\" -\",VLOOKUP($A13,'טבלת קטגוריות'!$A$1:$E$261,2,0))","v":" -"},{"$f":"IF(ISERROR(VLOOKUP($A13,'טבלת קטגוריות'!$A$1:$E$261,3,0)),\" -\",VLOOKUP($A13,'טבלת קטגוריות'!$A$1:$E$261,3,0))","v":" -"},{"$f":"IF(ISERROR(VLOOKUP($A13,'טבלת קטגוריות'!$A$1:$E$261,5,0)),\" -\",VLOOKUP($A13,'טבלת קטגוריות'!$A$1:$E$261,5,0))","v":" -"}]
[null,null,{"$f":"IF(ISERROR(VLOOKUP($A14,'טבלת קטגוריות'!$A$1:$E$261,2,0)),\" -\",VLOOKUP($A14,'טבלת קטגוריות'!$A$1:$E$261,2,0))","v":" -"},{"$f":"IF(ISERROR(VLOOKUP($A14,'טבלת קטגוריות'!$A$1:$E$261,3,0)),\" -\",VLOOKUP($A14,'טבלת קטגוריות'!$A$1:$E$261,3,0))","v":" -"},{"$f":"IF(ISERROR(VLOOKUP($A14,'טבלת קטגוריות'!$A$1:$E$261,5,0)),\" -\",VLOOKUP($A14,'טבלת קטגוריות'!$A$1:$E$261,5,0))","v":" -"}]
[null,null,{"$f":"IF(ISERROR(VLOOKUP($A15,'טבלת קטגוריות'!$A$1:$E$261,2,0)),\" -\",VLOOKUP($A15,'טבלת קטגוריות'!$A$1:$E$261,2,0))","v":" -"},{"$f":"IF(ISERROR(VLOOKUP($A15,'טבלת קטגוריות'!$A$1:$E$261,3,0)),\" -\",VLOOKUP($A15,'טבלת קטגוריות'!$A$1:$E$261,3,0))","v":" -"},{"$f":"IF(ISERROR(VLOOKUP($A15,'טבלת קטגוריות'!$A$1:$E$261,5,0)),\" -\",VLOOKUP($A15,'טבלת קטגוריות'!$A$1:$E$261,5,0))","v":" -"}]
[null,null,{"$f":"IF(ISERROR(VLOOKUP($A16,'טבלת קטגוריות'!$A$1:$E$261,2,0)),\" -\",VLOOKUP($A16,'טבלת קטגוריות'!$A$1:$E$261,2,0))","v":" -"},{"$f":"IF(ISERROR(VLOOKUP($A16,'טבלת קטגוריות'!$A$1:$E$261,3,0)),\" -\",VLOOKUP($A16,'טבלת קטגוריות'!$A$1:$E$261,3,0))","v":" -"},{"$f":"IF(ISERROR(VLOOKUP($A16,'טבלת קטגוריות'!$A$1:$E$261,5,0)),\" -\",VLOOKUP($A16,'טבלת קטגוריות'!$A$1:$E$261,5,0))","v":" -"}]
[null,null,{"$f":"IF(ISERROR(VLOOKUP($A17,'טבלת קטגוריות'!$A$1:$E$261,2,0)),\" -\",VLOOKUP($A17,'טבלת קטגוריות'!$A$1:$E$261,2,0))","v":" -"},{"$f":"IF(ISERROR(VLOOKUP($A17,'טבלת קטגוריות'!$A$1:$E$261,3,0)),\" -\",VLOOKUP($A17,'טבלת קטגוריות'!$A$1:$E$261,3,0))","v":" -"},{"$f":"IF(ISERROR(VLOOKUP($A17,'טבלת קטגוריות'!$A$1:$E$261,5,0)),\" -\",VLOOKUP($A17,'טבלת קטגוריות'!$A$1:$E$261,5,0))","v":" -"}]
[null,null,{"$f":"IF(ISERROR(VLOOKUP($A18,'טבלת קטגוריות'!$A$1:$E$261,2,0)),\" -\",VLOOKUP($A18,'טבלת קטגוריות'!$A$1:$E$261,2,0))","v":" -"},{"$f":"IF(ISERROR(VLOOKUP($A18,'טבלת קטגוריות'!$A$1:$E$261,3,0)),\" -\",VLOOKUP($A18,'טבלת קטגוריות'!$A$1:$E$261,3,0))","v":" -"},{"$f":"IF(ISERROR(VLOOKUP($A18,'טבלת קטגוריות'!$A$1:$E$261,5,0)),\" -\",VLOOKUP($A18,'טבלת קטגוריות'!$A$1:$E$261,5,0))","v":" -"}]
[null,null,{"$f":"IF(ISERROR(VLOOKUP($A19,'טבלת קטגוריות'!$A$1:$E$261,2,0)),\" -\",VLOOKUP($A19,'טבלת קטגוריות'!$A$1:$E$261,2,0))","v":" -"},{"$f":"IF(ISERROR(VLOOKUP($A19,'טבלת קטגוריות'!$A$1:$E$261,3,0)),\" -\",VLOOKUP($A19,'טבלת קטגוריות'!$A$1:$E$261,3,0))","v":" -"},{"$f":"IF(ISERROR(VLOOKUP($A19,'טבלת קטגוריות'!$A$1:$E$261,5,0)),\" -\",VLOOKUP($A19,'טבלת קטגוריות'!$A$1:$E$261,5,0))","v":" -"}]
[null,null,{"$f":"IF(ISERROR(VLOOKUP($A20,'טבלת קטגוריות'!$A$1:$E$261,2,0)),\" -\",VLOOKUP($A20,'טבלת קטגוריות'!$A$1:$E$261,2,0))","v":" -"},{"$f":"IF(ISERROR(VLOOKUP($A20,'טבלת קטגוריות'!$A$1:$E$261,3,0)),\" -\",VLOOKUP($A20,'טבלת קטגוריות'!$A$1:$E$261,3,0))","v":" -"},{"$f":"IF(ISERROR(VLOOKUP($A20,'טבלת קטגוריות'!$A$1:$E$261,5,0)),\" -\",VLOOKUP($A20,'טבלת קטגוריות'!$A$1:$E$261,5,0))","v":" -"}]
[null,null,{"$f":"IF(ISERROR(VLOOKUP($A21,'טבלת קטגוריות'!$A$1:$E$261,2,0)),\" -\",VLOOKUP($A21,'טבלת קטגוריות'!$A$1:$E$261,2,0))","v":" -"},{"$f":"IF(ISERROR(VLOOKUP($A21,'טבלת קטגוריות'!$A$1:$E$261,3,0)),\" -\",VLOOKUP($A21,'טבלת קטגוריות'!$A$1:$E$261,3,0))","v":" -"},{"$f":"IF(ISERROR(VLOOKUP($A21,'טבלת קטגוריות'!$A$1:$E$261,5,0)),\" -\",VLOOKUP($A21,'טבלת קטגוריות'!$A$1:$E$261,5,0))","v":" -"}]
[null,null,{"$f":"IF(ISERROR(VLOOKUP($A22,'טבלת קטגוריות'!$A$1:$E$261,2,0)),\" -\",VLOOKUP($A22,'טבלת קטגוריות'!$A$1:$E$261,2,0))","v":" -"},{"$f":"IF(ISERROR(VLOOKUP($A22,'טבלת קטגוריות'!$A$1:$E$261,3,0)),\" -\",VLOOKUP($A22,'טבלת קטגוריות'!$A$1:$E$261,3,0))","v":" -"},{"$f":"IF(ISERROR(VLOOKUP($A22,'טבלת קטגוריות'!$A$1:$E$261,5,0)),\" -\",VLOOKUP($A22,'טבלת קטגוריות'!$A$1:$E$261,5,0))","v":" -"}]
[null,null,{"$f":"IF(ISERROR(VLOOKUP($A23,'טבלת קטגוריות'!$A$1:$E$261,2,0)),\" -\",VLOOKUP($A23,'טבלת קטגוריות'!$A$1:$E$261,2,0))","v":" -"},{"$f":"IF(ISERROR(VLOOKUP($A23,'טבלת קטגוריות'!$A$1:$E$261,3,0)),\" -\",VLOOKUP($A23,'טבלת קטגוריות'!$A$1:$E$261,3,0))","v":" -"},{"$f":"IF(ISERROR(VLOOKUP($A23,'טבלת קטגוריות'!$A$1:$E$261,5,0)),\" -\",VLOOKUP($A23,'טבלת קטגוריות'!$A$1:$E$261,5,0))","v":" -"}]
[null,null,{"$f":"IF(ISERROR(VLOOKUP($A24,'טבלת קטגוריות'!$A$1:$E$261,2,0)),\" -\",VLOOKUP($A24,'טבלת קטגוריות'!$A$1:$E$261,2,0))","v":" -"},{"$f":"IF(ISERROR(VLOOKUP($A24,'טבלת קטגוריות'!$A$1:$E$261,3,0)),\" -\",VLOOKUP($A24,'טבלת קטגוריות'!$A$1:$E$261,3,0))","v":" -"},{"$f":"IF(ISERROR(VLOOKUP($A24,'טבלת קטגוריות'!$A$1:$E$261,5,0)),\" -\",VLOOKUP($A24,'טבלת קטגוריות'!$A$1:$E$261,5,0))","v":" -"}]
[null,null,{"$f":"IF(ISERROR(VLOOKUP($A25,'טבלת קטגוריות'!$A$1:$E$261,2,0)),\" -\",VLOOKUP($A25,'טבלת קטגוריות'!$A$1:$E$261,2,0))","v":" -"},{"$f":"IF(ISERROR(VLOOKUP($A25,'טבלת קטגוריות'!$A$1:$E$261,3,0)),\" -\",VLOOKUP($A25,'טבלת קטגוריות'!$A$1:$E$261,3,0))","v":" -"},{"$f":"IF(ISERROR(VLOOKUP($A25,'טבלת קטגוריות'!$A$1:$E$261,5,0)),\" -\",VLOOKUP($A25,'טבלת קטגוריות'!$A$1:$E$261,5,0))","v":" -"}]
[null,null,{"$f":"IF(ISERROR(VLOOKUP($A26,'טבלת קטגוריות'!$A$1:$E$261,2,0)),\" -\",VLOOKUP($A26,'טבלת קטגוריות'!$A$1:$E$261,2,0))","v":" -"},{"$f":"IF(ISERROR(VLOOKUP($A26,'טבלת קטגוריות'!$A$1:$E$261,3,0)),\" -\",VLOOKUP($A26,'טבלת קטגוריות'!$A$1:$E$261,3,0))","v":" -"},{"$f":"IF(ISERROR(VLOOKUP($A26,'טבלת קטגוריות'!$A$1:$E$261,5,0)),\" -\",VLOOKUP($A26,'טבלת קטגוריות'!$A$1:$E$261,5,0))","v":" -"}]
[null,null,{"$f":"IF(ISERROR(VLOOKUP($A27,'טבלת קטגוריות'!$A$1:$E$261,2,0)),\" -\",VLOOKUP($A27,'טבלת קטגוריות'!$A$1:$E$261,2,0))","v":" -"},{"$f":"IF(ISERROR(VLOOKUP($A27,'טבלת קטגוריות'!$A$1:$E$261,3,0)),\" -\",VLOOKUP($A27,'טבלת קטגוריות'!$A$1:$E$261,3,0))","v":" -"},{"$f":"IF(ISERROR(VLOOKUP($A27,'טבלת קטגוריות'!$A$1:$E$261,5,0)),\" -\",VLOOKUP($A27,'טבלת קטגוריות'!$A$1:$E$261,5,0))","v":" -"}]
[null,null,{"$f":"IF(ISERROR(VLOOKUP($A28,'טבלת קטגוריות'!$A$1:$E$261,2,0)),\" -\",VLOOKUP($A28,'טבלת קטגוריות'!$A$1:$E$261,2,0))","v":" -"},{"$f":"IF(ISERROR(VLOOKUP($A28,'טבלת קטגוריות'!$A$1:$E$261,3,0)),\" -\",VLOOKUP($A28,'טבלת קטגוריות'!$A$1:$E$261,3,0))","v":" -"},{"$f":"IF(ISERROR(VLOOKUP($A28,'טבלת קטגוריות'!$A$1:$E$261,5,0)),\" -\",VLOOKUP($A28,'טבלת קטגוריות'!$A$1:$E$261,5,0))","v":" -"}]
[null,null,{"$f":"IF(ISERROR(VLOOKUP($A29,'טבלת קטגוריות'!$A$1:$E$261,2,0)),\" -\",VLOOKUP($A29,'טבלת קטגוריות'!$A$1:$E$261,2,0))","v":" -"},{"$f":"IF(ISERROR(VLOOKUP($A29,'טבלת קטגוריות'!$A$1:$E$261,3,0)),\" -\",VLOOKUP($A29,'טבלת קטגוריות'!$A$1:$E$261,3,0))","v":" -"},{"$f":"IF(ISERROR(VLOOKUP($A29,'טבלת קטגוריות'!$A$1:$E$261,5,0)),\" -\",VLOOKUP($A29,'טבלת קטגוריות'!$A$1:$E$261,5,0))","v":" -"}]
[null,null,{"$f":"IF(ISERROR(VLOOKUP($A30,'טבלת קטגוריות'!$A$1:$E$261,2,0)),\" -\",VLOOKUP($A30,'טבלת קטגוריות'!$A$1:$E$261,2,0))","v":" -"},{"$f":"IF(ISERROR(VLOOKUP($A30,'טבלת קטגוריות'!$A$1:$E$261,3,0)),\" -\",VLOOKUP($A30,'טבלת קטגוריות'!$A$1:$E$261,3,0))","v":" -"},{"$f":"IF(ISERROR(VLOOKUP($A30,'טבלת קטגוריות'!$A$1:$E$261,5,0)),\" -\",VLOOKUP($A30,'טבלת קטגוריות'!$A$1:$E$261,5,0))","v":" -"}]
[null,null,{"$f":"IF(ISERROR(VLOOKUP($A31,'טבלת קטגוריות'!$A$1:$E$261,2,0)),\" -\",VLOOKUP($A31,'טבלת קטגוריות'!$A$1:$E$261,2,0))","v":" -"},{"$f":"IF(ISERROR(VLOOKUP($A31,'טבלת קטגוריות'!$A$1:$E$261,3,0)),\" -\",VLOOKUP($A31,'טבלת קטגוריות'!$A$1:$E$261,3,0))","v":" -"},{"$f":"IF(ISERROR(VLOOKUP($A31,'טבלת קטגוריות'!$A$1:$E$261,5,0)),\" -\",VLOOKUP($A31,'טבלת קטגוריות'!$A$1:$E$261,5,0))","v":" -"}]
[null,null,{"$f":"IF(ISERROR(VLOOKUP($A32,'טבלת קטגוריות'!$A$1:$E$261,2,0)),\" -\",VLOOKUP($A32,'טבלת קטגוריות'!$A$1:$E$261,2,0))","v":" -"},{"$f":"IF(ISERROR(VLOOKUP($A32,'טבלת קטגוריות'!$A$1:$E$261,3,0)),\" -\",VLOOKUP($A32,'טבלת קטגוריות'!$A$1:$E$261,3,0))","v":" -"},{"$f":"IF(ISERROR(VLOOKUP($A32,'טבלת קטגוריות'!$A$1:$E$261,5,0)),\" -\",VLOOKUP($A32,'טבלת קטגוריות'!$A$1:$E$261,5,0))","v":" -"}]
[null,null,{"$f":"IF(ISERROR(VLOOKUP($A33,'טבלת קטגוריות'!$A$1:$E$261,2,0)),\" -\",VLOOKUP($A33,'טבלת קטגוריות'!$A$1:$E$261,2,0))","v":" -"},{"$f":"IF(ISERROR(VLOOKUP($A33,'טבלת קטגוריות'!$A$1:$E$261,3,0)),\" -\",VLOOKUP($A33,'טבלת קטגוריות'!$A$1:$E$261,3,0))","v":" -"},{"$f":"IF(ISERROR(VLOOKUP($A33,'טבלת קטגוריות'!$A$1:$E$261,5,0)),\" -\",VLOOKUP($A33,'טבלת קטגוריות'!$A$1:$E$261,5,0))","v":" -"}]
[null,null,{"$f":"IF(ISERROR(VLOOKUP($A34,'טבלת קטגוריות'!$A$1:$E$261,2,0)),\" -\",VLOOKUP($A34,'טבלת קטגוריות'!$A$1:$E$261,2,0))","v":" -"},{"$f":"IF(ISERROR(VLOOKUP($A34,'טבלת קטגוריות'!$A$1:$E$261,3,0)),\" -\",VLOOKUP($A34,'טבלת קטגוריות'!$A$1:$E$261,3,0))","v":" -"},{"$f":"IF(ISERROR(VLOOKUP($A34,'טבלת קטגוריות'!$A$1:$E$261,5,0)),\" -\",VLOOKUP($A34,'טבלת קטגוריות'!$A$1:$E$261,5,0))","v":" -"}]
[null,null,{"$f":"IF(ISERROR(VLOOKUP($A35,'טבלת קטגוריות'!$A$1:$E$261,2,0)),\" -\",VLOOKUP($A35,'טבלת קטגוריות'!$A$1:$E$261,2,0))","v":" -"},{"$f":"IF(ISERROR(VLOOKUP($A35,'טבלת קטגוריות'!$A$1:$E$261,3,0)),\" -\",VLOOKUP($A35,'טבלת קטגוריות'!$A$1:$E$261,3,0))","v":" -"},{"$f":"IF(ISERROR(VLOOKUP($A35,'טבלת קטגוריות'!$A$1:$E$261,5,0)),\" -\",VLOOKUP($A35,'טבלת קטגוריות'!$A$1:$E$261,5,0))","v":" -"}]
[null,null,{"$f":"IF(ISERROR(VLOOKUP($A36,'טבלת קטגוריות'!$A$1:$E$261,2,0)),\" -\",VLOOKUP($A36,'טבלת קטגוריות'!$A$1:$E$261,2,0))","v":" -"},{"$f":"IF(ISERROR(VLOOKUP($A36,'טבלת קטגוריות'!$A$1:$E$261,3,0)),\" -\",VLOOKUP($A36,'טבלת קטגוריות'!$A$1:$E$261,3,0))","v":" -"},{"$f":"IF(ISERROR(VLOOKUP($A36,'טבלת קטגוריות'!$A$1:$E$261,5,0)),\" -\",VLOOKUP($A36,'טבלת קטגוריות'!$A$1:$E$261,5,0))","v":" -"}]
[null,null,{"$f":"IF(ISERROR(VLOOKUP($A37,'טבלת קטגוריות'!$A$1:$E$261,2,0)),\" -\",VLOOKUP($A37,'טבלת קטגוריות'!$A$1:$E$261,2,0))","v":" -"},{"$f":"IF(ISERROR(VLOOKUP($A37,'טבלת קטגוריות'!$A$1:$E$261,3,0)),\" -\",VLOOKUP($A37,'טבלת קטגוריות'!$A$1:$E$261,3,0))","v":" -"},{"$f":"IF(ISERROR(VLOOKUP($A37,'טבלת קטגוריות'!$A$1:$E$261,5,0)),\" -\",VLOOKUP($A37,'טבלת קטגוריות'!$A$1:$E$261,5,0))","v":" -"}]
[null,null,{"$f":"IF(ISERROR(VLOOKUP($A38,'טבלת קטגוריות'!$A$1:$E$261,2,0)),\" -\",VLOOKUP($A38,'טבלת קטגוריות'!$A$1:$E$261,2,0))","v":" -"},{"$f":"IF(ISERROR(VLOOKUP($A38,'טבלת קטגוריות'!$A$1:$E$261,3,0)),\" -\",VLOOKUP($A38,'טבלת קטגוריות'!$A$1:$E$261,3,0))","v":" -"},{"$f":"IF(ISERROR(VLOOKUP($A38,'טבלת קטגוריות'!$A$1:$E$261,5,0)),\" -\",VLOOKUP($A38,'טבלת קטגוריות'!$A$1:$E$261,5,0))","v":" -"}]
[null,null,{"$f":"IF(ISERROR(VLOOKUP($A39,'טבלת קטגוריות'!$A$1:$E$261,2,0)),\" -\",VLOOKUP($A39,'טבלת קטגוריות'!$A$1:$E$261,2,0))","v":" -"},{"$f":"IF(ISERROR(VLOOKUP($A39,'טבלת קטגוריות'!$A$1:$E$261,3,0)),\" -\",VLOOKUP($A39,'טבלת קטגוריות'!$A$1:$E$261,3,0))","v":" -"},{"$f":"IF(ISERROR(VLOOKUP($A39,'טבלת קטגוריות'!$A$1:$E$261,5,0)),\" -\",VLOOKUP($A39,'טבלת קטגוריות'!$A$1:$E$261,5,0))","v":" -"}]
[null,null,{"$f":"IF(ISERROR(VLOOKUP($A40,'טבלת קטגוריות'!$A$1:$E$261,2,0)),\" -\",VLOOKUP($A40,'טבלת קטגוריות'!$A$1:$E$261,2,0))","v":" -"},{"$f":"IF(ISERROR(VLOOKUP($A40,'טבלת קטגוריות'!$A$1:$E$261,3,0)),\" -\",VLOOKUP($A40,'טבלת קטגוריות'!$A$1:$E$261,3,0))","v":" -"},{"$f":"IF(ISERROR(VLOOKUP($A40,'טבלת קטגוריות'!$A$1:$E$261,5,0)),\" -\",VLOOKUP($A40,'טבלת קטגוריות'!$A$1:$E$261,5,0))","v":" -"}]
[null,null,{"$f":"IF(ISERROR(VLOOKUP($A41,'טבלת קטגוריות'!$A$1:$E$261,2,0)),\" -\",VLOOKUP($A41,'טבלת קטגוריות'!$A$1:$E$261,2,0))","v":" -"},{"$f":"IF(ISERROR(VLOOKUP($A41,'טבלת קטגוריות'!$A$1:$E$261,3,0)),\" -\",VLOOKUP($A41,'טבלת קטגוריות'!$A$1:$E$261,3,0))","v":" -"},{"$f":"IF(ISERROR(VLOOKUP($A41,'טבלת קטגוריות'!$A$1:$E$261,5,0)),\" -\",VLOOKUP($A41,'טבלת קטגוריות'!$A$1:$E$261,5,0))","v":" -"}]
[null,null,{"$f":"IF(ISERROR(VLOOKUP($A42,'טבלת קטגוריות'!$A$1:$E$261,2,0)),\" -\",VLOOKUP($A42,'טבלת קטגוריות'!$A$1:$E$261,2,0))","v":" -"},{"$f":"IF(ISERROR(VLOOKUP($A42,'טבלת קטגוריות'!$A$1:$E$261,3,0)),\" -\",VLOOKUP($A42,'טבלת קטגוריות'!$A$1:$E$261,3,0))","v":" -"},{"$f":"IF(ISERROR(VLOOKUP($A42,'טבלת קטגוריות'!$A$1:$E$261,5,0)),\" -\",VLOOKUP($A42,'טבלת קטגוריות'!$A$1:$E$261,5,0))","v":" -"}]
[null,null,{"$f":"IF(ISERROR(VLOOKUP($A43,'טבלת קטגוריות'!$A$1:$E$261,2,0)),\" -\",VLOOKUP($A43,'טבלת קטגוריות'!$A$1:$E$261,2,0))","v":" -"},{"$f":"IF(ISERROR(VLOOKUP($A43,'טבלת קטגוריות'!$A$1:$E$261,3,0)),\" -\",VLOOKUP($A43,'טבלת קטגוריות'!$A$1:$E$261,3,0))","v":" -"},{"$f":"IF(ISERROR(VLOOKUP($A43,'טבלת קטגוריות'!$A$1:$E$261,5,0)),\" -\",VLOOKUP($A43,'טבלת קטגוריות'!$A$1:$E$261,5,0))","v":" -"}]
[null,null,{"$f":"IF(ISERROR(VLOOKUP($A44,'טבלת קטגוריות'!$A$1:$E$261,2,0)),\" -\",VLOOKUP($A44,'טבלת קטגוריות'!$A$1:$E$261,2,0))","v":" -"},{"$f":"IF(ISERROR(VLOOKUP($A44,'טבלת קטגוריות'!$A$1:$E$261,3,0)),\" -\",VLOOKUP($A44,'טבלת קטגוריות'!$A$1:$E$261,3,0))","v":" -"},{"$f":"IF(ISERROR(VLOOKUP($A44,'טבלת קטגוריות'!$A$1:$E$261,5,0)),\" -\",VLOOKUP($A44,'טבלת קטגוריות'!$A$1:$E$261,5,0))","v":" -"}]
[null,null,{"$f":"IF(ISERROR(VLOOKUP($A45,'טבלת קטגוריות'!$A$1:$E$261,2,0)),\" -\",VLOOKUP($A45,'טבלת קטגוריות'!$A$1:$E$261,2,0))","v":" -"},{"$f":"IF(ISERROR(VLOOKUP($A45,'טבלת קטגוריות'!$A$1:$E$261,3,0)),\" -\",VLOOKUP($A45,'טבלת קטגוריות'!$A$1:$E$261,3,0))","v":" -"},{"$f":"IF(ISERROR(VLOOKUP($A45,'טבלת קטגוריות'!$A$1:$E$261,5,0)),\" -\",VLOOKUP($A45,'טבלת קטגוריות'!$A$1:$E$261,5,0))","v":" -"}]
[null,null,{"$f":"IF(ISERROR(VLOOKUP($A46,'טבלת קטגוריות'!$A$1:$E$261,2,0)),\" -\",VLOOKUP($A46,'טבלת קטגוריות'!$A$1:$E$261,2,0))","v":" -"},{"$f":"IF(ISERROR(VLOOKUP($A46,'טבלת קטגוריות'!$A$1:$E$261,3,0)),\" -\",VLOOKUP($A46,'טבלת קטגוריות'!$A$1:$E$261,3,0))","v":" -"},{"$f":"IF(ISERROR(VLOOKUP($A46,'טבלת קטגוריות'!$A$1:$E$261,5,0)),\" -\",VLOOKUP($A46,'טבלת קטגוריות'!$A$1:$E$261,5,0))","v":" -"}]
[null,null,{"$f":"IF(ISERROR(VLOOKUP($A47,'טבלת קטגוריות'!$A$1:$E$261,2,0)),\" -\",VLOOKUP($A47,'טבלת קטגוריות'!$A$1:$E$261,2,0))","v":" -"},{"$f":"IF(ISERROR(VLOOKUP($A47,'טבלת קטגוריות'!$A$1:$E$261,3,0)),\" -\",VLOOKUP($A47,'טבלת קטגוריות'!$A$1:$E$261,3,0))","v":" -"},{"$f":"IF(ISERROR(VLOOKUP($A47,'טבלת קטגוריות'!$A$1:$E$261,5,0)),\" -\",VLOOKUP($A47,'טבלת קטגוריות'!$A$1:$E$261,5,0))","v":" -"}]
[null,null,{"$f":"IF(ISERROR(VLOOKUP($A48,'טבלת קטגוריות'!$A$1:$E$261,2,0)),\" -\",VLOOKUP($A48,'טבלת קטגוריות'!$A$1:$E$261,2,0))","v":" -"},{"$f":"IF(ISERROR(VLOOKUP($A48,'טבלת קטגוריות'!$A$1:$E$261,3,0)),\" -\",VLOOKUP($A48,'טבלת קטגוריות'!$A$1:$E$261,3,0))","v":" -"},{"$f":"IF(ISERROR(VLOOKUP($A48,'טבלת קטגוריות'!$A$1:$E$261,5,0)),\" -\",VLOOKUP($A48,'טבלת קטגוריות'!$A$1:$E$261,5,0))","v":" -"}]
[null,null,{"$f":"IF(ISERROR(VLOOKUP($A49,'טבלת קטגוריות'!$A$1:$E$261,2,0)),\" -\",VLOOKUP($A49,'טבלת קטגוריות'!$A$1:$E$261,2,0))","v":" -"},{"$f":"IF(ISERROR(VLOOKUP($A49,'טבלת קטגוריות'!$A$1:$E$261,3,0)),\" -\",VLOOKUP($A49,'טבלת קטגוריות'!$A$1:$E$261,3,0))","v":" -"},{"$f":"IF(ISERROR(VLOOKUP($A49,'טבלת קטגוריות'!$A$1:$E$261,5,0)),\" -\",VLOOKUP($A49,'טבלת קטגוריות'!$A$1:$E$261,5,0))","v":" -"}]
[null,null,{"$f":"IF(ISERROR(VLOOKUP($A50,'טבלת קטגוריות'!$A$1:$E$261,2,0)),\" -\",VLOOKUP($A50,'טבלת קטגוריות'!$A$1:$E$261,2,0))","v":" -"},{"$f":"IF(ISERROR(VLOOKUP($A50,'טבלת קטגוריות'!$A$1:$E$261,3,0)),\" -\",VLOOKUP($A50,'טבלת קטגוריות'!$A$1:$E$261,3,0))","v":" -"},{"$f":"IF(ISERROR(VLOOKUP($A50,'טבלת קטגוריות'!$A$1:$E$261,5,0)),\" -\",VLOOKUP($A50,'טבלת קטגוריות'!$A$1:$E$261,5,0))","v":" -"}]
[null,null,{"$f":"IF(ISERROR(VLOOKUP($A51,'טבלת קטגוריות'!$A$1:$E$261,2,0)),\" -\",VLOOKUP($A51,'טבלת קטגוריות'!$A$1:$E$261,2,0))","v":" -"},{"$f":"IF(ISERROR(VLOOKUP($A51,'טבלת קטגוריות'!$A$1:$E$261,3,0)),\" -\",VLOOKUP($A51,'טבלת קטגוריות'!$A$1:$E$261,3,0))","v":" -"},{"$f":"IF(ISERROR(VLOOKUP($A51,'טבלת קטגוריות'!$A$1:$E$261,5,0)),\" -\",VLOOKUP($A51,'טבלת קטגוריות'!$A$1:$E$261,5,0))","v":" -"}]
[null,null,{"$f":"IF(ISERROR(VLOOKUP($A52,'טבלת קטגוריות'!$A$1:$E$261,2,0)),\" -\",VLOOKUP($A52,'טבלת קטגוריות'!$A$1:$E$261,2,0))","v":" -"},{"$f":"IF(ISERROR(VLOOKUP($A52,'טבלת קטגוריות'!$A$1:$E$261,3,0)),\" -\",VLOOKUP($A52,'טבלת קטגוריות'!$A$1:$E$261,3,0))","v":" -"},{"$f":"IF(ISERROR(VLOOKUP($A52,'טבלת קטגוריות'!$A$1:$E$261,5,0)),\" -\",VLOOKUP($A52,'טבלת קטגוריות'!$A$1:$E$261,5,0))","v":" -"}]
[null,null,{"$f":"IF(ISERROR(VLOOKUP($A53,'טבלת קטגוריות'!$A$1:$E$261,2,0)),\" -\",VLOOKUP($A53,'טבלת קטגוריות'!$A$1:$E$261,2,0))","v":" -"},{"$f":"IF(ISERROR(VLOOKUP($A53,'טבלת קטגוריות'!$A$1:$E$261,3,0)),\" -\",VLOOKUP($A53,'טבלת קטגוריות'!$A$1:$E$261,3,0))","v":" -"},{"$f":"IF(ISERROR(VLOOKUP($A53,'טבלת קטגוריות'!$A$1:$E$261,5,0)),\" -\",VLOOKUP($A53,'טבלת קטגוריות'!$A$1:$E$261,5,0))","v":" -"}]
[null,null,{"$f":"IF(ISERROR(VLOOKUP($A54,'טבלת קטגוריות'!$A$1:$E$261,2,0)),\" -\",VLOOKUP($A54,'טבלת קטגוריות'!$A$1:$E$261,2,0))","v":" -"},{"$f":"IF(ISERROR(VLOOKUP($A54,'טבלת קטגוריות'!$A$1:$E$261,3,0)),\" -\",VLOOKUP($A54,'טבלת קטגוריות'!$A$1:$E$261,3,0))","v":" -"},{"$f":"IF(ISERROR(VLOOKUP($A54,'טבלת קטגוריות'!$A$1:$E$261,5,0)),\" -\",VLOOKUP($A54,'טבלת קטגוריות'!$A$1:$E$261,5,0))","v":" -"}]
[null,null,{"$f":"IF(ISERROR(VLOOKUP($A55,'טבלת קטגוריות'!$A$1:$E$261,2,0)),\" -\",VLOOKUP($A55,'טבלת קטגוריות'!$A$1:$E$261,2,0))","v":" -"},{"$f":"IF(ISERROR(VLOOKUP($A55,'טבלת קטגוריות'!$A$1:$E$261,3,0)),\" -\",VLOOKUP($A55,'טבלת קטגוריות'!$A$1:$E$261,3,0))","v":" -"},{"$f":"IF(ISERROR(VLOOKUP($A55,'טבלת קטגוריות'!$A$1:$E$261,5,0)),\" -\",VLOOKUP($A55,'טבלת קטגוריות'!$A$1:$E$261,5,0))","v":" -"}]
[null,null,{"$f":"IF(ISERROR(VLOOKUP($A56,'טבלת קטגוריות'!$A$1:$E$261,2,0)),\" -\",VLOOKUP($A56,'טבלת קטגוריות'!$A$1:$E$261,2,0))","v":" -"},{"$f":"IF(ISERROR(VLOOKUP($A56,'טבלת קטגוריות'!$A$1:$E$261,3,0)),\" -\",VLOOKUP($A56,'טבלת קטגוריות'!$A$1:$E$261,3,0))","v":" -"},{"$f":"IF(ISERROR(VLOOKUP($A56,'טבלת קטגוריות'!$A$1:$E$261,5,0)),\" -\",VLOOKUP($A56,'טבלת קטגוריות'!$A$1:$E$261,5,0))","v":" -"}]
[null,null,{"$f":"IF(ISERROR(VLOOKUP($A57,'טבלת קטגוריות'!$A$1:$E$261,2,0)),\" -\",VLOOKUP($A57,'טבלת קטגוריות'!$A$1:$E$261,2,0))","v":" -"},{"$f":"IF(ISERROR(VLOOKUP($A57,'טבלת קטגוריות'!$A$1:$E$261,3,0)),\" -\",VLOOKUP($A57,'טבלת קטגוריות'!$A$1:$E$261,3,0))","v":" -"},{"$f":"IF(ISERROR(VLOOKUP($A57,'טבלת קטגוריות'!$A$1:$E$261,5,0)),\" -\",VLOOKUP($A57,'טבלת קטגוריות'!$A$1:$E$261,5,0))","v":" -"}]
[null,null,{"$f":"IF(ISERROR(VLOOKUP($A58,'טבלת קטגוריות'!$A$1:$E$261,2,0)),\" -\",VLOOKUP($A58,'טבלת קטגוריות'!$A$1:$E$261,2,0))","v":" -"},{"$f":"IF(ISERROR(VLOOKUP($A58,'טבלת קטגוריות'!$A$1:$E$261,3,0)),\" -\",VLOOKUP($A58,'טבלת קטגוריות'!$A$1:$E$261,3,0))","v":" -"},{"$f":"IF(ISERROR(VLOOKUP($A58,'טבלת קטגוריות'!$A$1:$E$261,5,0)),\" -\",VLOOKUP($A58,'טבלת קטגוריות'!$A$1:$E$261,5,0))","v":" -"}]
[null,null,{"$f":"IF(ISERROR(VLOOKUP($A59,'טבלת קטגוריות'!$A$1:$E$261,2,0)),\" -\",VLOOKUP($A59,'טבלת קטגוריות'!$A$1:$E$261,2,0))","v":" -"},{"$f":"IF(ISERROR(VLOOKUP($A59,'טבלת קטגוריות'!$A$1:$E$261,3,0)),\" -\",VLOOKUP($A59,'טבלת קטגוריות'!$A$1:$E$261,3,0))","v":" -"},{"$f":"IF(ISERROR(VLOOKUP($A59,'טבלת קטגוריות'!$A$1:$E$261,5,0)),\" -\",VLOOKUP($A59,'טבלת קטגוריות'!$A$1:$E$261,5,0))","v":" -"}]
[null,null,{"$f":"IF(ISERROR(VLOOKUP($A60,'טבלת קטגוריות'!$A$1:$E$261,2,0)),\" -\",VLOOKUP($A60,'טבלת קטגוריות'!$A$1:$E$261,2,0))","v":" -"},{"$f":"IF(ISERROR(VLOOKUP($A60,'טבלת קטגוריות'!$A$1:$E$261,3,0)),\" -\",VLOOKUP($A60,'טבלת קטגוריות'!$A$1:$E$261,3,0))","v":" -"},{"$f":"IF(ISERROR(VLOOKUP($A60,'טבלת קטגוריות'!$A$1:$E$261,5,0)),\" -\",VLOOKUP($A60,'טבלת קטגוריות'!$A$1:$E$261,5,0))","v":" -"}]
[null,null,{"$f":"IF(ISERROR(VLOOKUP($A61,'טבלת קטגוריות'!$A$1:$E$261,2,0)),\" -\",VLOOKUP($A61,'טבלת קטגוריות'!$A$1:$E$261,2,0))","v":" -"},{"$f":"IF(ISERROR(VLOOKUP($A61,'טבלת קטגוריות'!$A$1:$E$261,3,0)),\" -\",VLOOKUP($A61,'טבלת קטגוריות'!$A$1:$E$261,3,0))","v":" -"},{"$f":"IF(ISERROR(VLOOKUP($A61,'טבלת קטגוריות'!$A$1:$E$261,5,0)),\" -\",VLOOKUP($A61,'טבלת קטגוריות'!$A$1:$E$261,5,0))","v":" -"}]
[null,null,{"$f":"IF(ISERROR(VLOOKUP($A62,'טבלת קטגוריות'!$A$1:$E$261,2,0)),\" -\",VLOOKUP($A62,'טבלת קטגוריות'!$A$1:$E$261,2,0))","v":" -"},{"$f":"IF(ISERROR(VLOOKUP($A62,'טבלת קטגוריות'!$A$1:$E$261,3,0)),\" -\",VLOOKUP($A62,'טבלת קטגוריות'!$A$1:$E$261,3,0))","v":" -"},{"$f":"IF(ISERROR(VLOOKUP($A62,'טבלת קטגוריות'!$A$1:$E$261,5,0)),\" -\",VLOOKUP($A62,'טבלת קטגוריות'!$A$1:$E$261,5,0))","v":" -"}]
[null,null,{"$f":"IF(ISERROR(VLOOKUP($A63,'טבלת קטגוריות'!$A$1:$E$261,2,0)),\" -\",VLOOKUP($A63,'טבלת קטגוריות'!$A$1:$E$261,2,0))","v":" -"},{"$f":"IF(ISERROR(VLOOKUP($A63,'טבלת קטגוריות'!$A$1:$E$261,3,0)),\" -\",VLOOKUP($A63,'טבלת קטגוריות'!$A$1:$E$261,3,0))","v":" -"},{"$f":"IF(ISERROR(VLOOKUP($A63,'טבלת קטגוריות'!$A$1:$E$261,5,0)),\" -\",VLOOKUP($A63,'טבלת קטגוריות'!$A$1:$E$261,5,0))","v":" -"}]
[null,null,{"$f":"IF(ISERROR(VLOOKUP($A64,'טבלת קטגוריות'!$A$1:$E$261,2,0)),\" -\",VLOOKUP($A64,'טבלת קטגוריות'!$A$1:$E$261,2,0))","v":" -"},{"$f":"IF(ISERROR(VLOOKUP($A64,'טבלת קטגוריות'!$A$1:$E$261,3,0)),\" -\",VLOOKUP($A64,'טבלת קטגוריות'!$A$1:$E$261,3,0))","v":" -"},{"$f":"IF(ISERROR(VLOOKUP($A64,'טבלת קטגוריות'!$A$1:$E$261,5,0)),\" -\",VLOOKUP($A64,'טבלת קטגוריות'!$A$1:$E$261,5,0))","v":" -"}]
[null,null,{"$f":"IF(ISERROR(VLOOKUP($A65,'טבלת קטגוריות'!$A$1:$E$261,2,0)),\" -\",VLOOKUP($A65,'טבלת קטגוריות'!$A$1:$E$261,2,0))","v":" -"},{"$f":"IF(ISERROR(VLOOKUP($A65,'טבלת קטגוריות'!$A$1:$E$261,3,0)),\" -\",VLOOKUP($A65,'טבלת קטגוריות'!$A$1:$E$261,3,0))","v":" -"},{"$f":"IF(ISERROR(VLOOKUP($A65,'טבלת קטגוריות'!$A$1:$E$261,5,0)),\" -\",VLOOKUP($A65,'טבלת קטגוריות'!$A$1:$E$261,5,0))","v":" -"}]
[null,null,{"$f":"IF(ISERROR(VLOOKUP($A66,'טבלת קטגוריות'!$A$1:$E$261,2,0)),\" -\",VLOOKUP($A66,'טבלת קטגוריות'!$A$1:$E$261,2,0))","v":" -"},{"$f":"IF(ISERROR(VLOOKUP($A66,'טבלת קטגוריות'!$A$1:$E$261,3,0)),\" -\",VLOOKUP($A66,'טבלת קטגוריות'!$A$1:$E$261,3,0))","v":" -"},{"$f":"IF(ISERROR(VLOOKUP($A66,'טבלת קטגוריות'!$A$1:$E$261,5,0)),\" -\",VLOOKUP($A66,'טבלת קטגוריות'!$A$1:$E$261,5,0))","v":" -"}]
[null,null,{"$f":"IF(ISERROR(VLOOKUP($A67,'טבלת קטגוריות'!$A$1:$E$261,2,0)),\" -\",VLOOKUP($A67,'טבלת קטגוריות'!$A$1:$E$261,2,0))","v":" -"},{"$f":"IF(ISERROR(VLOOKUP($A67,'טבלת קטגוריות'!$A$1:$E$261,3,0)),\" -\",VLOOKUP($A67,'טבלת קטגוריות'!$A$1:$E$261,3,0))","v":" -"},{"$f":"IF(ISERROR(VLOOKUP($A67,'טבלת קטגוריות'!$A$1:$E$261,5,0)),\" -\",VLOOKUP($A67,'טבלת קטגוריות'!$A$1:$E$261,5,0))","v":" -"}]
[null,null,{"$f":"IF(ISERROR(VLOOKUP($A68,'טבלת קטגוריות'!$A$1:$E$261,2,0)),\" -\",VLOOKUP($A68,'טבלת קטגוריות'!$A$1:$E$261,2,0))","v":" -"},{"$f":"IF(ISERROR(VLOOKUP($A68,'טבלת קטגוריות'!$A$1:$E$261,3,0)),\" -\",VLOOKUP($A68,'טבלת קטגוריות'!$A$1:$E$261,3,0))","v":" -"},{"$f":"IF(ISERROR(VLOOKUP($A68,'טבלת קטגוריות'!$A$1:$E$261,5,0)),\" -\",VLOOKUP($A68,'טבלת קטגוריות'!$A$1:$E$261,5,0))","v":" -"}]
[null,null,{"$f":"IF(ISERROR(VLOOKUP($A69,'טבלת קטגוריות'!$A$1:$E$261,2,0)),\" -\",VLOOKUP($A69,'טבלת קטגוריות'!$A$1:$E$261,2,0))","v":" -"},{"$f":"IF(ISERROR(VLOOKUP($A69,'טבלת קטגוריות'!$A$1:$E$261,3,0)),\" -\",VLOOKUP($A69,'טבלת קטגוריות'!$A$1:$E$261,3,0))","v":" -"},{"$f":"IF(ISERROR(VLOOKUP($A69,'טבלת קטגוריות'!$A$1:$E$261,5,0)),\" -\",VLOOKUP($A69,'טבלת קטגוריות'!$A$1:$E$261,5,0))","v":" -"}]
[null,null,{"$f":"IF(ISERROR(VLOOKUP($A70,'טבלת קטגוריות'!$A$1:$E$261,2,0)),\" -\",VLOOKUP($A70,'טבלת קטגוריות'!$A$1:$E$261,2,0))","v":" -"},{"$f":"IF(ISERROR(VLOOKUP($A70,'טבלת קטגוריות'!$A$1:$E$261,3,0)),\" -\",VLOOKUP($A70,'טבלת קטגוריות'!$A$1:$E$261,3,0))","v":" -"},{"$f":"IF(ISERROR(VLOOKUP($A70,'טבלת קטגוריות'!$A$1:$E$261,5,0)),\" -\",VLOOKUP($A70,'טבלת קטגוריות'!$A$1:$E$261,5,0))","v":" -"}]
[null,null,{"$f":"IF(ISERROR(VLOOKUP($A71,'טבלת קטגוריות'!$A$1:$E$261,2,0)),\" -\",VLOOKUP($A71,'טבלת קטגוריות'!$A$1:$E$261,2,0))","v":" -"},{"$f":"IF(ISERROR(VLOOKUP($A71,'טבלת קטגוריות'!$A$1:$E$261,3,0)),\" -\",VLOOKUP($A71,'טבלת קטגוריות'!$A$1:$E$261,3,0))","v":" -"},{"$f":"IF(ISERROR(VLOOKUP($A71,'טבלת קטגוריות'!$A$1:$E$261,5,0)),\" -\",VLOOKUP($A71,'טבלת קטגוריות'!$A$1:$E$261,5,0))","v":" -"}]
[null,null,{"$f":"IF(ISERROR(VLOOKUP($A72,'טבלת קטגוריות'!$A$1:$E$261,2,0)),\" -\",VLOOKUP($A72,'טבלת קטגוריות'!$A$1:$E$261,2,0))","v":" -"},{"$f":"IF(ISERROR(VLOOKUP($A72,'טבלת קטגוריות'!$A$1:$E$261,3,0)),\" -\",VLOOKUP($A72,'טבלת קטגוריות'!$A$1:$E$261,3,0))","v":" -"},{"$f":"IF(ISERROR(VLOOKUP($A72,'טבלת קטגוריות'!$A$1:$E$261,5,0)),\" -\",VLOOKUP($A72,'טבלת קטגוריות'!$A$1:$E$261,5,0))","v":" -"}]
[null,null,{"$f":"IF(ISERROR(VLOOKUP($A73,'טבלת קטגוריות'!$A$1:$E$261,2,0)),\" -\",VLOOKUP($A73,'טבלת קטגוריות'!$A$1:$E$261,2,0))","v":" -"},{"$f":"IF(ISERROR(VLOOKUP($A73,'טבלת קטגוריות'!$A$1:$E$261,3,0)),\" -\",VLOOKUP($A73,'טבלת קטגוריות'!$A$1:$E$261,3,0))","v":" -"},{"$f":"IF(ISERROR(VLOOKUP($A73,'טבלת קטגוריות'!$A$1:$E$261,5,0)),\" -\",VLOOKUP($A73,'טבלת קטגוריות'!$A$1:$E$261,5,0))","v":" -"}]
[null,null,{"$f":"IF(ISERROR(VLOOKUP($A74,'טבלת קטגוריות'!$A$1:$E$261,2,0)),\" -\",VLOOKUP($A74,'טבלת קטגוריות'!$A$1:$E$261,2,0))","v":" -"},{"$f":"IF(ISERROR(VLOOKUP($A74,'טבלת קטגוריות'!$A$1:$E$261,3,0)),\" -\",VLOOKUP($A74,'טבלת קטגוריות'!$A$1:$E$261,3,0))","v":" -"},{"$f":"IF(ISERROR(VLOOKUP($A74,'טבלת קטגוריות'!$A$1:$E$261,5,0)),\" -\",VLOOKUP($A74,'טבלת קטגוריות'!$A$1:$E$261,5,0))","v":" -"}]
[null,null,{"$f":"IF(ISERROR(VLOOKUP($A75,'טבלת קטגוריות'!$A$1:$E$261,2,0)),\" -\",VLOOKUP($A75,'טבלת קטגוריות'!$A$1:$E$261,2,0))","v":" -"},{"$f":"IF(ISERROR(VLOOKUP($A75,'טבלת קטגוריות'!$A$1:$E$261,3,0)),\" -\",VLOOKUP($A75,'טבלת קטגוריות'!$A$1:$E$261,3,0))","v":" -"},{"$f":"IF(ISERROR(VLOOKUP($A75,'טבלת קטגוריות'!$A$1:$E$261,5,0)),\" -\",VLOOKUP($A75,'טבלת קטגוריות'!$A$1:$E$261,5,0))","v":" -"}]
[null,null,{"$f":"IF(ISERROR(VLOOKUP($A76,'טבלת קטגוריות'!$A$1:$E$261,2,0)),\" -\",VLOOKUP($A76,'טבלת קטגוריות'!$A$1:$E$261,2,0))","v":" -"},{"$f":"IF(ISERROR(VLOOKUP($A76,'טבלת קטגוריות'!$A$1:$E$261,3,0)),\" -\",VLOOKUP($A76,'טבלת קטגוריות'!$A$1:$E$261,3,0))","v":" -"},{"$f":"IF(ISERROR(VLOOKUP($A76,'טבלת קטגוריות'!$A$1:$E$261,5,0)),\" -\",VLOOKUP($A76,'טבלת קטגוריות'!$A$1:$E$261,5,0))","v":" -"}]
[null,null,{"$f":"IF(ISERROR(VLOOKUP($A77,'טבלת קטגוריות'!$A$1:$E$261,2,0)),\" -\",VLOOKUP($A77,'טבלת קטגוריות'!$A$1:$E$261,2,0))","v":" -"},{"$f":"IF(ISERROR(VLOOKUP($A77,'טבלת קטגוריות'!$A$1:$E$261,3,0)),\" -\",VLOOKUP($A77,'טבלת קטגוריות'!$A$1:$E$261,3,0))","v":" -"},{"$f":"IF(ISERROR(VLOOKUP($A77,'טבלת קטגוריות'!$A$1:$E$261,5,0)),\" -\",VLOOKUP($A77,'טבלת קטגוריות'!$A$1:$E$261,5,0))","v":" -"}]
[null,null,{"$f":"IF(ISERROR(VLOOKUP($A78,'טבלת קטגוריות'!$A$1:$E$261,2,0)),\" -\",VLOOKUP($A78,'טבלת קטגוריות'!$A$1:$E$261,2,0))","v":" -"},{"$f":"IF(ISERROR(VLOOKUP($A78,'טבלת קטגוריות'!$A$1:$E$261,3,0)),\" -\",VLOOKUP($A78,'טבלת קטגוריות'!$A$1:$E$261,3,0))","v":" -"},{"$f":"IF(ISERROR(VLOOKUP($A78,'טבלת קטגוריות'!$A$1:$E$261,5,0)),\" -\",VLOOKUP($A78,'טבלת קטגוריות'!$A$1:$E$261,5,0))","v":" -"}]
[null,null,{"$f":"IF(ISERROR(VLOOKUP($A79,'טבלת קטגוריות'!$A$1:$E$261,2,0)),\" -\",VLOOKUP($A79,'טבלת קטגוריות'!$A$1:$E$261,2,0))","v":" -"},{"$f":"IF(ISERROR(VLOOKUP($A79,'טבלת קטגוריות'!$A$1:$E$261,3,0)),\" -\",VLOOKUP($A79,'טבלת קטגוריות'!$A$1:$E$261,3,0))","v":" -"},{"$f":"IF(ISERROR(VLOOKUP($A79,'טבלת קטגוריות'!$A$1:$E$261,5,0)),\" -\",VLOOKUP($A79,'טבלת קטגוריות'!$A$1:$E$261,5,0))","v":" -"}]
[null,null,{"$f":"IF(ISERROR(VLOOKUP($A80,'טבלת קטגוריות'!$A$1:$E$261,2,0)),\" -\",VLOOKUP($A80,'טבלת קטגוריות'!$A$1:$E$261,2,0))","v":" -"},{"$f":"IF(ISERROR(VLOOKUP($A80,'טבלת קטגוריות'!$A$1:$E$261,3,0)),\" -\",VLOOKUP($A80,'טבלת קטגוריות'!$A$1:$E$261,3,0))","v":" -"},{"$f":"IF(ISERROR(VLOOKUP($A80,'טבלת קטגוריות'!$A$1:$E$261,5,0)),\" -\",VLOOKUP($A80,'טבלת קטגוריות'!$A$1:$E$261,5,0))","v":" -"}]
[null,null,{"$f":"IF(ISERROR(VLOOKUP($A81,'טבלת קטגוריות'!$A$1:$E$261,2,0)),\" -\",VLOOKUP($A81,'טבלת קטגוריות'!$A$1:$E$261,2,0))","v":" -"},{"$f":"IF(ISERROR(VLOOKUP($A81,'טבלת קטגוריות'!$A$1:$E$261,3,0)),\" -\",VLOOKUP($A81,'טבלת קטגוריות'!$A$1:$E$261,3,0))","v":" -"},{"$f":"IF(ISERROR(VLOOKUP($A81,'טבלת קטגוריות'!$A$1:$E$261,5,0)),\" -\",VLOOKUP($A81,'טבלת קטגוריות'!$A$1:$E$261,5,0))","v":" -"}]
[null,null,{"$f":"IF(ISERROR(VLOOKUP($A82,'טבלת קטגוריות'!$A$1:$E$261,2,0)),\" -\",VLOOKUP($A82,'טבלת קטגוריות'!$A$1:$E$261,2,0))","v":" -"},{"$f":"IF(ISERROR(VLOOKUP($A82,'טבלת קטגוריות'!$A$1:$E$261,3,0)),\" -\",VLOOKUP($A82,'טבלת קטגוריות'!$A$1:$E$261,3,0))","v":" -"},{"$f":"IF(ISERROR(VLOOKUP($A82,'טבלת קטגוריות'!$A$1:$E$261,5,0)),\" -\",VLOOKUP($A82,'טבלת קטגוריות'!$A$1:$E$261,5,0))","v":" -"}]
[null,null,{"$f":"IF(ISERROR(VLOOKUP($A83,'טבלת קטגוריות'!$A$1:$E$261,2,0)),\" -\",VLOOKUP($A83,'טבלת קטגוריות'!$A$1:$E$261,2,0))","v":" -"},{"$f":"IF(ISERROR(VLOOKUP($A83,'טבלת קטגוריות'!$A$1:$E$261,3,0)),\" -\",VLOOKUP($A83,'טבלת קטגוריות'!$A$1:$E$261,3,0))","v":" -"},{"$f":"IF(ISERROR(VLOOKUP($A83,'טבלת קטגוריות'!$A$1:$E$261,5,0)),\" -\",VLOOKUP($A83,'טבלת קטגוריות'!$A$1:$E$261,5,0))","v":" -"}]
[null,null,{"$f":"IF(ISERROR(VLOOKUP($A84,'טבלת קטגוריות'!$A$1:$E$261,2,0)),\" -\",VLOOKUP($A84,'טבלת קטגוריות'!$A$1:$E$261,2,0))","v":" -"},{"$f":"IF(ISERROR(VLOOKUP($A84,'טבלת קטגוריות'!$A$1:$E$261,3,0)),\" -\",VLOOKUP($A84,'טבלת קטגוריות'!$A$1:$E$261,3,0))","v":" -"},{"$f":"IF(ISERROR(VLOOKUP($A84,'טבלת קטגוריות'!$A$1:$E$261,5,0)),\" -\",VLOOKUP($A84,'טבלת קטגוריות'!$A$1:$E$261,5,0))","v":" -"}]
[null,null,{"$f":"IF(ISERROR(VLOOKUP($A85,'טבלת קטגוריות'!$A$1:$E$261,2,0)),\" -\",VLOOKUP($A85,'טבלת קטגוריות'!$A$1:$E$261,2,0))","v":" -"},{"$f":"IF(ISERROR(VLOOKUP($A85,'טבלת קטגוריות'!$A$1:$E$261,3,0)),\" -\",VLOOKUP($A85,'טבלת קטגוריות'!$A$1:$E$261,3,0))","v":" -"},{"$f":"IF(ISERROR(VLOOKUP($A85,'טבלת קטגוריות'!$A$1:$E$261,5,0)),\" -\",VLOOKUP($A85,'טבלת קטגוריות'!$A$1:$E$261,5,0))","v":" -"}]
[null,null,{"$f":"IF(ISERROR(VLOOKUP($A86,'טבלת קטגוריות'!$A$1:$E$261,2,0)),\" -\",VLOOKUP($A86,'טבלת קטגוריות'!$A$1:$E$261,2,0))","v":" -"},{"$f":"IF(ISERROR(VLOOKUP($A86,'טבלת קטגוריות'!$A$1:$E$261,3,0)),\" -\",VLOOKUP($A86,'טבלת קטגוריות'!$A$1:$E$261,3,0))","v":" -"},{"$f":"IF(ISERROR(VLOOKUP($A86,'טבלת קטגוריות'!$A$1:$E$261,5,0)),\" -\",VLOOKUP($A86,'טבלת קטגוריות'!$A$1:$E$261,5,0))","v":" -"}]
[null,null,{"$f":"IF(ISERROR(VLOOKUP($A87,'טבלת קטגוריות'!$A$1:$E$261,2,0)),\" -\",VLOOKUP($A87,'טבלת קטגוריות'!$A$1:$E$261,2,0))","v":" -"},{"$f":"IF(ISERROR(VLOOKUP($A87,'טבלת קטגוריות'!$A$1:$E$261,3,0)),\" -\",VLOOKUP($A87,'טבלת קטגוריות'!$A$1:$E$261,3,0))","v":" -"},{"$f":"IF(ISERROR(VLOOKUP($A87,'טבלת קטגוריות'!$A$1:$E$261,5,0)),\" -\",VLOOKUP($A87,'טבלת קטגוריות'!$A$1:$E$261,5,0))","v":" -"}]
[null,null,{"$f":"IF(ISERROR(VLOOKUP($A88,'טבלת קטגוריות'!$A$1:$E$261,2,0)),\" -\",VLOOKUP($A88,'טבלת קטגוריות'!$A$1:$E$261,2,0))","v":" -"},{"$f":"IF(ISERROR(VLOOKUP($A88,'טבלת קטגוריות'!$A$1:$E$261,3,0)),\" -\",VLOOKUP($A88,'טבלת קטגוריות'!$A$1:$E$261,3,0))","v":" -"},{"$f":"IF(ISERROR(VLOOKUP($A88,'טבלת קטגוריות'!$A$1:$E$261,5,0)),\" -\",VLOOKUP($A88,'טבלת קטגוריות'!$A$1:$E$261,5,0))","v":" -"}]
[null,null,{"$f":"IF(ISERROR(VLOOKUP($A89,'טבלת קטגוריות'!$A$1:$E$261,2,0)),\" -\",VLOOKUP($A89,'טבלת קטגוריות'!$A$1:$E$261,2,0))","v":" -"},{"$f":"IF(ISERROR(VLOOKUP($A89,'טבלת קטגוריות'!$A$1:$E$261,3,0)),\" -\",VLOOKUP($A89,'טבלת קטגוריות'!$A$1:$E$261,3,0))","v":" -"},{"$f":"IF(ISERROR(VLOOKUP($A89,'טבלת קטגוריות'!$A$1:$E$261,5,0)),\" -\",VLOOKUP($A89,'טבלת קטגוריות'!$A$1:$E$261,5,0))","v":" -"}]
[null,null,{"$f":"IF(ISERROR(VLOOKUP($A90,'טבלת קטגוריות'!$A$1:$E$261,2,0)),\" -\",VLOOKUP($A90,'טבלת קטגוריות'!$A$1:$E$261,2,0))","v":" -"},{"$f":"IF(ISERROR(VLOOKUP($A90,'טבלת קטגוריות'!$A$1:$E$261,3,0)),\" -\",VLOOKUP($A90,'טבלת קטגוריות'!$A$1:$E$261,3,0))","v":" -"},{"$f":"IF(ISERROR(VLOOKUP($A90,'טבלת קטגוריות'!$A$1:$E$261,5,0)),\" -\",VLOOKUP($A90,'טבלת קטגוריות'!$A$1:$E$261,5,0))","v":" -"}]
[null,null,{"$f":"IF(ISERROR(VLOOKUP($A91,'טבלת קטגוריות'!$A$1:$E$261,2,0)),\" -\",VLOOKUP($A91,'טבלת קטגוריות'!$A$1:$E$261,2,0))","v":" -"},{"$f":"IF(ISERROR(VLOOKUP($A91,'טבלת קטגוריות'!$A$1:$E$261,3,0)),\" -\",VLOOKUP($A91,'טבלת קטגוריות'!$A$1:$E$261,3,0))","v":" -"},{"$f":"IF(ISERROR(VLOOKUP($A91,'טבלת קטגוריות'!$A$1:$E$261,5,0)),\" -\",VLOOKUP($A91,'טבלת קטגוריות'!$A$1:$E$261,5,0))","v":" -"}]
[null,null,{"$f":"IF(ISERROR(VLOOKUP($A92,'טבלת קטגוריות'!$A$1:$E$261,2,0)),\" -\",VLOOKUP($A92,'טבלת קטגוריות'!$A$1:$E$261,2,0))","v":" -"},{"$f":"IF(ISERROR(VLOOKUP($A92,'טבלת קטגוריות'!$A$1:$E$261,3,0)),\" -\",VLOOKUP($A92,'טבלת קטגוריות'!$A$1:$E$261,3,0))","v":" -"},{"$f":"IF(ISERROR(VLOOKUP($A92,'טבלת קטגוריות'!$A$1:$E$261,5,0)),\" -\",VLOOKUP($A92,'טבלת קטגוריות'!$A$1:$E$261,5,0))","v":" -"}]
[null,null,{"$f":"IF(ISERROR(VLOOKUP($A93,'טבלת קטגוריות'!$A$1:$E$261,2,0)),\" -\",VLOOKUP($A93,'טבלת קטגוריות'!$A$1:$E$261,2,0))","v":" -"},{"$f":"IF(ISERROR(VLOOKUP($A93,'טבלת קטגוריות'!$A$1:$E$261,3,0)),\" -\",VLOOKUP($A93,'טבלת קטגוריות'!$A$1:$E$261,3,0))","v":" -"},{"$f":"IF(ISERROR(VLOOKUP($A93,'טבלת קטגוריות'!$A$1:$E$261,5,0)),\" -\",VLOOKUP($A93,'טבלת קטגוריות'!$A$1:$E$261,5,0))","v":" -"}]
[null,null,{"$f":"IF(ISERROR(VLOOKUP($A94,'טבלת קטגוריות'!$A$1:$E$261,2,0)),\" -\",VLOOKUP($A94,'טבלת קטגוריות'!$A$1:$E$261,2,0))","v":" -"},{"$f":"IF(ISERROR(VLOOKUP($A94,'טבלת קטגוריות'!$A$1:$E$261,3,0)),\" -\",VLOOKUP($A94,'טבלת קטגוריות'!$A$1:$E$261,3,0))","v":" -"},{"$f":"IF(ISERROR(VLOOKUP($A94,'טבלת קטגוריות'!$A$1:$E$261,5,0)),\" -\",VLOOKUP($A94,'טבלת קטגוריות'!$A$1:$E$261,5,0))","v":" -"}]
[null,null,{"$f":"IF(ISERROR(VLOOKUP($A95,'טבלת קטגוריות'!$A$1:$E$261,2,0)),\" -\",VLOOKUP($A95,'טבלת קטגוריות'!$A$1:$E$261,2,0))","v":" -"},{"$f":"IF(ISERROR(VLOOKUP($A95,'טבלת קטגוריות'!$A$1:$E$261,3,0)),\" -\",VLOOKUP($A95,'טבלת קטגוריות'!$A$1:$E$261,3,0))","v":" -"},{"$f":"IF(ISERROR(VLOOKUP($A95,'טבלת קטגוריות'!$A$1:$E$261,5,0)),\" -\",VLOOKUP($A95,'טבלת קטגוריות'!$A$1:$E$261,5,0))","v":" -"}]
[null,null,{"$f":"IF(ISERROR(VLOOKUP($A96,'טבלת קטגוריות'!$A$1:$E$261,2,0)),\" -\",VLOOKUP($A96,'טבלת קטגוריות'!$A$1:$E$261,2,0))","v":" -"},{"$f":"IF(ISERROR(VLOOKUP($A96,'טבלת קטגוריות'!$A$1:$E$261,3,0)),\" -\",VLOOKUP($A96,'טבלת קטגוריות'!$A$1:$E$261,3,0))","v":" -"},{"$f":"IF(ISERROR(VLOOKUP($A96,'טבלת קטגוריות'!$A$1:$E$261,5,0)),\" -\",VLOOKUP($A96,'טבלת קטגוריות'!$A$1:$E$261,5,0))","v":" -"}]
[null,null,{"$f":"IF(ISERROR(VLOOKUP($A97,'טבלת קטגוריות'!$A$1:$E$261,2,0)),\" -\",VLOOKUP($A97,'טבלת קטגוריות'!$A$1:$E$261,2,0))","v":" -"},{"$f":"IF(ISERROR(VLOOKUP($A97,'טבלת קטגוריות'!$A$1:$E$261,3,0)),\" -\",VLOOKUP($A97,'טבלת קטגוריות'!$A$1:$E$261,3,0))","v":" -"},{"$f":"IF(ISERROR(VLOOKUP($A97,'טבלת קטגוריות'!$A$1:$E$261,5,0)),\" -\",VLOOKUP($A97,'טבלת קטגוריות'!$A$1:$E$261,5,0))","v":" -"}]
[null,null,{"$f":"IF(ISERROR(VLOOKUP($A98,'טבלת קטגוריות'!$A$1:$E$261,2,0)),\" -\",VLOOKUP($A98,'טבלת קטגוריות'!$A$1:$E$261,2,0))","v":" -"},{"$f":"IF(ISERROR(VLOOKUP($A98,'טבלת קטגוריות'!$A$1:$E$261,3,0)),\" -\",VLOOKUP($A98,'טבלת קטגוריות'!$A$1:$E$261,3,0))","v":" -"},{"$f":"IF(ISERROR(VLOOKUP($A98,'טבלת קטגוריות'!$A$1:$E$261,5,0)),\" -\",VLOOKUP($A98,'טבלת קטגוריות'!$A$1:$E$261,5,0))","v":" -"}]
[null,null,{"$f":"IF(ISERROR(VLOOKUP($A99,'טבלת קטגוריות'!$A$1:$E$261,2,0)),\" -\",VLOOKUP($A99,'טבלת קטגוריות'!$A$1:$E$261,2,0))","v":" -"},{"$f":"IF(ISERROR(VLOOKUP($A99,'טבלת קטגוריות'!$A$1:$E$261,3,0)),\" -\",VLOOKUP($A99,'טבלת קטגוריות'!$A$1:$E$261,3,0))","v":" -"},{"$f":"IF(ISERROR(VLOOKUP($A99,'טבלת קטגוריות'!$A$1:$E$261,5,0)),\" -\",VLOOKUP($A99,'טבלת קטגוריות'!$A$1:$E$261,5,0))","v":" -"}]
[null,null,{"$f":"IF(ISERROR(VLOOKUP($A100,'טבלת קטגוריות'!$A$1:$E$261,2,0)),\" -\",VLOOKUP($A100,'טבלת קטגוריות'!$A$1:$E$261,2,0))","v":" -"},{"$f":"IF(ISERROR(VLOOKUP($A100,'טבלת קטגוריות'!$A$1:$E$261,3,0)),\" -\",VLOOKUP($A100,'טבלת קטגוריות'!$A$1:$E$261,3,0))","v":" -"},{"$f":"IF(ISERROR(VLOOKUP($A100,'טבלת קטגוריות'!$A$1:$E$261,5,0)),\" -\",VLOOKUP($A100,'טבלת קטגוריות'!$A$1:$E$261,5,0))","v":" -"}]
[null,null,{"$f":"IF(ISERROR(VLOOKUP($A101,'טבלת קטגוריות'!$A$1:$E$261,2,0)),\" -\",VLOOKUP($A101,'טבלת קטגוריות'!$A$1:$E$261,2,0))","v":" -"},{"$f":"IF(ISERROR(VLOOKUP($A101,'טבלת קטגוריות'!$A$1:$E$261,3,0)),\" -\",VLOOKUP($A101,'טבלת קטגוריות'!$A$1:$E$261,3,0))","v":" -"},{"$f":"IF(ISERROR(VLOOKUP($A101,'טבלת קטגוריות'!$A$1:$E$261,5,0)),\" -\",VLOOKUP($A101,'טבלת קטגוריות'!$A$1:$E$261,5,0))","v":" -"}]
[null,null,{"$f":"IF(ISERROR(VLOOKUP($A102,'טבלת קטגוריות'!$A$1:$E$261,2,0)),\" -\",VLOOKUP($A102,'טבלת קטגוריות'!$A$1:$E$261,2,0))","v":" -"},{"$f":"IF(ISERROR(VLOOKUP($A102,'טבלת קטגוריות'!$A$1:$E$261,3,0)),\" -\",VLOOKUP($A102,'טבלת קטגוריות'!$A$1:$E$261,3,0))","v":" -"},{"$f":"IF(ISERROR(VLOOKUP($A102,'טבלת קטגוריות'!$A$1:$E$261,5,0)),\" -\",VLOOKUP($A102,'טבלת קטגוריות'!$A$1:$E$261,5,0))","v":" -"}]
[null,null,{"$f":"IF(ISERROR(VLOOKUP($A103,'טבלת קטגוריות'!$A$1:$E$261,2,0)),\" -\",VLOOKUP($A103,'טבלת קטגוריות'!$A$1:$E$261,2,0))","v":" -"},{"$f":"IF(ISERROR(VLOOKUP($A103,'טבלת קטגוריות'!$A$1:$E$261,3,0)),\" -\",VLOOKUP($A103,'טבלת קטגוריות'!$A$1:$E$261,3,0))","v":" -"},{"$f":"IF(ISERROR(VLOOKUP($A103,'טבלת קטגוריות'!$A$1:$E$261,5,0)),\" -\",VLOOKUP($A103,'טבלת קטגוריות'!$A$1:$E$261,5,0))","v":" -"}]
[null,null,{"$f":"IF(ISERROR(VLOOKUP($A104,'טבלת קטגוריות'!$A$1:$E$261,2,0)),\" -\",VLOOKUP($A104,'טבלת קטגוריות'!$A$1:$E$261,2,0))","v":" -"},{"$f":"IF(ISERROR(VLOOKUP($A104,'טבלת קטגוריות'!$A$1:$E$261,3,0)),\" -\",VLOOKUP($A104,'טבלת קטגוריות'!$A$1:$E$261,3,0))","v":" -"},{"$f":"IF(ISERROR(VLOOKUP($A104,'טבלת קטגוריות'!$A$1:$E$261,5,0)),\" -\",VLOOKUP($A104,'טבלת קטגוריות'!$A$1:$E$261,5,0))","v":" -"}]
[null,null,{"$f":"IF(ISERROR(VLOOKUP($A105,'טבלת קטגוריות'!$A$1:$E$261,2,0)),\" -\",VLOOKUP($A105,'טבלת קטגוריות'!$A$1:$E$261,2,0))","v":" -"},{"$f":"IF(ISERROR(VLOOKUP($A105,'טבלת קטגוריות'!$A$1:$E$261,3,0)),\" -\",VLOOKUP($A105,'טבלת קטגוריות'!$A$1:$E$261,3,0))","v":" -"},{"$f":"IF(ISERROR(VLOOKUP($A105,'טבלת קטגוריות'!$A$1:$E$261,5,0)),\" -\",VLOOKUP($A105,'טבלת קטגוריות'!$A$1:$E$261,5,0))","v":" -"}]
[null,null,{"$f":"IF(ISERROR(VLOOKUP($A106,'טבלת קטגוריות'!$A$1:$E$261,2,0)),\" -\",VLOOKUP($A106,'טבלת קטגוריות'!$A$1:$E$261,2,0))","v":" -"},{"$f":"IF(ISERROR(VLOOKUP($A106,'טבלת קטגוריות'!$A$1:$E$261,3,0)),\" -\",VLOOKUP($A106,'טבלת קטגוריות'!$A$1:$E$261,3,0))","v":" -"},{"$f":"IF(ISERROR(VLOOKUP($A106,'טבלת קטגוריות'!$A$1:$E$261,5,0)),\" -\",VLOOKUP($A106,'טבלת קטגוריות'!$A$1:$E$261,5,0))","v":" -"}]
[null,null,{"$f":"IF(ISERROR(VLOOKUP($A107,'טבלת קטגוריות'!$A$1:$E$261,2,0)),\" -\",VLOOKUP($A107,'טבלת קטגוריות'!$A$1:$E$261,2,0))","v":" -"},{"$f":"IF(ISERROR(VLOOKUP($A107,'טבלת קטגוריות'!$A$1:$E$261,3,0)),\" -\",VLOOKUP($A107,'טבלת קטגוריות'!$A$1:$E$261,3,0))","v":" -"},{"$f":"IF(ISERROR(VLOOKUP($A107,'טבלת קטגוריות'!$A$1:$E$261,5,0)),\" -\",VLOOKUP($A107,'טבלת קטגוריות'!$A$1:$E$261,5,0))","v":" -"}]
[null,null,{"$f":"IF(ISERROR(VLOOKUP($A108,'טבלת קטגוריות'!$A$1:$E$261,2,0)),\" -\",VLOOKUP($A108,'טבלת קטגוריות'!$A$1:$E$261,2,0))","v":" -"},{"$f":"IF(ISERROR(VLOOKUP($A108,'טבלת קטגוריות'!$A$1:$E$261,3,0)),\" -\",VLOOKUP($A108,'טבלת קטגוריות'!$A$1:$E$261,3,0))","v":" -"},{"$f":"IF(ISERROR(VLOOKUP($A108,'טבלת קטגוריות'!$A$1:$E$261,5,0)),\" -\",VLOOKUP($A108,'טבלת קטגוריות'!$A$1:$E$261,5,0))","v":" -"}]
[null,null,{"$f":"IF(ISERROR(VLOOKUP($A109,'טבלת קטגוריות'!$A$1:$E$261,2,0)),\" -\",VLOOKUP($A109,'טבלת קטגוריות'!$A$1:$E$261,2,0))","v":" -"},{"$f":"IF(ISERROR(VLOOKUP($A109,'טבלת קטגוריות'!$A$1:$E$261,3,0)),\" -\",VLOOKUP($A109,'טבלת קטגוריות'!$A$1:$E$261,3,0))","v":" -"},{"$f":"IF(ISERROR(VLOOKUP($A109,'טבלת קטגוריות'!$A$1:$E$261,5,0)),\" -\",VLOOKUP($A109,'טבלת קטגוריות'!$A$1:$E$261,5,0))","v":" -"}]
[null,null,{"$f":"IF(ISERROR(VLOOKUP($A110,'טבלת קטגוריות'!$A$1:$E$261,2,0)),\" -\",VLOOKUP($A110,'טבלת קטגוריות'!$A$1:$E$261,2,0))","v":" -"},{"$f":"IF(ISERROR(VLOOKUP($A110,'טבלת קטגוריות'!$A$1:$E$261,3,0)),\" -\",VLOOKUP($A110,'טבלת קטגוריות'!$A$1:$E$261,3,0))","v":" -"},{"$f":"IF(ISERROR(VLOOKUP($A110,'טבלת קטגוריות'!$A$1:$E$261,5,0)),\" -\",VLOOKUP($A110,'טבלת קטגוריות'!$A$1:$E$261,5,0))","v":" -"}]
[null,null,{"$f":"IF(ISERROR(VLOOKUP($A111,'טבלת קטגוריות'!$A$1:$E$261,2,0)),\" -\",VLOOKUP($A111,'טבלת קטגוריות'!$A$1:$E$261,2,0))","v":" -"},{"$f":"IF(ISERROR(VLOOKUP($A111,'טבלת קטגוריות'!$A$1:$E$261,3,0)),\" -\",VLOOKUP($A111,'טבלת קטגוריות'!$A$1:$E$261,3,0))","v":" -"},{"$f":"IF(ISERROR(VLOOKUP($A111,'טבלת קטגוריות'!$A$1:$E$261,5,0)),\" -\",VLOOKUP($A111,'טבלת קטגוריות'!$A$1:$E$261,5,0))","v":" -"}]
[null,null,{"$f":"IF(ISERROR(VLOOKUP($A112,'טבלת קטגוריות'!$A$1:$E$261,2,0)),\" -\",VLOOKUP($A112,'טבלת קטגוריות'!$A$1:$E$261,2,0))","v":" -"},{"$f":"IF(ISERROR(VLOOKUP($A112,'טבלת קטגוריות'!$A$1:$E$261,3,0)),\" -\",VLOOKUP($A112,'טבלת קטגוריות'!$A$1:$E$261,3,0))","v":" -"},{"$f":"IF(ISERROR(VLOOKUP($A112,'טבלת קטגוריות'!$A$1:$E$261,5,0)),\" -\",VLOOKUP($A112,'טבלת קטגוריות'!$A$1:$E$261,5,0))","v":" -"}]
[null,null,{"$f":"IF(ISERROR(VLOOKUP($A113,'טבלת קטגוריות'!$A$1:$E$261,2,0)),\" -\",VLOOKUP($A113,'טבלת קטגוריות'!$A$1:$E$261,2,0))","v":" -"},{"$f":"IF(ISERROR(VLOOKUP($A113,'טבלת קטגוריות'!$A$1:$E$261,3,0)),\" -\",VLOOKUP($A113,'טבלת קטגוריות'!$A$1:$E$261,3,0))","v":" -"},{"$f":"IF(ISERROR(VLOOKUP($A113,'טבלת קטגוריות'!$A$1:$E$261,5,0)),\" -\",VLOOKUP($A113,'טבלת קטגוריות'!$A$1:$E$261,5,0))","v":" -"}]
[null,null,{"$f":"IF(ISERROR(VLOOKUP($A114,'טבלת קטגוריות'!$A$1:$E$261,2,0)),\" -\",VLOOKUP($A114,'טבלת קטגוריות'!$A$1:$E$261,2,0))","v":" -"},{"$f":"IF(ISERROR(VLOOKUP($A114,'טבלת קטגוריות'!$A$1:$E$261,3,0)),\" -\",VLOOKUP($A114,'טבלת קטגוריות'!$A$1:$E$261,3,0))","v":" -"},{"$f":"IF(ISERROR(VLOOKUP($A114,'טבלת קטגוריות'!$A$1:$E$261,5,0)),\" -\",VLOOKUP($A114,'טבלת קטגוריות'!$A$1:$E$261,5,0))","v":" -"}]
[null,null,{"$f":"IF(ISERROR(VLOOKUP($A115,'טבלת קטגוריות'!$A$1:$E$261,2,0)),\" -\",VLOOKUP($A115,'טבלת קטגוריות'!$A$1:$E$261,2,0))","v":" -"},{"$f":"IF(ISERROR(VLOOKUP($A115,'טבלת קטגוריות'!$A$1:$E$261,3,0)),\" -\",VLOOKUP($A115,'טבלת קטגוריות'!$A$1:$E$261,3,0))","v":" -"},{"$f":"IF(ISERROR(VLOOKUP($A115,'טבלת קטגוריות'!$A$1:$E$261,5,0)),\" -\",VLOOKUP($A115,'טבלת קטגוריות'!$A$1:$E$261,5,0))","v":" -"}]
[null,null,{"$f":"IF(ISERROR(VLOOKUP($A116,'טבלת קטגוריות'!$A$1:$E$261,2,0)),\" -\",VLOOKUP($A116,'טבלת קטגוריות'!$A$1:$E$261,2,0))","v":" -"},{"$f":"IF(ISERROR(VLOOKUP($A116,'טבלת קטגוריות'!$A$1:$E$261,3,0)),\" -\",VLOOKUP($A116,'טבלת קטגוריות'!$A$1:$E$261,3,0))","v":" -"},{"$f":"IF(ISERROR(VLOOKUP($A116,'טבלת קטגוריות'!$A$1:$E$261,5,0)),\" -\",VLOOKUP($A116,'טבלת קטגוריות'!$A$1:$E$261,5,0))","v":" -"}]
[null,null,{"$f":"IF(ISERROR(VLOOKUP($A117,'טבלת קטגוריות'!$A$1:$E$261,2,0)),\" -\",VLOOKUP($A117,'טבלת קטגוריות'!$A$1:$E$261,2,0))","v":" -"},{"$f":"IF(ISERROR(VLOOKUP($A117,'טבלת קטגוריות'!$A$1:$E$261,3,0)),\" -\",VLOOKUP($A117,'טבלת קטגוריות'!$A$1:$E$261,3,0))","v":" -"},{"$f":"IF(ISERROR(VLOOKUP($A117,'טבלת קטגוריות'!$A$1:$E$261,5,0)),\" -\",VLOOKUP($A117,'טבלת קטגוריות'!$A$1:$E$261,5,0))","v":" -"}]
[null,null,{"$f":"IF(ISERROR(VLOOKUP($A118,'טבלת קטגוריות'!$A$1:$E$261,2,0)),\" -\",VLOOKUP($A118,'טבלת קטגוריות'!$A$1:$E$261,2,0))","v":" -"},{"$f":"IF(ISERROR(VLOOKUP($A118,'טבלת קטגוריות'!$A$1:$E$261,3,0)),\" -\",VLOOKUP($A118,'טבלת קטגוריות'!$A$1:$E$261,3,0))","v":" -"},{"$f":"IF(ISERROR(VLOOKUP($A118,'טבלת קטגוריות'!$A$1:$E$261,5,0)),\" -\",VLOOKUP($A118,'טבלת קטגוריות'!$A$1:$E$261,5,0))","v":" -"}]
[null,null,{"$f":"IF(ISERROR(VLOOKUP($A119,'טבלת קטגוריות'!$A$1:$E$261,2,0)),\" -\",VLOOKUP($A119,'טבלת קטגוריות'!$A$1:$E$261,2,0))","v":" -"},{"$f":"IF(ISERROR(VLOOKUP($A119,'טבלת קטגוריות'!$A$1:$E$261,3,0)),\" -\",VLOOKUP($A119,'טבלת קטגוריות'!$A$1:$E$261,3,0))","v":" -"},{"$f":"IF(ISERROR(VLOOKUP($A119,'טבלת קטגוריות'!$A$1:$E$261,5,0)),\" -\",VLOOKUP($A119,'טבלת קטגוריות'!$A$1:$E$261,5,0))","v":" -"}]
[null,null,{"$f":"IF(ISERROR(VLOOKUP($A120,'טבלת קטגוריות'!$A$1:$E$261,2,0)),\" -\",VLOOKUP($A120,'טבלת קטגוריות'!$A$1:$E$261,2,0))","v":" -"},{"$f":"IF(ISERROR(VLOOKUP($A120,'טבלת קטגוריות'!$A$1:$E$261,3,0)),\" -\",VLOOKUP($A120,'טבלת קטגוריות'!$A$1:$E$261,3,0))","v":" -"},{"$f":"IF(ISERROR(VLOOKUP($A120,'טבלת קטגוריות'!$A$1:$E$261,5,0)),\" -\",VLOOKUP($A120,'טבלת קטגוריות'!$A$1:$E$261,5,0))","v":" -"}]
[null,null,{"$f":"IF(ISERROR(VLOOKUP($A121,'טבלת קטגוריות'!$A$1:$E$261,2,0)),\" -\",VLOOKUP($A121,'טבלת קטגוריות'!$A$1:$E$261,2,0))","v":" -"},{"$f":"IF(ISERROR(VLOOKUP($A121,'טבלת קטגוריות'!$A$1:$E$261,3,0)),\" -\",VLOOKUP($A121,'טבלת קטגוריות'!$A$1:$E$261,3,0))","v":" -"},{"$f":"IF(ISERROR(VLOOKUP($A121,'טבלת קטגוריות'!$A$1:$E$261,5,0)),\" -\",VLOOKUP($A121,'טבלת קטגוריות'!$A$1:$E$261,5,0))","v":" -"}]
[null,null,{"$f":"IF(ISERROR(VLOOKUP($A122,'טבלת קטגוריות'!$A$1:$E$261,2,0)),\" -\",VLOOKUP($A122,'טבלת קטגוריות'!$A$1:$E$261,2,0))","v":" -"},{"$f":"IF(ISERROR(VLOOKUP($A122,'טבלת קטגוריות'!$A$1:$E$261,3,0)),\" -\",VLOOKUP($A122,'טבלת קטגוריות'!$A$1:$E$261,3,0))","v":" -"},{"$f":"IF(ISERROR(VLOOKUP($A122,'טבלת קטגוריות'!$A$1:$E$261,5,0)),\" -\",VLOOKUP($A122,'טבלת קטגוריות'!$A$1:$E$261,5,0))","v":" -"}]
[null,null,{"$f":"IF(ISERROR(VLOOKUP($A123,'טבלת קטגוריות'!$A$1:$E$261,2,0)),\" -\",VLOOKUP($A123,'טבלת קטגוריות'!$A$1:$E$261,2,0))","v":" -"},{"$f":"IF(ISERROR(VLOOKUP($A123,'טבלת קטגוריות'!$A$1:$E$261,3,0)),\" -\",VLOOKUP($A123,'טבלת קטגוריות'!$A$1:$E$261,3,0))","v":" -"},{"$f":"IF(ISERROR(VLOOKUP($A123,'טבלת קטגוריות'!$A$1:$E$261,5,0)),\" -\",VLOOKUP($A123,'טבלת קטגוריות'!$A$1:$E$261,5,0))","v":" -"}]
[null,null,{"$f":"IF(ISERROR(VLOOKUP($A124,'טבלת קטגוריות'!$A$1:$E$261,2,0)),\" -\",VLOOKUP($A124,'טבלת קטגוריות'!$A$1:$E$261,2,0))","v":" -"},{"$f":"IF(ISERROR(VLOOKUP($A124,'טבלת קטגוריות'!$A$1:$E$261,3,0)),\" -\",VLOOKUP($A124,'טבלת קטגוריות'!$A$1:$E$261,3,0))","v":" -"},{"$f":"IF(ISERROR(VLOOKUP($A124,'טבלת קטגוריות'!$A$1:$E$261,5,0)),\" -\",VLOOKUP($A124,'טבלת קטגוריות'!$A$1:$E$261,5,0))","v":" -"}]
[null,null,{"$f":"IF(ISERROR(VLOOKUP($A125,'טבלת קטגוריות'!$A$1:$E$261,2,0)),\" -\",VLOOKUP($A125,'טבלת קטגוריות'!$A$1:$E$261,2,0))","v":" -"},{"$f":"IF(ISERROR(VLOOKUP($A125,'טבלת קטגוריות'!$A$1:$E$261,3,0)),\" -\",VLOOKUP($A125,'טבלת קטגוריות'!$A$1:$E$261,3,0))","v":" -"},{"$f":"IF(ISERROR(VLOOKUP($A125,'טבלת קטגוריות'!$A$1:$E$261,5,0)),\" -\",VLOOKUP($A125,'טבלת קטגוריות'!$A$1:$E$261,5,0))","v":" -"}]
[null,null,{"$f":"IF(ISERROR(VLOOKUP($A126,'טבלת קטגוריות'!$A$1:$E$261,2,0)),\" -\",VLOOKUP($A126,'טבלת קטגוריות'!$A$1:$E$261,2,0))","v":" -"},{"$f":"IF(ISERROR(VLOOKUP($A126,'טבלת קטגוריות'!$A$1:$E$261,3,0)),\" -\",VLOOKUP($A126,'טבלת קטגוריות'!$A$1:$E$261,3,0))","v":" -"},{"$f":"IF(ISERROR(VLOOKUP($A126,'טבלת קטגוריות'!$A$1:$E$261,5,0)),\" -\",VLOOKUP($A126,'טבלת קטגוריות'!$A$1:$E$261,5,0))","v":" -"}]
[null,null,{"$f":"IF(ISERROR(VLOOKUP($A127,'טבלת קטגוריות'!$A$1:$E$261,2,0)),\" -\",VLOOKUP($A127,'טבלת קטגוריות'!$A$1:$E$261,2,0))","v":" -"},{"$f":"IF(ISERROR(VLOOKUP($A127,'טבלת קטגוריות'!$A$1:$E$261,3,0)),\" -\",VLOOKUP($A127,'טבלת קטגוריות'!$A$1:$E$261,3,0))","v":" -"},{"$f":"IF(ISERROR(VLOOKUP($A127,'טבלת קטגוריות'!$A$1:$E$261,5,0)),\" -\",VLOOKUP($A127,'טבלת קטגוריות'!$A$1:$E$261,5,0))","v":" -"}]
[null,null,{"$f":"IF(ISERROR(VLOOKUP($A128,'טבלת קטגוריות'!$A$1:$E$261,2,0)),\" -\",VLOOKUP($A128,'טבלת קטגוריות'!$A$1:$E$261,2,0))","v":" -"},{"$f":"IF(ISERROR(VLOOKUP($A128,'טבלת קטגוריות'!$A$1:$E$261,3,0)),\" -\",VLOOKUP($A128,'טבלת קטגוריות'!$A$1:$E$261,3,0))","v":" -"},{"$f":"IF(ISERROR(VLOOKUP($A128,'טבלת קטגוריות'!$A$1:$E$261,5,0)),\" -\",VLOOKUP($A128,'טבלת קטגוריות'!$A$1:$E$261,5,0))","v":" -"}]
[null,null,{"$f":"IF(ISERROR(VLOOKUP($A129,'טבלת קטגוריות'!$A$1:$E$261,2,0)),\" -\",VLOOKUP($A129,'טבלת קטגוריות'!$A$1:$E$261,2,0))","v":" -"},{"$f":"IF(ISERROR(VLOOKUP($A129,'טבלת קטגוריות'!$A$1:$E$261,3,0)),\" -\",VLOOKUP($A129,'טבלת קטגוריות'!$A$1:$E$261,3,0))","v":" -"},{"$f":"IF(ISERROR(VLOOKUP($A129,'טבלת קטגוריות'!$A$1:$E$261,5,0)),\" -\",VLOOKUP($A129,'טבלת קטגוריות'!$A$1:$E$261,5,0))","v":" -"}]
[null,null,{"$f":"IF(ISERROR(VLOOKUP($A130,'טבלת קטגוריות'!$A$1:$E$261,2,0)),\" -\",VLOOKUP($A130,'טבלת קטגוריות'!$A$1:$E$261,2,0))","v":" -"},{"$f":"IF(ISERROR(VLOOKUP($A130,'טבלת קטגוריות'!$A$1:$E$261,3,0)),\" -\",VLOOKUP($A130,'טבלת קטגוריות'!$A$1:$E$261,3,0))","v":" -"},{"$f":"IF(ISERROR(VLOOKUP($A130,'טבלת קטגוריות'!$A$1:$E$261,5,0)),\" -\",VLOOKUP($A130,'טבלת קטגוריות'!$A$1:$E$261,5,0))","v":" -"}]
[null,null,{"$f":"IF(ISERROR(VLOOKUP($A131,'טבלת קטגוריות'!$A$1:$E$261,2,0)),\" -\",VLOOKUP($A131,'טבלת קטגוריות'!$A$1:$E$261,2,0))","v":" -"},{"$f":"IF(ISERROR(VLOOKUP($A131,'טבלת קטגוריות'!$A$1:$E$261,3,0)),\" -\",VLOOKUP($A131,'טבלת קטגוריות'!$A$1:$E$261,3,0))","v":" -"},{"$f":"IF(ISERROR(VLOOKUP($A131,'טבלת קטגוריות'!$A$1:$E$261,5,0)),\" -\",VLOOKUP($A131,'טבלת קטגוריות'!$A$1:$E$261,5,0))","v":" -"}]
[null,null,{"$f":"IF(ISERROR(VLOOKUP($A132,'טבלת קטגוריות'!$A$1:$E$261,2,0)),\" -\",VLOOKUP($A132,'טבלת קטגוריות'!$A$1:$E$261,2,0))","v":" -"},{"$f":"IF(ISERROR(VLOOKUP($A132,'טבלת קטגוריות'!$A$1:$E$261,3,0)),\" -\",VLOOKUP($A132,'טבלת קטגוריות'!$A$1:$E$261,3,0))","v":" -"},{"$f":"IF(ISERROR(VLOOKUP($A132,'טבלת קטגוריות'!$A$1:$E$261,5,0)),\" -\",VLOOKUP($A132,'טבלת קטגוריות'!$A$1:$E$261,5,0))","v":" -"}]
[null,null,{"$f":"IF(ISERROR(VLOOKUP($A133,'טבלת קטגוריות'!$A$1:$E$261,2,0)),\" -\",VLOOKUP($A133,'טבלת קטגוריות'!$A$1:$E$261,2,0))","v":" -"},{"$f":"IF(ISERROR(VLOOKUP($A133,'טבלת קטגוריות'!$A$1:$E$261,3,0)),\" -\",VLOOKUP($A133,'טבלת קטגוריות'!$A$1:$E$261,3,0))","v":" -"},{"$f":"IF(ISERROR(VLOOKUP($A133,'טבלת קטגוריות'!$A$1:$E$261,5,0)),\" -\",VLOOKUP($A133,'טבלת קטגוריות'!$A$1:$E$261,5,0))","v":" -"}]
[null,null,{"$f":"IF(ISERROR(VLOOKUP($A134,'טבלת קטגוריות'!$A$1:$E$261,2,0)),\" -\",VLOOKUP($A134,'טבלת קטגוריות'!$A$1:$E$261,2,0))","v":" -"},{"$f":"IF(ISERROR(VLOOKUP($A134,'טבלת קטגוריות'!$A$1:$E$261,3,0)),\" -\",VLOOKUP($A134,'טבלת קטגוריות'!$A$1:$E$261,3,0))","v":" -"},{"$f":"IF(ISERROR(VLOOKUP($A134,'טבלת קטגוריות'!$A$1:$E$261,5,0)),\" -\",VLOOKUP($A134,'טבלת קטגוריות'!$A$1:$E$261,5,0))","v":" -"}]
[null,null,{"$f":"IF(ISERROR(VLOOKUP($A135,'טבלת קטגוריות'!$A$1:$E$261,2,0)),\" -\",VLOOKUP($A135,'טבלת קטגוריות'!$A$1:$E$261,2,0))","v":" -"},{"$f":"IF(ISERROR(VLOOKUP($A135,'טבלת קטגוריות'!$A$1:$E$261,3,0)),\" -\",VLOOKUP($A135,'טבלת קטגוריות'!$A$1:$E$261,3,0))","v":" -"},{"$f":"IF(ISERROR(VLOOKUP($A135,'טבלת קטגוריות'!$A$1:$E$261,5,0)),\" -\",VLOOKUP($A135,'טבלת קטגוריות'!$A$1:$E$261,5,0))","v":" -"}]
[null,null,{"$f":"IF(ISERROR(VLOOKUP($A136,'טבלת קטגוריות'!$A$1:$E$261,2,0)),\" -\",VLOOKUP($A136,'טבלת קטגוריות'!$A$1:$E$261,2,0))","v":" -"},{"$f":"IF(ISERROR(VLOOKUP($A136,'טבלת קטגוריות'!$A$1:$E$261,3,0)),\" -\",VLOOKUP($A136,'טבלת קטגוריות'!$A$1:$E$261,3,0))","v":" -"},{"$f":"IF(ISERROR(VLOOKUP($A136,'טבלת קטגוריות'!$A$1:$E$261,5,0)),\" -\",VLOOKUP($A136,'טבלת קטגוריות'!$A$1:$E$261,5,0))","v":" -"}]
[null,null,{"$f":"IF(ISERROR(VLOOKUP($A137,'טבלת קטגוריות'!$A$1:$E$261,2,0)),\" -\",VLOOKUP($A137,'טבלת קטגוריות'!$A$1:$E$261,2,0))","v":" -"},{"$f":"IF(ISERROR(VLOOKUP($A137,'טבלת קטגוריות'!$A$1:$E$261,3,0)),\" -\",VLOOKUP($A137,'טבלת קטגוריות'!$A$1:$E$261,3,0))","v":" -"},{"$f":"IF(ISERROR(VLOOKUP($A137,'טבלת קטגוריות'!$A$1:$E$261,5,0)),\" -\",VLOOKUP($A137,'טבלת קטגוריות'!$A$1:$E$261,5,0))","v":" -"}]
[null,null,{"$f":"IF(ISERROR(VLOOKUP($A138,'טבלת קטגוריות'!$A$1:$E$261,2,0)),\" -\",VLOOKUP($A138,'טבלת קטגוריות'!$A$1:$E$261,2,0))","v":" -"},{"$f":"IF(ISERROR(VLOOKUP($A138,'טבלת קטגוריות'!$A$1:$E$261,3,0)),\" -\",VLOOKUP($A138,'טבלת קטגוריות'!$A$1:$E$261,3,0))","v":" -"},{"$f":"IF(ISERROR(VLOOKUP($A138,'טבלת קטגוריות'!$A$1:$E$261,5,0)),\" -\",VLOOKUP($A138,'טבלת קטגוריות'!$A$1:$E$261,5,0))","v":" -"}]
[null,null,{"$f":"IF(ISERROR(VLOOKUP($A139,'טבלת קטגוריות'!$A$1:$E$261,2,0)),\" -\",VLOOKUP($A139,'טבלת קטגוריות'!$A$1:$E$261,2,0))","v":" -"},{"$f":"IF(ISERROR(VLOOKUP($A139,'טבלת קטגוריות'!$A$1:$E$261,3,0)),\" -\",VLOOKUP($A139,'טבלת קטגוריות'!$A$1:$E$261,3,0))","v":" -"},{"$f":"IF(ISERROR(VLOOKUP($A139,'טבלת קטגוריות'!$A$1:$E$261,5,0)),\" -\",VLOOKUP($A139,'טבלת קטגוריות'!$A$1:$E$261,5,0))","v":" -"}]
[null,null,{"$f":"IF(ISERROR(VLOOKUP($A140,'טבלת קטגוריות'!$A$1:$E$261,2,0)),\" -\",VLOOKUP($A140,'טבלת קטגוריות'!$A$1:$E$261,2,0))","v":" -"},{"$f":"IF(ISERROR(VLOOKUP($A140,'טבלת קטגוריות'!$A$1:$E$261,3,0)),\" -\",VLOOKUP($A140,'טבלת קטגוריות'!$A$1:$E$261,3,0))","v":" -"},{"$f":"IF(ISERROR(VLOOKUP($A140,'טבלת קטגוריות'!$A$1:$E$261,5,0)),\" -\",VLOOKUP($A140,'טבלת קטגוריות'!$A$1:$E$261,5,0))","v":" -"}]
[null,null,{"$f":"IF(ISERROR(VLOOKUP($A141,'טבלת קטגוריות'!$A$1:$E$261,2,0)),\" -\",VLOOKUP($A141,'טבלת קטגוריות'!$A$1:$E$261,2,0))","v":" -"},{"$f":"IF(ISERROR(VLOOKUP($A141,'טבלת קטגוריות'!$A$1:$E$261,3,0)),\" -\",VLOOKUP($A141,'טבלת קטגוריות'!$A$1:$E$261,3,0))","v":" -"},{"$f":"IF(ISERROR(VLOOKUP($A141,'טבלת קטגוריות'!$A$1:$E$261,5,0)),\" -\",VLOOKUP($A141,'טבלת קטגוריות'!$A$1:$E$261,5,0))","v":" -"}]
[null,null,{"$f":"IF(ISERROR(VLOOKUP($A142,'טבלת קטגוריות'!$A$1:$E$261,2,0)),\" -\",VLOOKUP($A142,'טבלת קטגוריות'!$A$1:$E$261,2,0))","v":" -"},{"$f":"IF(ISERROR(VLOOKUP($A142,'טבלת קטגוריות'!$A$1:$E$261,3,0)),\" -\",VLOOKUP($A142,'טבלת קטגוריות'!$A$1:$E$261,3,0))","v":" -"},{"$f":"IF(ISERROR(VLOOKUP($A142,'טבלת קטגוריות'!$A$1:$E$261,5,0)),\" -\",VLOOKUP($A142,'טבלת קטגוריות'!$A$1:$E$261,5,0))","v":" -"}]
[null,null,{"$f":"IF(ISERROR(VLOOKUP($A143,'טבלת קטגוריות'!$A$1:$E$261,2,0)),\" -\",VLOOKUP($A143,'טבלת קטגוריות'!$A$1:$E$261,2,0))","v":" -"},{"$f":"IF(ISERROR(VLOOKUP($A143,'טבלת קטגוריות'!$A$1:$E$261,3,0)),\" -\",VLOOKUP($A143,'טבלת קטגוריות'!$A$1:$E$261,3,0))","v":" -"},{"$f":"IF(ISERROR(VLOOKUP($A143,'טבלת קטגוריות'!$A$1:$E$261,5,0)),\" -\",VLOOKUP($A143,'טבלת קטגוריות'!$A$1:$E$261,5,0))","v":" -"}]
[null,null,{"$f":"IF(ISERROR(VLOOKUP($A144,'טבלת קטגוריות'!$A$1:$E$261,2,0)),\" -\",VLOOKUP($A144,'טבלת קטגוריות'!$A$1:$E$261,2,0))","v":" -"},{"$f":"IF(ISERROR(VLOOKUP($A144,'טבלת קטגוריות'!$A$1:$E$261,3,0)),\" -\",VLOOKUP($A144,'טבלת קטגוריות'!$A$1:$E$261,3,0))","v":" -"},{"$f":"IF(ISERROR(VLOOKUP($A144,'טבלת קטגוריות'!$A$1:$E$261,5,0)),\" -\",VLOOKUP($A144,'טבלת קטגוריות'!$A$1:$E$261,5,0))","v":" -"}]
[null,null,{"$f":"IF(ISERROR(VLOOKUP($A145,'טבלת קטגוריות'!$A$1:$E$261,2,0)),\" -\",VLOOKUP($A145,'טבלת קטגוריות'!$A$1:$E$261,2,0))","v":" -"},{"$f":"IF(ISERROR(VLOOKUP($A145,'טבלת קטגוריות'!$A$1:$E$261,3,0)),\" -\",VLOOKUP($A145,'טבלת קטגוריות'!$A$1:$E$261,3,0))","v":" -"},{"$f":"IF(ISERROR(VLOOKUP($A145,'טבלת קטגוריות'!$A$1:$E$261,5,0)),\" -\",VLOOKUP($A145,'טבלת קטגוריות'!$A$1:$E$261,5,0))","v":" -"}]
[null,null,{"$f":"IF(ISERROR(VLOOKUP($A146,'טבלת קטגוריות'!$A$1:$E$261,2,0)),\" -\",VLOOKUP($A146,'טבלת קטגוריות'!$A$1:$E$261,2,0))","v":" -"},{"$f":"IF(ISERROR(VLOOKUP($A146,'טבלת קטגוריות'!$A$1:$E$261,3,0)),\" -\",VLOOKUP($A146,'טבלת קטגוריות'!$A$1:$E$261,3,0))","v":" -"},{"$f":"IF(ISERROR(VLOOKUP($A146,'טבלת קטגוריות'!$A$1:$E$261,5,0)),\" -\",VLOOKUP($A146,'טבלת קטגוריות'!$A$1:$E$261,5,0))","v":" -"}]
[null,null,{"$f":"IF(ISERROR(VLOOKUP($A147,'טבלת קטגוריות'!$A$1:$E$261,2,0)),\" -\",VLOOKUP($A147,'טבלת קטגוריות'!$A$1:$E$261,2,0))","v":" -"},{"$f":"IF(ISERROR(VLOOKUP($A147,'טבלת קטגוריות'!$A$1:$E$261,3,0)),\" -\",VLOOKUP($A147,'טבלת קטגוריות'!$A$1:$E$261,3,0))","v":" -"},{"$f":"IF(ISERROR(VLOOKUP($A147,'טבלת קטגוריות'!$A$1:$E$261,5,0)),\" -\",VLOOKUP($A147,'טבלת קטגוריות'!$A$1:$E$261,5,0))","v":" -"}]
[null,null,{"$f":"IF(ISERROR(VLOOKUP($A148,'טבלת קטגוריות'!$A$1:$E$261,2,0)),\" -\",VLOOKUP($A148,'טבלת קטגוריות'!$A$1:$E$261,2,0))","v":" -"},{"$f":"IF(ISERROR(VLOOKUP($A148,'טבלת קטגוריות'!$A$1:$E$261,3,0)),\" -\",VLOOKUP($A148,'טבלת קטגוריות'!$A$1:$E$261,3,0))","v":" -"},{"$f":"IF(ISERROR(VLOOKUP($A148,'טבלת קטגוריות'!$A$1:$E$261,5,0)),\" -\",VLOOKUP($A148,'טבלת קטגוריות'!$A$1:$E$261,5,0))","v":" -"}]
[null,null,{"$f":"IF(ISERROR(VLOOKUP($A149,'טבלת קטגוריות'!$A$1:$E$261,2,0)),\" -\",VLOOKUP($A149,'טבלת קטגוריות'!$A$1:$E$261,2,0))","v":" -"},{"$f":"IF(ISERROR(VLOOKUP($A149,'טבלת קטגוריות'!$A$1:$E$261,3,0)),\" -\",VLOOKUP($A149,'טבלת קטגוריות'!$A$1:$E$261,3,0))","v":" -"},{"$f":"IF(ISERROR(VLOOKUP($A149,'טבלת קטגוריות'!$A$1:$E$261,5,0)),\" -\",VLOOKUP($A149,'טבלת קטגוריות'!$A$1:$E$261,5,0))","v":" -"}]
[null,null,{"$f":"IF(ISERROR(VLOOKUP($A150,'טבלת קטגוריות'!$A$1:$E$261,2,0)),\" -\",VLOOKUP($A150,'טבלת קטגוריות'!$A$1:$E$261,2,0))","v":" -"},{"$f":"IF(ISERROR(VLOOKUP($A150,'טבלת קטגוריות'!$A$1:$E$261,3,0)),\" -\",VLOOKUP($A150,'טבלת קטגוריות'!$A$1:$E$261,3,0))","v":" -"},{"$f":"IF(ISERROR(VLOOKUP($A150,'טבלת קטגוריות'!$A$1:$E$261,5,0)),\" -\",VLOOKUP($A150,'טבלת קטגוריות'!$A$1:$E$261,5,0))","v":" -"}]
[null,null,{"$f":"IF(ISERROR(VLOOKUP($A151,'טבלת קטגוריות'!$A$1:$E$261,2,0)),\" -\",VLOOKUP($A151,'טבלת קטגוריות'!$A$1:$E$261,2,0))","v":" -"},{"$f":"IF(ISERROR(VLOOKUP($A151,'טבלת קטגוריות'!$A$1:$E$261,3,0)),\" -\",VLOOKUP($A151,'טבלת קטגוריות'!$A$1:$E$261,3,0))","v":" -"},{"$f":"IF(ISERROR(VLOOKUP($A151,'טבלת קטגוריות'!$A$1:$E$261,5,0)),\" -\",VLOOKUP($A151,'טבלת קטגוריות'!$A$1:$E$261,5,0))","v":" -"}]
[null,null,{"$f":"IF(ISERROR(VLOOKUP($A152,'טבלת קטגוריות'!$A$1:$E$261,2,0)),\" -\",VLOOKUP($A152,'טבלת קטגוריות'!$A$1:$E$261,2,0))","v":" -"},{"$f":"IF(ISERROR(VLOOKUP($A152,'טבלת קטגוריות'!$A$1:$E$261,3,0)),\" -\",VLOOKUP($A152,'טבלת קטגוריות'!$A$1:$E$261,3,0))","v":" -"},{"$f":"IF(ISERROR(VLOOKUP($A152,'טבלת קטגוריות'!$A$1:$E$261,5,0)),\" -\",VLOOKUP($A152,'טבלת קטגוריות'!$A$1:$E$261,5,0))","v":" -"}]
[null,null,{"$f":"IF(ISERROR(VLOOKUP($A153,'טבלת קטגוריות'!$A$1:$E$261,2,0)),\" -\",VLOOKUP($A153,'טבלת קטגוריות'!$A$1:$E$261,2,0))","v":" -"},{"$f":"IF(ISERROR(VLOOKUP($A153,'טבלת קטגוריות'!$A$1:$E$261,3,0)),\" -\",VLOOKUP($A153,'טבלת קטגוריות'!$A$1:$E$261,3,0))","v":" -"},{"$f":"IF(ISERROR(VLOOKUP($A153,'טבלת קטגוריות'!$A$1:$E$261,5,0)),\" -\",VLOOKUP($A153,'טבלת קטגוריות'!$A$1:$E$261,5,0))","v":" -"}]
[null,null,{"$f":"IF(ISERROR(VLOOKUP($A154,'טבלת קטגוריות'!$A$1:$E$261,2,0)),\" -\",VLOOKUP($A154,'טבלת קטגוריות'!$A$1:$E$261,2,0))","v":" -"},{"$f":"IF(ISERROR(VLOOKUP($A154,'טבלת קטגוריות'!$A$1:$E$261,3,0)),\" -\",VLOOKUP($A154,'טבלת קטגוריות'!$A$1:$E$261,3,0))","v":" -"},{"$f":"IF(ISERROR(VLOOKUP($A154,'טבלת קטגוריות'!$A$1:$E$261,5,0)),\" -\",VLOOKUP($A154,'טבלת קטגוריות'!$A$1:$E$261,5,0))","v":" -"}]
[null,null,{"$f":"IF(ISERROR(VLOOKUP($A155,'טבלת קטגוריות'!$A$1:$E$261,2,0)),\" -\",VLOOKUP($A155,'טבלת קטגוריות'!$A$1:$E$261,2,0))","v":" -"},{"$f":"IF(ISERROR(VLOOKUP($A155,'טבלת קטגוריות'!$A$1:$E$261,3,0)),\" -\",VLOOKUP($A155,'טבלת קטגוריות'!$A$1:$E$261,3,0))","v":" -"},{"$f":"IF(ISERROR(VLOOKUP($A155,'טבלת קטגוריות'!$A$1:$E$261,5,0)),\" -\",VLOOKUP($A155,'טבלת קטגוריות'!$A$1:$E$261,5,0))","v":" -"}]
[null,null,{"$f":"IF(ISERROR(VLOOKUP($A156,'טבלת קטגוריות'!$A$1:$E$261,2,0)),\" -\",VLOOKUP($A156,'טבלת קטגוריות'!$A$1:$E$261,2,0))","v":" -"},{"$f":"IF(ISERROR(VLOOKUP($A156,'טבלת קטגוריות'!$A$1:$E$261,3,0)),\" -\",VLOOKUP($A156,'טבלת קטגוריות'!$A$1:$E$261,3,0))","v":" -"},{"$f":"IF(ISERROR(VLOOKUP($A156,'טבלת קטגוריות'!$A$1:$E$261,5,0)),\" -\",VLOOKUP($A156,'טבלת קטגוריות'!$A$1:$E$261,5,0))","v":" -"}]
[null,null,{"$f":"IF(ISERROR(VLOOKUP($A157,'טבלת קטגוריות'!$A$1:$E$261,2,0)),\" -\",VLOOKUP($A157,'טבלת קטגוריות'!$A$1:$E$261,2,0))","v":" -"},{"$f":"IF(ISERROR(VLOOKUP($A157,'טבלת קטגוריות'!$A$1:$E$261,3,0)),\" -\",VLOOKUP($A157,'טבלת קטגוריות'!$A$1:$E$261,3,0))","v":" -"},{"$f":"IF(ISERROR(VLOOKUP($A157,'טבלת קטגוריות'!$A$1:$E$261,5,0)),\" -\",VLOOKUP($A157,'טבלת קטגוריות'!$A$1:$E$261,5,0))","v":" -"}]
[null,null,{"$f":"IF(ISERROR(VLOOKUP($A158,'טבלת קטגוריות'!$A$1:$E$261,2,0)),\" -\",VLOOKUP($A158,'טבלת קטגוריות'!$A$1:$E$261,2,0))","v":" -"},{"$f":"IF(ISERROR(VLOOKUP($A158,'טבלת קטגוריות'!$A$1:$E$261,3,0)),\" -\",VLOOKUP($A158,'טבלת קטגוריות'!$A$1:$E$261,3,0))","v":" -"},{"$f":"IF(ISERROR(VLOOKUP($A158,'טבלת קטגוריות'!$A$1:$E$261,5,0)),\" -\",VLOOKUP($A158,'טבלת קטגוריות'!$A$1:$E$261,5,0))","v":" -"}]
[null,null,{"$f":"IF(ISERROR(VLOOKUP($A159,'טבלת קטגוריות'!$A$1:$E$261,2,0)),\" -\",VLOOKUP($A159,'טבלת קטגוריות'!$A$1:$E$261,2,0))","v":" -"},{"$f":"IF(ISERROR(VLOOKUP($A159,'טבלת קטגוריות'!$A$1:$E$261,3,0)),\" -\",VLOOKUP($A159,'טבלת קטגוריות'!$A$1:$E$261,3,0))","v":" -"},{"$f":"IF(ISERROR(VLOOKUP($A159,'טבלת קטגוריות'!$A$1:$E$261,5,0)),\" -\",VLOOKUP($A159,'טבלת קטגוריות'!$A$1:$E$261,5,0))","v":" -"}]
[null,null,{"$f":"IF(ISERROR(VLOOKUP($A160,'טבלת קטגוריות'!$A$1:$E$261,2,0)),\" -\",VLOOKUP($A160,'טבלת קטגוריות'!$A$1:$E$261,2,0))","v":" -"},{"$f":"IF(ISERROR(VLOOKUP($A160,'טבלת קטגוריות'!$A$1:$E$261,3,0)),\" -\",VLOOKUP($A160,'טבלת קטגוריות'!$A$1:$E$261,3,0))","v":" -"},{"$f":"IF(ISERROR(VLOOKUP($A160,'טבלת קטגוריות'!$A$1:$E$261,5,0)),\" -\",VLOOKUP($A160,'טבלת קטגוריות'!$A$1:$E$261,5,0))","v":" -"}]
[null,null,{"$f":"IF(ISERROR(VLOOKUP($A161,'טבלת קטגוריות'!$A$1:$E$261,2,0)),\" -\",VLOOKUP($A161,'טבלת קטגוריות'!$A$1:$E$261,2,0))","v":" -"},{"$f":"IF(ISERROR(VLOOKUP($A161,'טבלת קטגוריות'!$A$1:$E$261,3,0)),\" -\",VLOOKUP($A161,'טבלת קטגוריות'!$A$1:$E$261,3,0))","v":" -"},{"$f":"IF(ISERROR(VLOOKUP($A161,'טבלת קטגוריות'!$A$1:$E$261,5,0)),\" -\",VLOOKUP($A161,'טבלת קטגוריות'!$A$1:$E$261,5,0))","v":" -"}]
[null,null,{"$f":"IF(ISERROR(VLOOKUP($A162,'טבלת קטגוריות'!$A$1:$E$261,2,0)),\" -\",VLOOKUP($A162,'טבלת קטגוריות'!$A$1:$E$261,2,0))","v":" -"},{"$f":"IF(ISERROR(VLOOKUP($A162,'טבלת קטגוריות'!$A$1:$E$261,3,0)),\" -\",VLOOKUP($A162,'טבלת קטגוריות'!$A$1:$E$261,3,0))","v":" -"},{"$f":"IF(ISERROR(VLOOKUP($A162,'טבלת קטגוריות'!$A$1:$E$261,5,0)),\" -\",VLOOKUP($A162,'טבלת קטגוריות'!$A$1:$E$261,5,0))","v":" -"}]
[null,null,{"$f":"IF(ISERROR(VLOOKUP($A163,'טבלת קטגוריות'!$A$1:$E$261,2,0)),\" -\",VLOOKUP($A163,'טבלת קטגוריות'!$A$1:$E$261,2,0))","v":" -"},{"$f":"IF(ISERROR(VLOOKUP($A163,'טבלת קטגוריות'!$A$1:$E$261,3,0)),\" -\",VLOOKUP($A163,'טבלת קטגוריות'!$A$1:$E$261,3,0))","v":" -"},{"$f":"IF(ISERROR(VLOOKUP($A163,'טבלת קטגוריות'!$A$1:$E$261,5,0)),\" -\",VLOOKUP($A163,'טבלת קטגוריות'!$A$1:$E$261,5,0))","v":" -"}]
[null,null,{"$f":"IF(ISERROR(VLOOKUP($A164,'טבלת קטגוריות'!$A$1:$E$261,2,0)),\" -\",VLOOKUP($A164,'טבלת קטגוריות'!$A$1:$E$261,2,0))","v":" -"},{"$f":"IF(ISERROR(VLOOKUP($A164,'טבלת קטגוריות'!$A$1:$E$261,3,0)),\" -\",VLOOKUP($A164,'טבלת קטגוריות'!$A$1:$E$261,3,0))","v":" -"},{"$f":"IF(ISERROR(VLOOKUP($A164,'טבלת קטגוריות'!$A$1:$E$261,5,0)),\" -\",VLOOKUP($A164,'טבלת קטגוריות'!$A$1:$E$261,5,0))","v":" -"}]
[null,null,{"$f":"IF(ISERROR(VLOOKUP($A165,'טבלת קטגוריות'!$A$1:$E$261,2,0)),\" -\",VLOOKUP($A165,'טבלת קטגוריות'!$A$1:$E$261,2,0))","v":" -"},{"$f":"IF(ISERROR(VLOOKUP($A165,'טבלת קטגוריות'!$A$1:$E$261,3,0)),\" -\",VLOOKUP($A165,'טבלת קטגוריות'!$A$1:$E$261,3,0))","v":" -"},{"$f":"IF(ISERROR(VLOOKUP($A165,'טבלת קטגוריות'!$A$1:$E$261,5,0)),\" -\",VLOOKUP($A165,'טבלת קטגוריות'!$A$1:$E$261,5,0))","v":" -"}]
[null,null,{"$f":"IF(ISERROR(VLOOKUP($A166,'טבלת קטגוריות'!$A$1:$E$261,2,0)),\" -\",VLOOKUP($A166,'טבלת קטגוריות'!$A$1:$E$261,2,0))","v":" -"},{"$f":"IF(ISERROR(VLOOKUP($A166,'טבלת קטגוריות'!$A$1:$E$261,3,0)),\" -\",VLOOKUP($A166,'טבלת קטגוריות'!$A$1:$E$261,3,0))","v":" -"},{"$f":"IF(ISERROR(VLOOKUP($A166,'טבלת קטגוריות'!$A$1:$E$261,5,0)),\" -\",VLOOKUP($A166,'טבלת קטגוריות'!$A$1:$E$261,5,0))","v":" -"}]
[null,null,{"$f":"IF(ISERROR(VLOOKUP($A167,'טבלת קטגוריות'!$A$1:$E$261,2,0)),\" -\",VLOOKUP($A167,'טבלת קטגוריות'!$A$1:$E$261,2,0))","v":" -"},{"$f":"IF(ISERROR(VLOOKUP($A167,'טבלת קטגוריות'!$A$1:$E$261,3,0)),\" -\",VLOOKUP($A167,'טבלת קטגוריות'!$A$1:$E$261,3,0))","v":" -"},{"$f":"IF(ISERROR(VLOOKUP($A167,'טבלת קטגוריות'!$A$1:$E$261,5,0)),\" -\",VLOOKUP($A167,'טבלת קטגוריות'!$A$1:$E$261,5,0))","v":" -"}]
[null,null,{"$f":"IF(ISERROR(VLOOKUP($A168,'טבלת קטגוריות'!$A$1:$E$261,2,0)),\" -\",VLOOKUP($A168,'טבלת קטגוריות'!$A$1:$E$261,2,0))","v":" -"},{"$f":"IF(ISERROR(VLOOKUP($A168,'טבלת קטגוריות'!$A$1:$E$261,3,0)),\" -\",VLOOKUP($A168,'טבלת קטגוריות'!$A$1:$E$261,3,0))","v":" -"},{"$f":"IF(ISERROR(VLOOKUP($A168,'טבלת קטגוריות'!$A$1:$E$261,5,0)),\" -\",VLOOKUP($A168,'טבלת קטגוריות'!$A$1:$E$261,5,0))","v":" -"}]
[null,null,{"$f":"IF(ISERROR(VLOOKUP($A169,'טבלת קטגוריות'!$A$1:$E$261,2,0)),\" -\",VLOOKUP($A169,'טבלת קטגוריות'!$A$1:$E$261,2,0))","v":" -"},{"$f":"IF(ISERROR(VLOOKUP($A169,'טבלת קטגוריות'!$A$1:$E$261,3,0)),\" -\",VLOOKUP($A169,'טבלת קטגוריות'!$A$1:$E$261,3,0))","v":" -"},{"$f":"IF(ISERROR(VLOOKUP($A169,'טבלת קטגוריות'!$A$1:$E$261,5,0)),\" -\",VLOOKUP($A169,'טבלת קטגוריות'!$A$1:$E$261,5,0))","v":" -"}]
[null,null,{"$f":"IF(ISERROR(VLOOKUP($A170,'טבלת קטגוריות'!$A$1:$E$261,2,0)),\" -\",VLOOKUP($A170,'טבלת קטגוריות'!$A$1:$E$261,2,0))","v":" -"},{"$f":"IF(ISERROR(VLOOKUP($A170,'טבלת קטגוריות'!$A$1:$E$261,3,0)),\" -\",VLOOKUP($A170,'טבלת קטגוריות'!$A$1:$E$261,3,0))","v":" -"},{"$f":"IF(ISERROR(VLOOKUP($A170,'טבלת קטגוריות'!$A$1:$E$261,5,0)),\" -\",VLOOKUP($A170,'טבלת קטגוריות'!$A$1:$E$261,5,0))","v":" -"}]
[null,null,{"$f":"IF(ISERROR(VLOOKUP($A171,'טבלת קטגוריות'!$A$1:$E$261,2,0)),\" -\",VLOOKUP($A171,'טבלת קטגוריות'!$A$1:$E$261,2,0))","v":" -"},{"$f":"IF(ISERROR(VLOOKUP($A171,'טבלת קטגוריות'!$A$1:$E$261,3,0)),\" -\",VLOOKUP($A171,'טבלת קטגוריות'!$A$1:$E$261,3,0))","v":" -"},{"$f":"IF(ISERROR(VLOOKUP($A171,'טבלת קטגוריות'!$A$1:$E$261,5,0)),\" -\",VLOOKUP($A171,'טבלת קטגוריות'!$A$1:$E$261,5,0))","v":" -"}]
[null,null,{"$f":"IF(ISERROR(VLOOKUP($A172,'טבלת קטגוריות'!$A$1:$E$261,2,0)),\" -\",VLOOKUP($A172,'טבלת קטגוריות'!$A$1:$E$261,2,0))","v":" -"},{"$f":"IF(ISERROR(VLOOKUP($A172,'טבלת קטגוריות'!$A$1:$E$261,3,0)),\" -\",VLOOKUP($A172,'טבלת קטגוריות'!$A$1:$E$261,3,0))","v":" -"},{"$f":"IF(ISERROR(VLOOKUP($A172,'טבלת קטגוריות'!$A$1:$E$261,5,0)),\" -\",VLOOKUP($A172,'טבלת קטגוריות'!$A$1:$E$261,5,0))","v":" -"}]
[null,null,{"$f":"IF(ISERROR(VLOOKUP($A173,'טבלת קטגוריות'!$A$1:$E$261,2,0)),\" -\",VLOOKUP($A173,'טבלת קטגוריות'!$A$1:$E$261,2,0))","v":" -"},{"$f":"IF(ISERROR(VLOOKUP($A173,'טבלת קטגוריות'!$A$1:$E$261,3,0)),\" -\",VLOOKUP($A173,'טבלת קטגוריות'!$A$1:$E$261,3,0))","v":" -"},{"$f":"IF(ISERROR(VLOOKUP($A173,'טבלת קטגוריות'!$A$1:$E$261,5,0)),\" -\",VLOOKUP($A173,'טבלת קטגוריות'!$A$1:$E$261,5,0))","v":" -"}]
[null,null,{"$f":"IF(ISERROR(VLOOKUP($A174,'טבלת קטגוריות'!$A$1:$E$261,2,0)),\" -\",VLOOKUP($A174,'טבלת קטגוריות'!$A$1:$E$261,2,0))","v":" -"},{"$f":"IF(ISERROR(VLOOKUP($A174,'טבלת קטגוריות'!$A$1:$E$261,3,0)),\" -\",VLOOKUP($A174,'טבלת קטגוריות'!$A$1:$E$261,3,0))","v":" -"},{"$f":"IF(ISERROR(VLOOKUP($A174,'טבלת קטגוריות'!$A$1:$E$261,5,0)),\" -\",VLOOKUP($A174,'טבלת קטגוריות'!$A$1:$E$261,5,0))","v":" -"}]
[null,null,{"$f":"IF(ISERROR(VLOOKUP($A175,'טבלת קטגוריות'!$A$1:$E$261,2,0)),\" -\",VLOOKUP($A175,'טבלת קטגוריות'!$A$1:$E$261,2,0))","v":" -"},{"$f":"IF(ISERROR(VLOOKUP($A175,'טבלת קטגוריות'!$A$1:$E$261,3,0)),\" -\",VLOOKUP($A175,'טבלת קטגוריות'!$A$1:$E$261,3,0))","v":" -"},{"$f":"IF(ISERROR(VLOOKUP($A175,'טבלת קטגוריות'!$A$1:$E$261,5,0)),\" -\",VLOOKUP($A175,'טבלת קטגוריות'!$A$1:$E$261,5,0))","v":" -"}]
[null,null,{"$f":"IF(ISERROR(VLOOKUP($A176,'טבלת קטגוריות'!$A$1:$E$261,2,0)),\" -\",VLOOKUP($A176,'טבלת קטגוריות'!$A$1:$E$261,2,0))","v":" -"},{"$f":"IF(ISERROR(VLOOKUP($A176,'טבלת קטגוריות'!$A$1:$E$261,3,0)),\" -\",VLOOKUP($A176,'טבלת קטגוריות'!$A$1:$E$261,3,0))","v":" -"},{"$f":"IF(ISERROR(VLOOKUP($A176,'טבלת קטגוריות'!$A$1:$E$261,5,0)),\" -\",VLOOKUP($A176,'טבלת קטגוריות'!$A$1:$E$261,5,0))","v":" -"}]
[null,null,{"$f":"IF(ISERROR(VLOOKUP($A177,'טבלת קטגוריות'!$A$1:$E$261,2,0)),\" -\",VLOOKUP($A177,'טבלת קטגוריות'!$A$1:$E$261,2,0))","v":" -"},{"$f":"IF(ISERROR(VLOOKUP($A177,'טבלת קטגוריות'!$A$1:$E$261,3,0)),\" -\",VLOOKUP($A177,'טבלת קטגוריות'!$A$1:$E$261,3,0))","v":" -"},{"$f":"IF(ISERROR(VLOOKUP($A177,'טבלת קטגוריות'!$A$1:$E$261,5,0)),\" -\",VLOOKUP($A177,'טבלת קטגוריות'!$A$1:$E$261,5,0))","v":" -"}]
[null,null,{"$f":"IF(ISERROR(VLOOKUP($A178,'טבלת קטגוריות'!$A$1:$E$261,2,0)),\" -\",VLOOKUP($A178,'טבלת קטגוריות'!$A$1:$E$261,2,0))","v":" -"},{"$f":"IF(ISERROR(VLOOKUP($A178,'טבלת קטגוריות'!$A$1:$E$261,3,0)),\" -\",VLOOKUP($A178,'טבלת קטגוריות'!$A$1:$E$261,3,0))","v":" -"},{"$f":"IF(ISERROR(VLOOKUP($A178,'טבלת קטגוריות'!$A$1:$E$261,5,0)),\" -\",VLOOKUP($A178,'טבלת קטגוריות'!$A$1:$E$261,5,0))","v":" -"}]
[null,null,{"$f":"IF(ISERROR(VLOOKUP($A179,'טבלת קטגוריות'!$A$1:$E$261,2,0)),\" -\",VLOOKUP($A179,'טבלת קטגוריות'!$A$1:$E$261,2,0))","v":" -"},{"$f":"IF(ISERROR(VLOOKUP($A179,'טבלת קטגוריות'!$A$1:$E$261,3,0)),\" -\",VLOOKUP($A179,'טבלת קטגוריות'!$A$1:$E$261,3,0))","v":" -"},{"$f":"IF(ISERROR(VLOOKUP($A179,'טבלת קטגוריות'!$A$1:$E$261,5,0)),\" -\",VLOOKUP($A179,'טבלת קטגוריות'!$A$1:$E$261,5,0))","v":" -"}]
[null,null,{"$f":"IF(ISERROR(VLOOKUP($A180,'טבלת קטגוריות'!$A$1:$E$261,2,0)),\" -\",VLOOKUP($A180,'טבלת קטגוריות'!$A$1:$E$261,2,0))","v":" -"},{"$f":"IF(ISERROR(VLOOKUP($A180,'טבלת קטגוריות'!$A$1:$E$261,3,0)),\" -\",VLOOKUP($A180,'טבלת קטגוריות'!$A$1:$E$261,3,0))","v":" -"},{"$f":"IF(ISERROR(VLOOKUP($A180,'טבלת קטגוריות'!$A$1:$E$261,5,0)),\" -\",VLOOKUP($A180,'טבלת קטגוריות'!$A$1:$E$261,5,0))","v":" -"}]
[null,null,{"$f":"IF(ISERROR(VLOOKUP($A181,'טבלת קטגוריות'!$A$1:$E$261,2,0)),\" -\",VLOOKUP($A181,'טבלת קטגוריות'!$A$1:$E$261,2,0))","v":" -"},{"$f":"IF(ISERROR(VLOOKUP($A181,'טבלת קטגוריות'!$A$1:$E$261,3,0)),\" -\",VLOOKUP($A181,'טבלת קטגוריות'!$A$1:$E$261,3,0))","v":" -"},{"$f":"IF(ISERROR(VLOOKUP($A181,'טבלת קטגוריות'!$A$1:$E$261,5,0)),\" -\",VLOOKUP($A181,'טבלת קטגוריות'!$A$1:$E$261,5,0))","v":" -"}]
[null,null,{"$f":"IF(ISERROR(VLOOKUP($A182,'טבלת קטגוריות'!$A$1:$E$261,2,0)),\" -\",VLOOKUP($A182,'טבלת קטגוריות'!$A$1:$E$261,2,0))","v":" -"},{"$f":"IF(ISERROR(VLOOKUP($A182,'טבלת קטגוריות'!$A$1:$E$261,3,0)),\" -\",VLOOKUP($A182,'טבלת קטגוריות'!$A$1:$E$261,3,0))","v":" -"},{"$f":"IF(ISERROR(VLOOKUP($A182,'טבלת קטגוריות'!$A$1:$E$261,5,0)),\" -\",VLOOKUP($A182,'טבלת קטגוריות'!$A$1:$E$261,5,0))","v":" -"}]
[null,null,{"$f":"IF(ISERROR(VLOOKUP($A183,'טבלת קטגוריות'!$A$1:$E$261,2,0)),\" -\",VLOOKUP($A183,'טבלת קטגוריות'!$A$1:$E$261,2,0))","v":" -"},{"$f":"IF(ISERROR(VLOOKUP($A183,'טבלת קטגוריות'!$A$1:$E$261,3,0)),\" -\",VLOOKUP($A183,'טבלת קטגוריות'!$A$1:$E$261,3,0))","v":" -"},{"$f":"IF(ISERROR(VLOOKUP($A183,'טבלת קטגוריות'!$A$1:$E$261,5,0)),\" -\",VLOOKUP($A183,'טבלת קטגוריות'!$A$1:$E$261,5,0))","v":" -"}]
[null,null,{"$f":"IF(ISERROR(VLOOKUP($A184,'טבלת קטגוריות'!$A$1:$E$261,2,0)),\" -\",VLOOKUP($A184,'טבלת קטגוריות'!$A$1:$E$261,2,0))","v":" -"},{"$f":"IF(ISERROR(VLOOKUP($A184,'טבלת קטגוריות'!$A$1:$E$261,3,0)),\" -\",VLOOKUP($A184,'טבלת קטגוריות'!$A$1:$E$261,3,0))","v":" -"},{"$f":"IF(ISERROR(VLOOKUP($A184,'טבלת קטגוריות'!$A$1:$E$261,5,0)),\" -\",VLOOKUP($A184,'טבלת קטגוריות'!$A$1:$E$261,5,0))","v":" -"}]
[null,null,{"$f":"IF(ISERROR(VLOOKUP($A185,'טבלת קטגוריות'!$A$1:$E$261,2,0)),\" -\",VLOOKUP($A185,'טבלת קטגוריות'!$A$1:$E$261,2,0))","v":" -"},{"$f":"IF(ISERROR(VLOOKUP($A185,'טבלת קטגוריות'!$A$1:$E$261,3,0)),\" -\",VLOOKUP($A185,'טבלת קטגוריות'!$A$1:$E$261,3,0))","v":" -"},{"$f":"IF(ISERROR(VLOOKUP($A185,'טבלת קטגוריות'!$A$1:$E$261,5,0)),\" -\",VLOOKUP($A185,'טבלת קטגוריות'!$A$1:$E$261,5,0))","v":" -"}]
[null,null,{"$f":"IF(ISERROR(VLOOKUP($A186,'טבלת קטגוריות'!$A$1:$E$261,2,0)),\" -\",VLOOKUP($A186,'טבלת קטגוריות'!$A$1:$E$261,2,0))","v":" -"},{"$f":"IF(ISERROR(VLOOKUP($A186,'טבלת קטגוריות'!$A$1:$E$261,3,0)),\" -\",VLOOKUP($A186,'טבלת קטגוריות'!$A$1:$E$261,3,0))","v":" -"},{"$f":"IF(ISERROR(VLOOKUP($A186,'טבלת קטגוריות'!$A$1:$E$261,5,0)),\" -\",VLOOKUP($A186,'טבלת קטגוריות'!$A$1:$E$261,5,0))","v":" -"}]
[null,null,{"$f":"IF(ISERROR(VLOOKUP($A187,'טבלת קטגוריות'!$A$1:$E$261,2,0)),\" -\",VLOOKUP($A187,'טבלת קטגוריות'!$A$1:$E$261,2,0))","v":" -"},{"$f":"IF(ISERROR(VLOOKUP($A187,'טבלת קטגוריות'!$A$1:$E$261,3,0)),\" -\",VLOOKUP($A187,'טבלת קטגוריות'!$A$1:$E$261,3,0))","v":" -"},{"$f":"IF(ISERROR(VLOOKUP($A187,'טבלת קטגוריות'!$A$1:$E$261,5,0)),\" -\",VLOOKUP($A187,'טבלת קטגוריות'!$A$1:$E$261,5,0))","v":" -"}]
[null,null,{"$f":"IF(ISERROR(VLOOKUP($A188,'טבלת קטגוריות'!$A$1:$E$261,2,0)),\" -\",VLOOKUP($A188,'טבלת קטגוריות'!$A$1:$E$261,2,0))","v":" -"},{"$f":"IF(ISERROR(VLOOKUP($A188,'טבלת קטגוריות'!$A$1:$E$261,3,0)),\" -\",VLOOKUP($A188,'טבלת קטגוריות'!$A$1:$E$261,3,0))","v":" -"},{"$f":"IF(ISERROR(VLOOKUP($A188,'טבלת קטגוריות'!$A$1:$E$261,5,0)),\" -\",VLOOKUP($A188,'טבלת קטגוריות'!$A$1:$E$261,5,0))","v":" -"}]
[null,null,{"$f":"IF(ISERROR(VLOOKUP($A189,'טבלת קטגוריות'!$A$1:$E$261,2,0)),\" -\",VLOOKUP($A189,'טבלת קטגוריות'!$A$1:$E$261,2,0))","v":" -"},{"$f":"IF(ISERROR(VLOOKUP($A189,'טבלת קטגוריות'!$A$1:$E$261,3,0)),\" -\",VLOOKUP($A189,'טבלת קטגוריות'!$A$1:$E$261,3,0))","v":" -"},{"$f":"IF(ISERROR(VLOOKUP($A189,'טבלת קטגוריות'!$A$1:$E$261,5,0)),\" -\",VLOOKUP($A189,'טבלת קטגוריות'!$A$1:$E$261,5,0))","v":" -"}]
[null,null,{"$f":"IF(ISERROR(VLOOKUP($A190,'טבלת קטגוריות'!$A$1:$E$261,2,0)),\" -\",VLOOKUP($A190,'טבלת קטגוריות'!$A$1:$E$261,2,0))","v":" -"},{"$f":"IF(ISERROR(VLOOKUP($A190,'טבלת קטגוריות'!$A$1:$E$261,3,0)),\" -\",VLOOKUP($A190,'טבלת קטגוריות'!$A$1:$E$261,3,0))","v":" -"},{"$f":"IF(ISERROR(VLOOKUP($A190,'טבלת קטגוריות'!$A$1:$E$261,5,0)),\" -\",VLOOKUP($A190,'טבלת קטגוריות'!$A$1:$E$261,5,0))","v":" -"}]
[null,null,{"$f":"IF(ISERROR(VLOOKUP($A191,'טבלת קטגוריות'!$A$1:$E$261,2,0)),\" -\",VLOOKUP($A191,'טבלת קטגוריות'!$A$1:$E$261,2,0))","v":" -"},{"$f":"IF(ISERROR(VLOOKUP($A191,'טבלת קטגוריות'!$A$1:$E$261,3,0)),\" -\",VLOOKUP($A191,'טבלת קטגוריות'!$A$1:$E$261,3,0))","v":" -"},{"$f":"IF(ISERROR(VLOOKUP($A191,'טבלת קטגוריות'!$A$1:$E$261,5,0)),\" -\",VLOOKUP($A191,'טבלת קטגוריות'!$A$1:$E$261,5,0))","v":" -"}]
[null,null,{"$f":"IF(ISERROR(VLOOKUP($A192,'טבלת קטגוריות'!$A$1:$E$261,2,0)),\" -\",VLOOKUP($A192,'טבלת קטגוריות'!$A$1:$E$261,2,0))","v":" -"},{"$f":"IF(ISERROR(VLOOKUP($A192,'טבלת קטגוריות'!$A$1:$E$261,3,0)),\" -\",VLOOKUP($A192,'טבלת קטגוריות'!$A$1:$E$261,3,0))","v":" -"},{"$f":"IF(ISERROR(VLOOKUP($A192,'טבלת קטגוריות'!$A$1:$E$261,5,0)),\" -\",VLOOKUP($A192,'טבלת קטגוריות'!$A$1:$E$261,5,0))","v":" -"}]
[null,null,{"$f":"IF(ISERROR(VLOOKUP($A193,'טבלת קטגוריות'!$A$1:$E$261,2,0)),\" -\",VLOOKUP($A193,'טבלת קטגוריות'!$A$1:$E$261,2,0))","v":" -"},{"$f":"IF(ISERROR(VLOOKUP($A193,'טבלת קטגוריות'!$A$1:$E$261,3,0)),\" -\",VLOOKUP($A193,'טבלת קטגוריות'!$A$1:$E$261,3,0))","v":" -"},{"$f":"IF(ISERROR(VLOOKUP($A193,'טבלת קטגוריות'!$A$1:$E$261,5,0)),\" -\",VLOOKUP($A193,'טבלת קטגוריות'!$A$1:$E$261,5,0))","v":" -"}]
[null,null,{"$f":"IF(ISERROR(VLOOKUP($A194,'טבלת קטגוריות'!$A$1:$E$261,2,0)),\" -\",VLOOKUP($A194,'טבלת קטגוריות'!$A$1:$E$261,2,0))","v":" -"},{"$f":"IF(ISERROR(VLOOKUP($A194,'טבלת קטגוריות'!$A$1:$E$261,3,0)),\" -\",VLOOKUP($A194,'טבלת קטגוריות'!$A$1:$E$261,3,0))","v":" -"},{"$f":"IF(ISERROR(VLOOKUP($A194,'טבלת קטגוריות'!$A$1:$E$261,5,0)),\" -\",VLOOKUP($A194,'טבלת קטגוריות'!$A$1:$E$261,5,0))","v":" -"}]
[null,null,{"$f":"IF(ISERROR(VLOOKUP($A195,'טבלת קטגוריות'!$A$1:$E$261,2,0)),\" -\",VLOOKUP($A195,'טבלת קטגוריות'!$A$1:$E$261,2,0))","v":" -"},{"$f":"IF(ISERROR(VLOOKUP($A195,'טבלת קטגוריות'!$A$1:$E$261,3,0)),\" -\",VLOOKUP($A195,'טבלת קטגוריות'!$A$1:$E$261,3,0))","v":" -"},{"$f":"IF(ISERROR(VLOOKUP($A195,'טבלת קטגוריות'!$A$1:$E$261,5,0)),\" -\",VLOOKUP($A195,'טבלת קטגוריות'!$A$1:$E$261,5,0))","v":" -"}]
[null,null,{"$f":"IF(ISERROR(VLOOKUP($A196,'טבלת קטגוריות'!$A$1:$E$261,2,0)),\" -\",VLOOKUP($A196,'טבלת קטגוריות'!$A$1:$E$261,2,0))","v":" -"},{"$f":"IF(ISERROR(VLOOKUP($A196,'טבלת קטגוריות'!$A$1:$E$261,3,0)),\" -\",VLOOKUP($A196,'טבלת קטגוריות'!$A$1:$E$261,3,0))","v":" -"},{"$f":"IF(ISERROR(VLOOKUP($A196,'טבלת קטגוריות'!$A$1:$E$261,5,0)),\" -\",VLOOKUP($A196,'טבלת קטגוריות'!$A$1:$E$261,5,0))","v":" -"}]
[null,null,{"$f":"IF(ISERROR(VLOOKUP($A197,'טבלת קטגוריות'!$A$1:$E$261,2,0)),\" -\",VLOOKUP($A197,'טבלת קטגוריות'!$A$1:$E$261,2,0))","v":" -"},{"$f":"IF(ISERROR(VLOOKUP($A197,'טבלת קטגוריות'!$A$1:$E$261,3,0)),\" -\",VLOOKUP($A197,'טבלת קטגוריות'!$A$1:$E$261,3,0))","v":" -"},{"$f":"IF(ISERROR(VLOOKUP($A197,'טבלת קטגוריות'!$A$1:$E$261,5,0)),\" -\",VLOOKUP($A197,'טבלת קטגוריות'!$A$1:$E$261,5,0))","v":" -"}]
[null,null,{"$f":"IF(ISERROR(VLOOKUP($A198,'טבלת קטגוריות'!$A$1:$E$261,2,0)),\" -\",VLOOKUP($A198,'טבלת קטגוריות'!$A$1:$E$261,2,0))","v":" -"},{"$f":"IF(ISERROR(VLOOKUP($A198,'טבלת קטגוריות'!$A$1:$E$261,3,0)),\" -\",VLOOKUP($A198,'טבלת קטגוריות'!$A$1:$E$261,3,0))","v":" -"},{"$f":"IF(ISERROR(VLOOKUP($A198,'טבלת קטגוריות'!$A$1:$E$261,5,0)),\" -\",VLOOKUP($A198,'טבלת קטגוריות'!$A$1:$E$261,5,0))","v":" -"}]
[null,null,{"$f":"IF(ISERROR(VLOOKUP($A199,'טבלת קטגוריות'!$A$1:$E$261,2,0)),\" -\",VLOOKUP($A199,'טבלת קטגוריות'!$A$1:$E$261,2,0))","v":" -"},{"$f":"IF(ISERROR(VLOOKUP($A199,'טבלת קטגוריות'!$A$1:$E$261,3,0)),\" -\",VLOOKUP($A199,'טבלת קטגוריות'!$A$1:$E$261,3,0))","v":" -"},{"$f":"IF(ISERROR(VLOOKUP($A199,'טבלת קטגוריות'!$A$1:$E$261,5,0)),\" -\",VLOOKUP($A199,'טבלת קטגוריות'!$A$1:$E$261,5,0))","v":" -"}]
[null,null,{"$f":"IF(ISERROR(VLOOKUP($A200,'טבלת קטגוריות'!$A$1:$E$261,2,0)),\" -\",VLOOKUP($A200,'טבלת קטגוריות'!$A$1:$E$261,2,0))","v":" -"},{"$f":"IF(ISERROR(VLOOKUP($A200,'טבלת קטגוריות'!$A$1:$E$261,3,0)),\" -\",VLOOKUP($A200,'טבלת קטגוריות'!$A$1:$E$261,3,0))","v":" -"},{"$f":"IF(ISERROR(VLOOKUP($A200,'טבלת קטגוריות'!$A$1:$E$261,5,0)),\" -\",VLOOKUP($A200,'טבלת קטגוריות'!$A$1:$E$261,5,0))","v":" -"}]
[null,null,{"$f":"IF(ISERROR(VLOOKUP($A201,'טבלת קטגוריות'!$A$1:$E$261,2,0)),\" -\",VLOOKUP($A201,'טבלת קטגוריות'!$A$1:$E$261,2,0))","v":" -"},{"$f":"IF(ISERROR(VLOOKUP($A201,'טבלת קטגוריות'!$A$1:$E$261,3,0)),\" -\",VLOOKUP($A201,'טבלת קטגוריות'!$A$1:$E$261,3,0))","v":" -"},{"$f":"IF(ISERROR(VLOOKUP($A201,'טבלת קטגוריות'!$A$1:$E$261,5,0)),\" -\",VLOOKUP($A201,'טבלת קטגוריות'!$A$1:$E$261,5,0))","v":" -"}]
[null,null,{"$f":"IF(ISERROR(VLOOKUP($A202,'טבלת קטגוריות'!$A$1:$E$261,2,0)),\" -\",VLOOKUP($A202,'טבלת קטגוריות'!$A$1:$E$261,2,0))","v":" -"},{"$f":"IF(ISERROR(VLOOKUP($A202,'טבלת קטגוריות'!$A$1:$E$261,3,0)),\" -\",VLOOKUP($A202,'טבלת קטגוריות'!$A$1:$E$261,3,0))","v":" -"},{"$f":"IF(ISERROR(VLOOKUP($A202,'טבלת קטגוריות'!$A$1:$E$261,5,0)),\" -\",VLOOKUP($A202,'טבלת קטגוריות'!$A$1:$E$261,5,0))","v":" -"}]
[null,null,{"$f":"IF(ISERROR(VLOOKUP($A203,'טבלת קטגוריות'!$A$1:$E$261,2,0)),\" -\",VLOOKUP($A203,'טבלת קטגוריות'!$A$1:$E$261,2,0))","v":" -"},{"$f":"IF(ISERROR(VLOOKUP($A203,'טבלת קטגוריות'!$A$1:$E$261,3,0)),\" -\",VLOOKUP($A203,'טבלת קטגוריות'!$A$1:$E$261,3,0))","v":" -"},{"$f":"IF(ISERROR(VLOOKUP($A203,'טבלת קטגוריות'!$A$1:$E$261,5,0)),\" -\",VLOOKUP($A203,'טבלת קטגוריות'!$A$1:$E$261,5,0))","v":" -"}]
[null,null,{"$f":"IF(ISERROR(VLOOKUP($A204,'טבלת קטגוריות'!$A$1:$E$261,2,0)),\" -\",VLOOKUP($A204,'טבלת קטגוריות'!$A$1:$E$261,2,0))","v":" -"},{"$f":"IF(ISERROR(VLOOKUP($A204,'טבלת קטגוריות'!$A$1:$E$261,3,0)),\" -\",VLOOKUP($A204,'טבלת קטגוריות'!$A$1:$E$261,3,0))","v":" -"},{"$f":"IF(ISERROR(VLOOKUP($A204,'טבלת קטגוריות'!$A$1:$E$261,5,0)),\" -\",VLOOKUP($A204,'טבלת קטגוריות'!$A$1:$E$261,5,0))","v":" -"}]
[null,null,{"$f":"IF(ISERROR(VLOOKUP($A205,'טבלת קטגוריות'!$A$1:$E$261,2,0)),\" -\",VLOOKUP($A205,'טבלת קטגוריות'!$A$1:$E$261,2,0))","v":" -"},{"$f":"IF(ISERROR(VLOOKUP($A205,'טבלת קטגוריות'!$A$1:$E$261,3,0)),\" -\",VLOOKUP($A205,'טבלת קטגוריות'!$A$1:$E$261,3,0))","v":" -"},{"$f":"IF(ISERROR(VLOOKUP($A205,'טבלת קטגוריות'!$A$1:$E$261,5,0)),\" -\",VLOOKUP($A205,'טבלת קטגוריות'!$A$1:$E$261,5,0))","v":" -"}]
[null,null,{"$f":"IF(ISERROR(VLOOKUP($A206,'טבלת קטגוריות'!$A$1:$E$261,2,0)),\" -\",VLOOKUP($A206,'טבלת קטגוריות'!$A$1:$E$261,2,0))","v":" -"},{"$f":"IF(ISERROR(VLOOKUP($A206,'טבלת קטגוריות'!$A$1:$E$261,3,0)),\" -\",VLOOKUP($A206,'טבלת קטגוריות'!$A$1:$E$261,3,0))","v":" -"},{"$f":"IF(ISERROR(VLOOKUP($A206,'טבלת קטגוריות'!$A$1:$E$261,5,0)),\" -\",VLOOKUP($A206,'טבלת קטגוריות'!$A$1:$E$261,5,0))","v":" -"}]
[null,null,{"$f":"IF(ISERROR(VLOOKUP($A207,'טבלת קטגוריות'!$A$1:$E$261,2,0)),\" -\",VLOOKUP($A207,'טבלת קטגוריות'!$A$1:$E$261,2,0))","v":" -"},{"$f":"IF(ISERROR(VLOOKUP($A207,'טבלת קטגוריות'!$A$1:$E$261,3,0)),\" -\",VLOOKUP($A207,'טבלת קטגוריות'!$A$1:$E$261,3,0))","v":" -"},{"$f":"IF(ISERROR(VLOOKUP($A207,'טבלת קטגוריות'!$A$1:$E$261,5,0)),\" -\",VLOOKUP($A207,'טבלת קטגוריות'!$A$1:$E$261,5,0))","v":" -"}]
[null,null,{"$f":"IF(ISERROR(VLOOKUP($A208,'טבלת קטגוריות'!$A$1:$E$261,2,0)),\" -\",VLOOKUP($A208,'טבלת קטגוריות'!$A$1:$E$261,2,0))","v":" -"},{"$f":"IF(ISERROR(VLOOKUP($A208,'טבלת קטגוריות'!$A$1:$E$261,3,0)),\" -\",VLOOKUP($A208,'טבלת קטגוריות'!$A$1:$E$261,3,0))","v":" -"},{"$f":"IF(ISERROR(VLOOKUP($A208,'טבלת קטגוריות'!$A$1:$E$261,5,0)),\" -\",VLOOKUP($A208,'טבלת קטגוריות'!$A$1:$E$261,5,0))","v":" -"}]
[null,null,{"$f":"IF(ISERROR(VLOOKUP($A209,'טבלת קטגוריות'!$A$1:$E$261,2,0)),\" -\",VLOOKUP($A209,'טבלת קטגוריות'!$A$1:$E$261,2,0))","v":" -"},{"$f":"IF(ISERROR(VLOOKUP($A209,'טבלת קטגוריות'!$A$1:$E$261,3,0)),\" -\",VLOOKUP($A209,'טבלת קטגוריות'!$A$1:$E$261,3,0))","v":" -"},{"$f":"IF(ISERROR(VLOOKUP($A209,'טבלת קטגוריות'!$A$1:$E$261,5,0)),\" -\",VLOOKUP($A209,'טבלת קטגוריות'!$A$1:$E$261,5,0))","v":" -"}]
[null,null,{"$f":"IF(ISERROR(VLOOKUP($A210,'טבלת קטגוריות'!$A$1:$E$261,2,0)),\" -\",VLOOKUP($A210,'טבלת קטגוריות'!$A$1:$E$261,2,0))","v":" -"},{"$f":"IF(ISERROR(VLOOKUP($A210,'טבלת קטגוריות'!$A$1:$E$261,3,0)),\" -\",VLOOKUP($A210,'טבלת קטגוריות'!$A$1:$E$261,3,0))","v":" -"},{"$f":"IF(ISERROR(VLOOKUP($A210,'טבלת קטגוריות'!$A$1:$E$261,5,0)),\" -\",VLOOKUP($A210,'טבלת קטגוריות'!$A$1:$E$261,5,0))","v":" -"}]
["סה\"כ",null,null,null,null,{"$f":"SUM(F2:F210)","v":0},null,{"$f":"SUM(H2:H210)","v":0}]

{"sheet":"טבלת קטגוריות","index":1,"n_rows":254,"n_cols":7,"rows_kept":254,"cut":false,"hidden":false,"merged":[[251,1,251,2],[252,1,252,2],[253,1,253,2],[246,2,246,4],[249,1,249,2],[250,1,250,2]]}
["קוד מ.א.י","קטגורית החוק - תוספת ראשונה","תת קטגוריה",null,"ציוד","מחיר חדש החל  מ- 1.1.2016","מחירון 2015 (החל מ 1 באפריל)"]
[1100,"(1) מכשירי חימום או קירור","מקררים או מקפיאים",101,"מקררים או מקפיאים עד 200 ליטר",3.18,3.3]
[1101,"(1) מכשירי חימום או קירור","מקררים או מקפיאים",101,"מקררים  או מקפיאים 200 ליטר עד 400 ליטר",7.62,8]
[1102,"(1) מכשירי חימום או קירור","מקררים או מקפיאים",101,"מקררים או מקפיאים מ 400 ליטר עד 600 ליטר",9.7799999999999994,9.85]
[1103,"(1) מכשירי חימום או קירור","מקררים או מקפיאים",101,"מקררים או מקפיאים מעל 600 ליטר",12.32,12.45]
[1104,"(1) מכשירי חימום או קירור","מזגנים",102,"מזגן עילי עד 1.5 כ\"ס",6.04,6.39]
[1105,"(1) מכשירי חימום או קירור","מזגנים",102,"מזגן עילי מעל 1.5 כ\"ס",7.55,7.56]
[1106,"(1) מכשירי חימום או קירור","מזגנים",102,"מזגן עילי השאר",7.55,7.92]
[1107,"(1) מכשירי חימום או קירור","מזגנים",102,"מזגן מיני מרכזי עד 3.5 כס",11.78,13.1]
[1108,"(1) מכשירי חימום או קירור","מזגנים",102,"מזגן מיני מרכזי מעל 3.5 כס",15.1,16.899999999999999]
[1109,"(1) מכשירי חימום או קירור","מזגנים",102,"מזגן מוסדי או אחר",16.61,18.100000000000001]
[1120,"(1) מכשירי חימום או קירור","מזגנים",103,"מאיידים בטכנולוגיית מים",6.5100000000000007,7]
[1110,"(1) מכשירי חימום או קירור","מכשירי אדים, קולטי לחות",103,"מכשירי אדים, קולטי לחות עד 20 ק\"ג",0.84,1]
[1111,"(1) מכשירי חימום או קירור","מכשירי אדים, קולטי לחות",104,"מכשירי אדים, קולטי לחות מעל 20 קג",3.6,4]
[1112,"(1) מכשירי חימום או קירור","משאבות חום, מתקני הסקה",104,"משאבות חום, מתקני הסקה",7.75,8]
[1113,"(1) מכשירי חימום או קירור","משאבות חום, מתקני הסקה",104,"מפזר חום מחוץ לבית",1.55,1.6]
[1114,"(1) מכשירי חימום או קירור","משאבות חום, מתקני הסקה",104,"מפזר חום ביתי",0.3,0.3]
[1115,"(1) מכשירי חימום או קירור","משאבות חום, מתקני הסקה",104,"רדיאטור",0.99,1]
[1199,"(1) מכשירי חימום או קירור",null,104,"לפי טון",135,150]
[2100,"(2) מסכים, צגים ומכשירים הכוללים מסכים","טלוויזיה ומסכים",201,"מסך מעל 60\"",5.08,5.7]
[2101,"(2) מסכים, צגים ומכשירים הכוללים מסכים","טלוויזיה ומסכים",201,"מסך מעל 50\" ועד 60\"",4.38,4.8]
[2102,"(2) מסכים, צגים ומכשירים הכוללים מסכים","טלוויזיה ומסכים",201,"מסך מעל 40\" ועד 50\"",3.15,3.38]
[2103,"(2) מסכים, צגים ומכשירים הכוללים מסכים","טלוויזיה ומסכים",201,"מסך מעל 37\" ועד 40\"",2.0099999999999998,2.1]
[2104,"(2) מסכים, צגים ומכשירים הכוללים מסכים","טלוויזיה ומסכים",201,"מסך מעל 27\" ועד 36\"",1.28,1.28]
[2105,"(2) מסכים, צגים ומכשירים הכוללים מסכים","טלוויזיה ומסכים",201,"מסך מעל 24\" ועד 27\"",0.67,0.68]
[2106,"(2) מסכים, צגים ומכשירים הכוללים מסכים","טלוויזיה ומסכים",201,"מסך מעל 15\" ועד 24\"",0.6,0.6]
[2107,"(2) מסכים, צגים ומכשירים הכוללים מסכים","מחשבים",201,"מחשב נייד או טאבלט",0.57999999999999996,0.6]
[3100,"(3) מנורות","נורות",301,"מנורות פלורוסנט (ישרות, קומפקטיות ואחרות),",0.09,0.14000000000000001]
[3101,"(3) מנורות","נורות",301,"מנורות קסנון (HID)",0.18,0.27]
[3102,"(3) מנורות","נורות",301,"מנורות LED.",0.03,0.03]
[3103,"(3) מנורות","נורות",301,"מנורות המכילות גז נתרן בלחץ ומנורות מתכת האליד, מנורות המכילות גז נתרן בלחץ נמוך ואחר",0.18,0.18]
[3110,"(3) מנורות","נורות",301,"פסי LED חמישה מטר",0.08,0.1]
[3001,"(3) מנורות","נורות",301,"אחר לפי טון",900,1700]
[3104,"(3) מנורות","גופי תאורה",302,"גופי תאורה שאף צלע לא עוברת 50 סמ",0.03,0.03]
[3105,"(3) מנורות","גופי תאורה",302,"גופי תאורה שיש צלע מעל 50 סמ עבור נורה בודדת",0.03,0.03]
[3106,"(3) מנורות","גופי תאורה",302,"גופי תאורה שיש צלע מעל 50 סמ לכמה נורות",0.1,0.12]
[3107,"(3) מנורות","גופי תאורה",302,"נברשות עד 8 ק\"ג",1.6666666666666667,2]
[3108,"(3) מנורות","גופי תאורה",302,"נברשות עד 15 ק\"ג",3.1666666666666665,3.8]
[3109,"(3) מנורות","גופי תאורה",302,"הנברשות מעל 15 ק\"ג",7.416666666666667,8.9]
[3120,"(3) מנורות","גופי תאורה",302,"זרקור תנועה חכם  עד 30 קג",1.875,2.25]
[3121,"(3) מנורות","גופי תאורה",302,"זרקור תנועה חכם  מעל 30 קג",5.625,6.75]
[3122,"(3) מנורות","גופי תאורה",302,"זרקור הצפה לד עד 12 קג",1.875,2.25]
[3123,"(3) מנורות","גופי תאורה",302,"זרקור הצפה לד מעל  12 קג",2.375,2.85]
[3124,"(3) מנורות","גופי תאורה",302,"זרקור תאטרון עד 30 ק\"ג",2.5,3]
[3125,"(3) מנורות","גופי תאורה",302,"זרקור תאטרון מעל 30 ק\"ג",7.5,9]
[3126,"(3) מנורות","גופי תאורה",302,"פנס תאטרון לנורה",0.625,0.75]
[3127,"(3) מנורות","גופי תאורה",302,"פנס הצפה לד אף צלע לא עוברת 50 סמ",4.1666666666666671E-2,0.05]
[3137,"(3) מנורות","גופי תאורה",302,"פנס הצפה לד לתאורת גינה וחוץ מעל 50 סמ",0.6,0.7]
[3128,"(3) מנורות","גופי תאורה",302,"פנס תאטרון  (פאר) ",0.4,0.48]
[3129,"(3) מנורות","גופי תאורה",302,"זרקור תאטרון ",13.333333333333334,16]
[3130,"(3) מנורות","גופי תאורה",302,"גוף תאורה אדריכלי מתכוונן /שקוע/על הטיח תלוי",1.1666666666666667,1.4]
[3131,"(3) מנורות","גופי תאורה",302,"פרופיל לד למטר",0.15,0.18]
[3132,"(3) מנורות","גופי תאורה",302,"נורות הצפה (לד) עד 10 קג - גוף שקוע",1.1666666666666667,1.4]
[3133,"(3) מנורות","גופי תאורה",302,"זרקור הצפה גדול עד 30 ק\"ג - נורות",2.375,2.85]
[3134,"(3) מנורות","גופי תאורה",302,"זרקור הצפה גדול מעל 30 ק\"ג -נורות",7.1250000000000009,8.5500000000000007]
[3135,"(3) מנורות","גופי תאורה",302,"בקר תאורה לד",2.5000000000000001E-2,0.03]
[3136,"(3) מנורות","גופי תאורה",302,"פנס מהבהב מסתובב (צ'קלקה)",0.25,0.25]
[3002,"מנורות (3)","גופי תאורה",302,"גופי ופנסי תאורה לשוק המקצועי לפי טון",300,350]
[4100,"(4) מכשירי חשמל גדולים, שצלע אחת שלהם לפחות ארוכה מ-50 ס\"מ ושאינם כלולים בפרטים 1 עד 3","מכשירים המשמשים לבישול או לחימום מזון",401,"תנור חשמלי עד 25 קילו",0.67,1.1000000000000001]
[4101,"(4) מכשירי חשמל גדולים, שצלע אחת שלהם לפחות ארוכה מ-50 ס\"מ ושאינם כלולים בפרטים 1 עד 3","מכשירים המשמשים לבישול או לחימום מזון",401,"תנור חשמלי מעל 25 קילו עד 100 קילו",5.36,5.4]
[4102,"(4) מכשירי חשמל גדולים, שצלע אחת שלהם לפחות ארוכה מ-50 ס\"מ ושאינם כלולים בפרטים 1 עד 3","מכשירים המשמשים לבישול או לחימום מזון",401,"תנור חשמלי מעל  100 קילו",17.420000000000002,17.600000000000001]
[4103,"(4) מכשירי חשמל גדולים, שצלע אחת שלהם לפחות ארוכה מ-50 ס\"מ ושאינם כלולים בפרטים 1 עד 3","מכשירים המשמשים לבישול או לחימום מזון",401,"מיקרוגל",1.1299999999999999,1.6]
[4104,"(4) מכשירי חשמל גדולים, שצלע אחת שלהם לפחות ארוכה מ-50 ס\"מ ושאינם כלולים בפרטים 1 עד 3","מכשירים המשמשים לבישול או לחימום מזון",401,"פלטה חשמלית",0.59,0.7]
[4105,"(4) מכשירי חשמל גדולים, שצלע אחת שלהם לפחות ארוכה מ-50 ס\"מ ושאינם כלולים בפרטים 1 עד 3","מכשירים המשמשים לבישול או לחימום מזון",401,"כיריים חשמליות רוחב עד 70 סמ",0.94,1]
[4106,"(4) מכשירי חשמל גדולים, שצלע אחת שלהם לפחות ארוכה מ-50 ס\"מ ושאינם כלולים בפרטים 1 עד 3","מכשירים המשמשים לבישול או לחימום מזון",401,"כיריים חשמליות רוחב מעל 70 סמ",1.18,1.2]
[4107,"(4) מכשירי חשמל גדולים, שצלע אחת שלהם לפחות ארוכה מ-50 ס\"מ ושאינם כלולים בפרטים 1 עד 3","מכשירים המשמשים לבישול או לחימום מזון",401,"מכונת קפה - בית קפה",5.36,8.1]
[4001,"(4) מכשירי חשמל גדולים, שצלע אחת שלהם לפחות ארוכה מ-50 ס\"מ ושאינם כלולים בפרטים 1 עד 3","מכשירים המשמשים לבישול או לחימום מזון",401,"אחר לפי טון",170,200]
[4108,"(4) מכשירי חשמל גדולים, שצלע אחת שלהם לפחות ארוכה מ-50 ס\"מ ושאינם כלולים בפרטים 1 עד 3","מכונות כביסה, מייבשי כביסה ומדיחי כלים; עד 25 קילו",402,"מכונות כביסה",1.86,2.7]
[4109,"(4) מכשירי חשמל גדולים, שצלע אחת שלהם לפחות ארוכה מ-50 ס\"מ ושאינם כלולים בפרטים 1 עד 3","מכונות כביסה, מייבשי כביסה ומדיחי כלים; מעל 25 קילו עד 100 קילו",402,"מכונות כביסה",5.58,5.6]
[4110,"(4) מכשירי חשמל גדולים, שצלע אחת שלהם לפחות ארוכה מ-50 ס\"מ ושאינם כלולים בפרטים 1 עד 3","מכונות כביסה, מייבשי כביסה ומדיחי כלים; מעל  100 קילו",402,"מכונות כביסה",9.3000000000000007,13]
[4111,"(4) מכשירי חשמל גדולים, שצלע אחת שלהם לפחות ארוכה מ-50 ס\"מ ושאינם כלולים בפרטים 1 עד 3","מכונות כביסה, מייבשי כביסה ומדיחי כלים; עד 25 קילו",402,"מדיחי כלים;",1.28,1.7]
[4112,"(4) מכשירי חשמל גדולים, שצלע אחת שלהם לפחות ארוכה מ-50 ס\"מ ושאינם כלולים בפרטים 1 עד 3","מכונות כביסה, מייבשי כביסה ומדיחי כלים; מעל 25 קילו עד 100 קילו",402,"מדיחי כלים;",4.99,5.6]
[4113,"(4) מכשירי חשמל גדולים, שצלע אחת שלהם לפחות ארוכה מ-50 ס\"מ ושאינם כלולים בפרטים 1 עד 3","מכונות כביסה, מייבשי כביסה ומדיחי כלים; מעל  100 קילו",402,"מדיחי כלים;",12.8,13]
[4114,"(4) מכשירי חשמל גדולים, שצלע אחת שלהם לפחות ארוכה מ-50 ס\"מ ושאינם כלולים בפרטים 1 עד 3","מכונות כביסה, מייבשי כביסה ומדיחי כלים; עד 25 קילו",402,"מייבשי כביסה",1,1.7]
[4115,"(4) מכשירי חשמל גדולים, שצלע אחת שלהם לפחות ארוכה מ-50 ס\"מ ושאינם כלולים בפרטים 1 עד 3","מכונות כביסה, מייבשי כביסה ומדיחי כלים; מעל 25 קילו עד 100 קילו",402,"מייבשי כביסה",4,4.2]
[4116,"(4) מכשירי חשמל גדולים, שצלע אחת שלהם לפחות ארוכה מ-50 ס\"מ ושאינם כלולים בפרטים 1 עד 3","מכונות כביסה, מייבשי כביסה ומדיחי כלים; מעל  100 קילו",402,"מייבשי כביסה",12,13]
[4117,"(4) מכשירי חשמל גדולים, שצלע אחת שלהם לפחות ארוכה מ-50 ס\"מ ושאינם כלולים בפרטים 1 עד 3","ציוד תקשורת וטכנולוגיות מידע גדולים",403,"מחשבים,",1.0900000000000001,1.1000000000000001]
[4118,"(4) מכשירי חשמל גדולים, שצלע אחת שלהם לפחות ארוכה מ-50 ס\"מ ושאינם כלולים בפרטים 1 עד 3","ציוד תקשורת וטכנולוגיות מידע גדולים",403,"שרת",1.63,1.8]
[4201,"(4) מכשירי חשמל גדולים, שצלע אחת שלהם לפחות ארוכה מ-50 ס\"מ ושאינם כלולים בפרטים 1 עד 3","ציוד תקשורת וטכנולוגיות מידע גדולים",403,"מחשב תאורה",1.3583333333333332,1.5]
[4119,"(4) מכשירי חשמל גדולים, שצלע אחת שלהם לפחות ארוכה מ-50 ס\"מ ושאינם כלולים בפרטים 1 עד 3","ציוד תקשורת וטכנולוגיות מידע גדולים",403,"מרכזיה, מיתקני רשת קבועים",5.44,6]
[4120,"(4) מכשירי חשמל גדולים, שצלע אחת שלהם לפחות ארוכה מ-50 ס\"מ ושאינם כלולים בפרטים 1 עד 3","ציוד תקשורת וטכנולוגיות מידע גדולים",403,"מכונות דפוס עד משקל 30",3.06,3.8]
[4121,"(4) מכשירי חשמל גדולים, שצלע אחת שלהם לפחות ארוכה מ-50 ס\"מ ושאינם כלולים בפרטים 1 עד 3","ציוד תקשורת וטכנולוגיות מידע גדולים",403,"מכונות צילום עד למשקל 30",3.09,3.8]
[4122,"(4) מכשירי חשמל גדולים, שצלע אחת שלהם לפחות ארוכה מ-50 ס\"מ ושאינם כלולים בפרטים 1 עד 3","ציוד תקשורת וטכנולוגיות מידע גדולים",403,"מכונות דפוס מעל למשקל 30",10.58,12]
[4123,"(4) מכשירי חשמל גדולים, שצלע אחת שלהם לפחות ארוכה מ-50 ס\"מ ושאינם כלולים בפרטים 1 עד 3","ציוד תקשורת וטכנולוגיות מידע גדולים",403,"מכונות צילום מעל למשקל 30",10.71,12]
[4124,"(4) מכשירי חשמל גדולים, שצלע אחת שלהם לפחות ארוכה מ-50 ס\"מ ושאינם כלולים בפרטים 1 עד 3","ציוד תקשורת וטכנולוגיות מידע גדולים",403,"מגרסת נייר",1.28,1.4]
[4002,"(4) מכשירי חשמל גדולים, שצלע אחת שלהם לפחות ארוכה מ-50 ס\"מ ושאינם כלולים בפרטים 1 עד 3","ציוד תקשורת וטכנולוגיות מידע גדולים",403,"אחר לפי טון",200,230]
[4125,"(4) מכשירי חשמל גדולים, שצלע אחת שלהם לפחות ארוכה מ-50 ס\"מ ושאינם כלולים בפרטים 1 עד 3","ציוד גדול לפנאי וספורט; מכונות מזל גדולות;",404,"הליכון",11.25,11.4]
[4126,"(4) מכשירי חשמל גדולים, שצלע אחת שלהם לפחות ארוכה מ-50 ס\"מ ושאינם כלולים בפרטים 1 עד 3","ציוד גדול לפנאי וספורט; מכונות מזל גדולות;",404,"אופני כושר",6.75,6.8]
[4127,"(4) מכשירי חשמל גדולים, שצלע אחת שלהם לפחות ארוכה מ-50 ס\"מ ושאינם כלולים בפרטים 1 עד 3","ציוד גדול לפנאי וספורט; מכונות מזל גדולות;",404,"מכונות מזל גדולות",9.9,11.8]
[4128,"(4) מכשירי חשמל גדולים, שצלע אחת שלהם לפחות ארוכה מ-50 ס\"מ ושאינם כלולים בפרטים 1 עד 3","ציוד גדול לפנאי וספורט; מכונות מזל גדולות;",404,"מערכת קולנוע ביתית",3.3,3.4]
[4129,"(4) מכשירי חשמל גדולים, שצלע אחת שלהם לפחות ארוכה מ-50 ס\"מ ושאינם כלולים בפרטים 1 עד 3","ציוד גדול לפנאי וספורט; מכונות מזל גדולות;",404,"מכשיר חתירה",6.6,6.7]
[4003,"(4) מכשירי חשמל גדולים, שצלע אחת שלהם לפחות ארוכה מ-50 ס\"מ ושאינם כלולים בפרטים 1 עד 3","ציוד גדול לפנאי וספורט; מכונות מזל גדולות;",404,"אחר לפי טון",200,230]
[4130,"(4) מכשירי חשמל גדולים, שצלע אחת שלהם לפחות ארוכה מ-50 ס\"מ ושאינם כלולים בפרטים 1 עד 3","מכשירים וציוד המשמשים להקלטה או השמעה של צלילים, וכלי נגינה;",405,"מערכת שמע/הקלטה כוללת רמקולים",1.1000000000000001,1.2]
[4131,"(4) מכשירי חשמל גדולים, שצלע אחת שלהם לפחות ארוכה מ-50 ס\"מ ושאינם כלולים בפרטים 1 עד 3","מכשירים וציוד המשמשים להקלטה או השמעה של צלילים, וכלי נגינה;",405,"מערכת קומפקט דיסק",0.33,0.4]
[4132,"(4) מכשירי חשמל גדולים, שצלע אחת שלהם לפחות ארוכה מ-50 ס\"מ ושאינם כלולים בפרטים 1 עד 3","מכשירים וציוד המשמשים להקלטה או השמעה של צלילים, וכלי נגינה;",405,"מגבר",0.44,0.7]
[4133,"(4) מכשירי חשמל גדולים, שצלע אחת שלהם לפחות ארוכה מ-50 ס\"מ ושאינם כלולים בפרטים 1 עד 3","מכשירים וציוד המשמשים להקלטה או השמעה של צלילים, וכלי נגינה;",405,"אורגן",2.1,3]
[4134,"(4) מכשירי חשמל גדולים, שצלע אחת שלהם לפחות ארוכה מ-50 ס\"מ ושאינם כלולים בפרטים 1 עד 3","מכשירים וציוד המשמשים להקלטה או השמעה של צלילים, וכלי נגינה;",405,"פסנתר חשמלי",3.49,5]
[4135,"(4) מכשירי חשמל גדולים, שצלע אחת שלהם לפחות ארוכה מ-50 ס\"מ ושאינם כלולים בפרטים 1 עד 3","מכשירים וציוד המשמשים להקלטה או השמעה של צלילים, וכלי נגינה;",405,"גיטרה חשמלית",0.87,1]
[4004,"(4) מכשירי חשמל גדולים, שצלע אחת שלהם לפחות ארוכה מ-50 ס\"מ ושאינם כלולים בפרטים 1 עד 3","מכשירים וציוד המשמשים להקלטה או השמעה של צלילים, וכלי נגינה;",405,"אחר לפי טון",200,230]
[4136,"(4) מכשירי חשמל גדולים, שצלע אחת שלהם לפחות ארוכה מ-50 ס\"מ ושאינם כלולים בפרטים 1 עד 3","מכשירים גדולים לייצור או העברה של זרם חשמלי",406,"מערכת אל-פסק עד למשקל 100 ק\"ג",2.25,2.2999999999999998]
[4137,"(4) מכשירי חשמל גדולים, שצלע אחת שלהם לפחות ארוכה מ-50 ס\"מ ושאינם כלולים בפרטים 1 עד 3","מכשירים גדולים לייצור או העברה של זרם חשמלי",406,"גנרטורים ביתיים עד למשקל של 250 ק\"ג",2.62,3.8]
[4138,"(4) מכשירי חשמל גדולים, שצלע אחת שלהם לפחות ארוכה מ-50 ס\"מ ושאינם כלולים בפרטים 1 עד 3","מכשירים גדולים לייצור או העברה של זרם חשמלי",406,"גנרטורים תעשייתיים עד למשקל של 500 ק\"ג",6.55,9.5]
[4202,"(4) מכשירי חשמל גדולים, שצלע אחת שלהם לפחות ארוכה מ-50 ס\"מ ושאינם כלולים בפרטים 1 עד 3","מכשירים גדולים לייצור או העברה של זרם חשמלי",406,"ארון דימרים חשמלי עד 6 דימרים",3.23,3.8]
[4203,"(4) מכשירי חשמל גדולים, שצלע אחת שלהם לפחות ארוכה מ-50 ס\"מ ושאינם כלולים בפרטים 1 עד 3","מכשירים גדולים לייצור או העברה של זרם חשמלי",406,"ארון דימרים חשמלי עד 12 דימרים",8.0749999999999993,9.5]
[4204,"(4) מכשירי חשמל גדולים, שצלע אחת שלהם לפחות ארוכה מ-50 ס\"מ ושאינם כלולים בפרטים 1 עד 3","מכשירים גדולים לייצור או העברה של זרם חשמלי",406,"ארון דימרים חשמלי מעל 12 דימרים",12.92,15.2]
[4205,"(4) מכשירי חשמל גדולים, שצלע אחת שלהם לפחות ארוכה מ-50 ס\"מ ושאינם כלולים בפרטים 1 עד 3","מכשירים גדולים לייצור או העברה של זרם חשמלי",406,"ארון דימרים אלקטרוני",7.14,8.4]
[4139,"(4) מכשירי חשמל גדולים, שצלע אחת שלהם לפחות ארוכה מ-50 ס\"מ ושאינם כלולים בפרטים 1 עד 3","מכשירים גדולים לייצור או העברה של זרם חשמלי",406,"ממירים ושונות",1.45,1.5]
[4005,"(4) מכשירי חשמל גדולים, שצלע אחת שלהם לפחות ארוכה מ-50 ס\"מ ושאינם כלולים בפרטים 1 עד 3","מכשירים גדולים לייצור או העברה של זרם חשמלי",406,"אחר לפי טון",160,190]
[4140,"(4) מכשירי חשמל גדולים, שצלע אחת שלהם לפחות ארוכה מ-50 ס\"מ ושאינם כלולים בפרטים 1 עד 3","מכשירים רפואיים גדולים;",407,"עד 25 קילו",1.53,2.5]
[4141,"(4) מכשירי חשמל גדולים, שצלע אחת שלהם לפחות ארוכה מ-50 ס\"מ ושאינם כלולים בפרטים 1 עד 3","מכשירים רפואיים גדולים;",407,"מעל 25 קילו עד 100 קילו",9.18,12]
[4142,"(4) מכשירי חשמל גדולים, שצלע אחת שלהם לפחות ארוכה מ-50 ס\"מ ושאינם כלולים בפרטים 1 עד 3","מכשירים רפואיים גדולים;",407,"מעל  100 קילו ועד 250 ק\"ג",19.89,35]
[4154,"(4) מכשירי חשמל גדולים, שצלע אחת שלהם לפחות ארוכה מ-50 ס\"מ ושאינם כלולים בפרטים 1 עד 3","מכשירים רפואיים גדולים;",407,"אחר לפי טון",230,300]
[4143,"(4) מכשירי חשמל גדולים, שצלע אחת שלהם לפחות ארוכה מ-50 ס\"מ ושאינם כלולים בפרטים 1 עד 3","(8) מכשירי בקרה וניטור גדולים;",408,"עד 25 קילו",1.85,2.5]
[4144,"(4) מכשירי חשמל גדולים, שצלע אחת שלהם לפחות ארוכה מ-50 ס\"מ ושאינם כלולים בפרטים 1 עד 3","(8) מכשירי בקרה וניטור גדולים;",408,"מעל 25 קילו עד 100 קילו",11.1,12]
[4145,"(4) מכשירי חשמל גדולים, שצלע אחת שלהם לפחות ארוכה מ-50 ס\"מ ושאינם כלולים בפרטים 1 עד 3","(8) מכשירי בקרה וניטור גדולים;",408,"מעל  100 קילו ועד 250 ק\"ג",14.8,35]
[4155,"(4) מכשירי חשמל גדולים, שצלע אחת שלהם לפחות ארוכה מ-50 ס\"מ ושאינם כלולים בפרטים 1 עד 3","(8) מכשירי בקרה וניטור גדולים;",408,"אחר לפי טון",230,300]
[4146,"(4) מכשירי חשמל גדולים, שצלע אחת שלהם לפחות ארוכה מ-50 ס\"מ ושאינם כלולים בפרטים 1 עד 3","כשירים אוטומטיים גדולים להגשה או לממכר מוצרים ושירותים אוטומטיים, כגון כספומטים.",409,"כספומטים ושונות",8.75,8.9]
[4147,"(4) מכשירי חשמל גדולים, שצלע אחת שלהם לפחות ארוכה מ-50 ס\"מ ושאינם כלולים בפרטים 1 עד 4","כשירים אוטומטיים גדולים להגשה או לממכר מוצרים ושירותים אוטומטיים, כגון כספומטים.",409,"קופה רושמת",1.68,1.8]
[4006,"(4) מכשירי חשמל גדולים, שצלע אחת שלהם לפחות ארוכה מ-50 ס\"מ ושאינם כלולים בפרטים 1 עד 4","כשירים אוטומטיים גדולים להגשה או לממכר מוצרים ושירותים אוטומטיים, כגון כספומטים.",409,"אחר לפי טון",120,130]
[4148,"(4) מכשירי חשמל גדולים, שצלע אחת שלהם לפחות ארוכה מ-50 ס\"מ ושאינם כלולים בפרטים 1 עד 3","מכשירי ניקוי",402,"שואב אבק נגרר",1.1299999999999999,1.2]
[4149,"(4) מכשירי חשמל גדולים, שצלע אחת שלהם לפחות ארוכה מ-50 ס\"מ ושאינם כלולים בפרטים 1 עד 3","מכשירי ניקוי",402,"שואב אבק רטוב יבש",0.73,1]
[4150,"(4) מכשירי חשמל גדולים, שצלע אחת שלהם לפחות ארוכה מ-50 ס\"מ ושאינם כלולים בפרטים 1 עד 3","מכשירי ניקוי",402,"שואב אבק עומד",1.46,1.5]
[4007,"(4) מכשירי חשמל גדולים, שצלע אחת שלהם לפחות ארוכה מ-50 ס\"מ ושאינם כלולים בפרטים 1 עד 3","מכשירי ניקוי",402,"אחר לפי טון",170,190]
[4151,"(4) מכשירי חשמל גדולים, שצלע אחת שלהם לפחות ארוכה מ-50 ס\"מ ושאינם כלולים בפרטים 1 עד 3","מאווררים, מטהרי אוויר, וציוד אוורור אחר",404,"מטהר אוויר עד 30 ק\"ג",2.61,4]
[4152,"(4) מכשירי חשמל גדולים, שצלע אחת שלהם לפחות ארוכה מ-50 ס\"מ ושאינם כלולים בפרטים 1 עד 3","מאווררים, מטהרי אוויר, וציוד אוורור אחר",404,"מטהר אוויר מעל 30 ק\"ג",5.22,10.6]
[4153,"(4) מכשירי חשמל גדולים, שצלע אחת שלהם לפחות ארוכה מ-50 ס\"מ ושאינם כלולים בפרטים 1 עד 3","מכשירים המשמשים לבישול ולעיבוד אחר של מזון, כגון",401,"מתקן מים",1.28,2.5]
[4008,"(4) מכשירי חשמל גדולים, שצלע אחת שלהם לפחות ארוכה מ-50 ס\"מ ושאינם כלולים בפרטים 1 עד 3","כלי עבודה גדולים",502,"כלי עבודה גדולים כגון: מערבלים, מקדחים, מתזים, רתכות מסורים, כלי עבודה ידניים גדולים וכו. לפי טון",170,200]
[5100,"(5) מכשירי חשמל קטנים, שאף צלע שלהם לא ארוכה מ-50 ס\"מ ושאינם כלולים בפרטים 1 עד 3","מכונות כביסה, מייבשי כביסה ומדיחי כלים",502,"מדיחי כלים;",1.28,1.3]
[5101,"(5) מכשירי חשמל קטנים, שאף צלע שלהם לא ארוכה מ-50 ס\"מ ושאינם כלולים בפרטים 1 עד 3","מכונות כביסה, מייבשי כביסה ומדיחי כלים",501,"מייבש כביסה",1.08,1.3]
[5102,"(5) מכשירי חשמל קטנים, שאף צלע שלהם לא ארוכה מ-50 ס\"מ ושאינם כלולים בפרטים 1 עד 3","מכשירים קטנים המשמשים לבישול ולעיבוד אחר של מזון, כגון",501,"מתקן מים",0.64,1.3]
[5103,"(5) מכשירי חשמל קטנים, שאף צלע שלהם לא ארוכה מ-50 ס\"מ ושאינם כלולים בפרטים 1 עד 3","מכשירים קטנים המשמשים לבישול ולעיבוד אחר של מזון, כגון",501,"טוסטר לחיצה",0.23,0.23]
[5104,"(5) מכשירי חשמל קטנים, שאף צלע שלהם לא ארוכה מ-50 ס\"מ ושאינם כלולים בפרטים 1 עד 3","מכשירים קטנים המשמשים לבישול ולעיבוד אחר של מזון, כגון",501,"טוסטר קופץ",0.23,0.23]
[5105,"(5) מכשירי חשמל קטנים, שאף צלע שלהם לא ארוכה מ-50 ס\"מ ושאינם כלולים בפרטים 1 עד 3","מכשירים קטנים המשמשים לבישול ולעיבוד אחר של מזון, כגון",501,"פלטות חשמליות",0.35,0.35]
[5106,"(5) מכשירי חשמל קטנים, שאף צלע שלהם לא ארוכה מ-50 ס\"מ ושאינם כלולים בפרטים 1 עד 3","מכשירים קטנים המשמשים לבישול ולעיבוד אחר של מזון, כגון",501,"סכינים חשמליות",0.11,0.12]
[5107,"(5) מכשירי חשמל קטנים, שאף צלע שלהם לא ארוכה מ-50 ס\"מ ושאינם כלולים בפרטים 1 עד 3","מכשירים קטנים המשמשים לבישול ולעיבוד אחר של מזון, כגון",501,"קומקום חשמלי",0.23,0.23]
[5108,"(5) מכשירי חשמל קטנים, שאף צלע שלהם לא ארוכה מ-50 ס\"מ ושאינם כלולים בפרטים 1 עד 3","מכשירים קטנים המשמשים לבישול ולעיבוד אחר של מזון, כגון",501,"מיקרוגל עד 20 ליטר",0.63,0.63]
[5109,"(5) מכשירי חשמל קטנים, שאף צלע שלהם לא ארוכה מ-50 ס\"מ ושאינם כלולים בפרטים 1 עד 3","מכשירים קטנים המשמשים לבישול ולעיבוד אחר של מזון, כגון",501,"מיקרוגל 20-25 ליטר",0.67,0.71]
[5110,"(5) מכשירי חשמל קטנים, שאף צלע שלהם לא ארוכה מ-50 ס\"מ ושאינם כלולים בפרטים 1 עד 3","מכשירים קטנים המשמשים לבישול ולעיבוד אחר של מזון, כגון",501,"מיקרוגל 25-30 ליטר",0.76,0.79]
[5111,"(5) מכשירי חשמל קטנים, שאף צלע שלהם לא ארוכה מ-50 ס\"מ ושאינם כלולים בפרטים 1 עד 3","מכשירים קטנים המשמשים לבישול ולעיבוד אחר של מזון, כגון",501,"מיקרוגל 30-35 ליטר",0.81,0.94]
[5112,"(5) מכשירי חשמל קטנים, שאף צלע שלהם לא ארוכה מ-50 ס\"מ ושאינם כלולים בפרטים 1 עד 3","מכשירים קטנים המשמשים לבישול ולעיבוד אחר של מזון, כגון",501,"מיקרוגל מעל 35",1.1399999999999999,1.2]
[5113,"(5) מכשירי חשמל קטנים, שאף צלע שלהם לא ארוכה מ-50 ס\"מ ושאינם כלולים בפרטים 1 עד 3","מכשירים קטנים המשמשים לבישול ולעיבוד אחר של מזון, כגון",501,"טוסטר אובן עד 20 ליטר",0.36,0.45]
[5114,"(5) מכשירי חשמל קטנים, שאף צלע שלהם לא ארוכה מ-50 ס\"מ ושאינם כלולים בפרטים 1 עד 3","מכשירים קטנים המשמשים לבישול ולעיבוד אחר של מזון, כגון",501,"טוסטר אובן 20 עד 30 ליטר",0.86,1]
[5115,"(5) מכשירי חשמל קטנים, שאף צלע שלהם לא ארוכה מ-50 ס\"מ ושאינם כלולים בפרטים 1 עד 3","מכשירים קטנים המשמשים לבישול ולעיבוד אחר של מזון, כגון",501,"טוסטר אובן 30 עד 40 ליטר",1.01,1.4]
[5116,"(5) מכשירי חשמל קטנים, שאף צלע שלהם לא ארוכה מ-50 ס\"מ ושאינם כלולים בפרטים 1 עד 3","מכשירים קטנים המשמשים לבישול ולעיבוד אחר של מזון, כגון",501,"טוסטר אובן מעל 40 ליטר",1.44,1.6]
[5117,"(5) מכשירי חשמל קטנים, שאף צלע שלהם לא ארוכה מ-50 ס\"מ ושאינם כלולים בפרטים 1 עד 3","מכשירים קטנים המשמשים לבישול ולעיבוד אחר של מזון, כגון",501,"מטחנת בשר",0.99,1.2]
[5118,"(5) מכשירי חשמל קטנים, שאף צלע שלהם לא ארוכה מ-50 ס\"מ ושאינם כלולים בפרטים 1 עד 3","מכשירים קטנים המשמשים לבישול ולעיבוד אחר של מזון, כגון",501,"בלנדר מוט",0.22,0.25]
[5119,"(5) מכשירי חשמל קטנים, שאף צלע שלהם לא ארוכה מ-50 ס\"מ ושאינם כלולים בפרטים 1 עד 3","מכשירים קטנים המשמשים לבישול ולעיבוד אחר של מזון, כגון",501,"בלנדר עד 400 וואט",0.22,0.3]
[5120,"(5) מכשירי חשמל קטנים, שאף צלע שלהם לא ארוכה מ-50 ס\"מ ושאינם כלולים בפרטים 1 עד 3","מכשירים קטנים המשמשים לבישול ולעיבוד אחר של מזון, כגון",501,"בלנדר מעל 400 וואט",0.22,0.4]
[5121,"(5) מכשירי חשמל קטנים, שאף צלע שלהם לא ארוכה מ-50 ס\"מ ושאינם כלולים בפרטים 1 עד 3","מכשירים קטנים המשמשים לבישול ולעיבוד אחר של מזון, כגון",501,"מעבד מזון עד 1000 ואט",0.22,0.3]
[5122,"(5) מכשירי חשמל קטנים, שאף צלע שלהם לא ארוכה מ-50 ס\"מ ושאינם כלולים בפרטים 1 עד 3","מכשירים קטנים המשמשים לבישול ולעיבוד אחר של מזון, כגון",501,"מעבד מזון מעל 1000 ואט",0.22,0.4]
[5123,"(5) מכשירי חשמל קטנים, שאף צלע שלהם לא ארוכה מ-50 ס\"מ ושאינם כלולים בפרטים 1 עד 3","מכשירים קטנים המשמשים לבישול ולעיבוד אחר של מזון, כגון",501,"מיקסר עד 1600 ואט",0.22,0.25]
[5124,"(5) מכשירי חשמל קטנים, שאף צלע שלהם לא ארוכה מ-50 ס\"מ ושאינם כלולים בפרטים 1 עד 3","מכשירים קטנים המשמשים לבישול ולעיבוד אחר של מזון, כגון",501,"מיקסר מעל 1600 ואט",0.95,1]
[5125,"(5) מכשירי חשמל קטנים, שאף צלע שלהם לא ארוכה מ-50 ס\"מ ושאינם כלולים בפרטים 1 עד 3","מכשירים קטנים המשמשים לבישול ולעיבוד אחר של מזון, כגון",501,"טוחן אשפה",0.66,0.7]
[5126,"(5) מכשירי חשמל קטנים, שאף צלע שלהם לא ארוכה מ-50 ס\"מ ושאינם כלולים בפרטים 1 עד 3","מכשירים קטנים המשמשים לבישול ולעיבוד אחר של מזון, כגון",501,"סיר בישול",0.44,0.5]
[5127,"(5) מכשירי חשמל קטנים, שאף צלע שלהם לא ארוכה מ-50 ס\"מ ושאינם כלולים בפרטים 1 עד 3","מכשירים קטנים המשמשים לבישול ולעיבוד אחר של מזון, כגון",501,"אופה לחם",0.66,1]
[5128,"(5) מכשירי חשמל קטנים, שאף צלע שלהם לא ארוכה מ-50 ס\"מ ושאינם כלולים בפרטים 1 עד 3","מכשירים קטנים המשמשים לבישול ולעיבוד אחר של מזון, כגון",501,"מסחטות",0.55000000000000004,0.7]
[5129,"(5) מכשירי חשמל קטנים, שאף צלע שלהם לא ארוכה מ-50 ס\"מ ושאינם כלולים בפרטים 1 עד 3","מכשירים קטנים המשמשים לבישול ולעיבוד אחר של מזון, כגון",501,"מכשיר להכנת פופקורן",0.7,0.7]
[5130,"(5) מכשירי חשמל קטנים, שאף צלע שלהם לא ארוכה מ-50 ס\"מ ושאינם כלולים בפרטים 1 עד 3","מכשירים קטנים המשמשים לבישול ולעיבוד אחר של מזון, כגון",501,"מכשיר להכנת וופל בלגי",0.48,0.5]
[5131,"(5) מכשירי חשמל קטנים, שאף צלע שלהם לא ארוכה מ-50 ס\"מ ושאינם כלולים בפרטים 1 עד 3","מכשירים קטנים המשמשים לבישול ולעיבוד אחר של מזון, כגון",501,"מכשיר להכנת פנקייק",0.48,0.5]
[5132,"(5) מכשירי חשמל קטנים, שאף צלע שלהם לא ארוכה מ-50 ס\"מ ושאינם כלולים בפרטים 1 עד 3","מכשירים קטנים המשמשים לבישול ולעיבוד אחר של מזון, כגון",501,"מכשיר להכנת גלידה",0.48,0.5]
[5133,"(5) מכשירי חשמל קטנים, שאף צלע שלהם לא ארוכה מ-50 ס\"מ ושאינם כלולים בפרטים 1 עד 3","מכשירים קטנים המשמשים לבישול ולעיבוד אחר של מזון, כגון",501,"מכונת קפה טוחנת עד 10 ק\"ג",0.72,1.2]
[5134,"(5) מכשירי חשמל קטנים, שאף צלע שלהם לא ארוכה מ-50 ס\"מ ושאינם כלולים בפרטים 1 עד 3","מכשירים קטנים המשמשים לבישול ולעיבוד אחר של מזון, כגון",501,"מכונת קפה טוחנת מעל 10 ק\"ג",2.16,2.2999999999999998]
[5135,"(5) מכשירי חשמל קטנים, שאף צלע שלהם לא ארוכה מ-50 ס\"מ ושאינם כלולים בפרטים 1 עד 3","מכשירים קטנים המשמשים לבישול ולעיבוד אחר של מזון, כגון",501,"מכונת קפה קפסולות",0.43,0.8]
[5136,"(5) מכשירי חשמל קטנים, שאף צלע שלהם לא ארוכה מ-50 ס\"מ ושאינם כלולים בפרטים 1 עד 3","מכשירים קטנים המשמשים לבישול ולעיבוד אחר של מזון, כגון",501,"מקציף",0.08,0.12]
[5137,"(5) מכשירי חשמל קטנים, שאף צלע שלהם לא ארוכה מ-50 ס\"מ ושאינם כלולים בפרטים 1 עד 4","מכשירים קטנים המשמשים לבישול ולעיבוד אחר של מזון, כגון",501,"מכונת קפה קפסולות משולבת מקציף",0.51,0.9]
[5001,"(5) מכשירי חשמל קטנים, שאף צלע שלהם לא ארוכה מ-50 ס\"מ ושאינם כלולים בפרטים 1 עד 4","מכשירים קטנים המשמשים לבישול ולעיבוד אחר של מזון, כגון",515,"אחר לפי טון",200,230]
[5003,"(5) מכשירי חשמל קטנים, שאף צלע שלהם לא ארוכה מ-50 ס\"מ ושאינם כלולים בפרטים 1 עד 3","מכשירים קטנים לייצור או העברה של זרם חשמלי",502,"אחר לפי טון",160,190]
[5138,"(5) מכשירי חשמל קטנים, שאף צלע שלהם לא ארוכה מ-50 ס\"מ ושאינם כלולים בפרטים 1 עד 3","מכשירי ניקוי קטנים",502,"שואב אבק רובוטי",0.49,0.6]
[5139,"(5) מכשירי חשמל קטנים, שאף צלע שלהם לא ארוכה מ-50 ס\"מ ושאינם כלולים בפרטים 1 עד 3","מכשירי ניקוי קטנים",502,"שואב אבק ידני",0.2,0.2]
[5140,"(5) מכשירי חשמל קטנים, שאף צלע שלהם לא ארוכה מ-50 ס\"מ ושאינם כלולים בפרטים 1 עד 3","מכשירי ניקוי קטנים",502,"שואב אבק, מנקי שטיחים אחר",0.97,1]
[5141,"(5) מכשירי חשמל קטנים, שאף צלע שלהם לא ארוכה מ-50 ס\"מ ושאינם כלולים בפרטים 1 עד 3","מכשירי ניקוי קטנים",502,"מגהץ יבש",0.2,0.2]
[5142,"(5) מכשירי חשמל קטנים, שאף צלע שלהם לא ארוכה מ-50 ס\"מ ושאינם כלולים בפרטים 1 עד 3","מכשירי ניקוי קטנים",502,"מגהץ אדים",0.2,0.2]
[5143,"(5) מכשירי חשמל קטנים, שאף צלע שלהם לא ארוכה מ-50 ס\"מ ושאינם כלולים בפרטים 1 עד 3","מכשירי ניקוי קטנים",502,"מגהץ קיטור",0.4,0.4]
[5144,"(5) מכשירי חשמל קטנים, שאף צלע שלהם לא ארוכה מ-50 ס\"מ ושאינם כלולים בפרטים 1 עד 3","מכשירי ניקוי קטנים",502,"מגהץ אחר",0.4,0.4]
[5004,"(5) מכשירי חשמל קטנים, שאף צלע שלהם לא ארוכה מ-50 ס\"מ ושאינם כלולים בפרטים 1 עד 3","מכשירי ניקוי קטנים",503,"אחר לפי טון",0,180]
[5145,"(5) מכשירי חשמל קטנים, שאף צלע שלהם לא ארוכה מ-50 ס\"מ ושאינם כלולים בפרטים 1 עד 3","מאווררים, מטהרי אוויר, וציוד אוורור אחר",503,"מאוורר תקרה",0.68,0.8]
[5146,"(5) מכשירי חשמל קטנים, שאף צלע שלהם לא ארוכה מ-50 ס\"מ ושאינם כלולים בפרטים 1 עד 3","מאווררים, מטהרי אוויר, וציוד אוורור אחר",503,"מאוורר עמוד",0.68,0.8]
[5147,"(5) מכשירי חשמל קטנים, שאף צלע שלהם לא ארוכה מ-50 ס\"מ ושאינם כלולים בפרטים 1 עד 3","מאווררים, מטהרי אוויר, וציוד אוורור אחר",503,"מאוורר שולחן",0.23,0.3]
[5148,"(5) מכשירי חשמל קטנים, שאף צלע שלהם לא ארוכה מ-50 ס\"מ ושאינם כלולים בפרטים 1 עד 3","מאווררים, מטהרי אוויר, וציוד אוורור אחר",503,"מאוור ריצפה",0.23,0.3]
[5149,"(5) מכשירי חשמל קטנים, שאף צלע שלהם לא ארוכה מ-50 ס\"מ ושאינם כלולים בפרטים 1 עד 3","מאווררים, מטהרי אוויר, וציוד אוורור אחר",503,"מאוורר תליה",0.23,0.3]
[5150,"(5) מכשירי חשמל קטנים, שאף צלע שלהם לא ארוכה מ-50 ס\"מ ושאינם כלולים בפרטים 1 עד 3","מאווררים, מטהרי אוויר, וציוד אוורור אחר",503,"מאוורר ונטה עד 8\"",0.23,0.3]
[5151,"(5) מכשירי חשמל קטנים, שאף צלע שלהם לא ארוכה מ-50 ס\"מ ושאינם כלולים בפרטים 1 עד 3","מאווררים, מטהרי אוויר, וציוד אוורור אחר",503,"מאוורר ונטה מ 9\" עד 20\"",0.23,0.4]
[5152,"(5) מכשירי חשמל קטנים, שאף צלע שלהם לא ארוכה מ-50 ס\"מ ושאינם כלולים בפרטים 1 עד 3","מאווררים, מטהרי אוויר, וציוד אוורור אחר",503,"מאוורר ונטה מעל 20\"",0.23,0.8]
[5153,"(5) מכשירי חשמל קטנים, שאף צלע שלהם לא ארוכה מ-50 ס\"מ ושאינם כלולים בפרטים 1 עד 3","מאווררים, מטהרי אוויר, וציוד אוורור אחר",503,"מאוורר אחר",0.23,1.2]
[5154,"(5) מכשירי חשמל קטנים, שאף צלע שלהם לא ארוכה מ-50 ס\"מ ושאינם כלולים בפרטים 1 עד 3","מאווררים, מטהרי אוויר, וציוד אוורור אחר",503,"מטהרי אוויר",0.23,2]
[5155,"(5) מכשירי חשמל קטנים, שאף צלע שלהם לא ארוכה מ-50 ס\"מ ושאינם כלולים בפרטים 1 עד 3","מאווררים, מטהרי אוויר, וציוד אוורור אחר",504,"מאווררים, מטהרי אוויר, וציוד אוורור אחר",0.23,1.35]
[5156,"(5) מכשירי חשמל קטנים, שאף צלע שלהם לא ארוכה מ-50 ס\"מ ושאינם כלולים בפרטים 1 עד 3","שעונים ושעוני יד",505,"שעונים ושעוני יד",0.03,0.06]
[5157,"(5) מכשירי חשמל קטנים, שאף צלע שלהם לא ארוכה מ-50 ס\"מ ושאינם כלולים בפרטים 1 עד 3","מכשירים קטנים לטיפוח הגוף",506,"מכונות גילוח, מחליקי שיער ומייבשי שיער ושונות",0.11,0.13]
[5158,"(5) מכשירי חשמל קטנים, שאף צלע שלהם לא ארוכה מ-50 ס\"מ ושאינם כלולים בפרטים 1 עד 3","מצלמות",506,"מצלמות וידאו",0.14000000000000001,0.25]
[5159,"(5) מכשירי חשמל קטנים, שאף צלע שלהם לא ארוכה מ-50 ס\"מ ושאינם כלולים בפרטים 1 עד 3","מצלמות",507,"מצלמות סטילס (גם אם יש להן אפשרות לוידאו)",0.1,0.1]
[5160,"(5) מכשירי חשמל קטנים, שאף צלע שלהם לא ארוכה מ-50 ס\"מ ושאינם כלולים בפרטים 1 עד 3","מוצרי צריכה חשמליים",507,"נגן DVD",0.34,0.4]
[5161,"(5) מכשירי חשמל קטנים, שאף צלע שלהם לא ארוכה מ-50 ס\"מ ושאינם כלולים בפרטים 1 עד 3","מוצרי צריכה חשמליים",507,"נגן blue ray",0.34,0.4]
[5162,"(5) מכשירי חשמל קטנים, שאף צלע שלהם לא ארוכה מ-50 ס\"מ ושאינם כלולים בפרטים 1 עד 3","מוצרי צריכה חשמליים",507,"DVD נייד עם מסך",0.17,0.25]
[5163,"(5) מכשירי חשמל קטנים, שאף צלע שלהם לא ארוכה מ-50 ס\"מ ושאינם כלולים בפרטים 1 עד 3","מוצרי צריכה חשמליים",507,"מכשירי רדיו לרבות רדיו-דיסק לרכב,",0.17,0.2]
[5164,"(5) מכשירי חשמל קטנים, שאף צלע שלהם לא ארוכה מ-50 ס\"מ ושאינם כלולים בפרטים 1 עד 3","מוצרי צריכה חשמליים",507,"רמקולים",0.68,0.7]
[5002,"(5) מכשירי חשמל קטנים, שאף צלע שלהם לא ארוכה מ-50 ס\"מ ושאינם כלולים בפרטים 1 עד 3","מוצרי צריכה חשמליים",508,"אחר לפי טון",200,230]
[5165,"(5) מכשירי חשמל קטנים, שאף צלע שלהם לא ארוכה מ-50 ס\"מ ושאינם כלולים בפרטים 1 עד 3","כלי נגינה וציוד סאונד",508,"כלי נגינה",0.52,0.7]
[5166,"(5) מכשירי חשמל קטנים, שאף צלע שלהם לא ארוכה מ-50 ס\"מ ושאינם כלולים בפרטים 1 עד 3","כלי נגינה וציוד סאונד",508,"ציוד סאונד ומגברים",0.52,0.6]
[5185,"(5) מכשירי חשמל קטנים, שאף צלע שלהם לא ארוכה מ-50 ס\"מ ושאינם כלולים בפרטים 1 עד 3","כלי נגינה וציוד סאונד",509,"אוזניות לא לשוק המקצועי",0.02,0.02]
[5167,"(5) מכשירי חשמל קטנים, שאף צלע שלהם לא ארוכה מ-50 ס\"מ ושאינם כלולים בפרטים 1 עד 3","מכשירי תאורה קטנים וציוד קטן אחר המשמש להארה או לבקרה על אור;",510,"מכשירי תאורה קטנים וציוד קטן אחר המשמש להארה או לבקרה על אור;",0.03,0.03]
[5168,"(5) מכשירי חשמל קטנים, שאף צלע שלהם לא ארוכה מ-50 ס\"מ ושאינם כלולים בפרטים 1 עד 3","צעצועים חשמליים או אלקטרוניים",510,"קונסולות משחק",0.16,0.2]
[5169,"(5) מכשירי חשמל קטנים, שאף צלע שלהם לא ארוכה מ-50 ס\"מ ושאינם כלולים בפרטים 1 עד 3","צעצועים חשמליים או אלקטרוניים",510,"עד קילו משקל",0.08,0.1]
[5170,"(5) מכשירי חשמל קטנים, שאף צלע שלהם לא ארוכה מ-50 ס\"מ ושאינם כלולים בפרטים 1 עד 3","צעצועים חשמליים או אלקטרוניים",511,"מעל קילו משקל",0.24,0.3]
[5171,"(5) מכשירי חשמל קטנים, שאף צלע שלהם לא ארוכה מ-50 ס\"מ ושאינם כלולים בפרטים 1 עד 3","ציוד ספורט",512,"מחשבים לרכיבת אופניים, צלילה, ריצה, חתירה וכו",0.06,0.1]
[5172,"(5) מכשירי חשמל קטנים, שאף צלע שלהם לא ארוכה מ-50 ס\"מ ושאינם כלולים בפרטים 1 עד 3","כלי עבודה קטנים",512,"כלי עבודה ביתיים",0.3,0.35]
[5173,"(5) מכשירי חשמל קטנים, שאף צלע שלהם לא ארוכה מ-50 ס\"מ ושאינם כלולים בפרטים 1 עד 3","כלי עבודה קטנים",512,"מקדחות עד 2קג",0.2,0.25]
[5174,"(5) מכשירי חשמל קטנים, שאף צלע שלהם לא ארוכה מ-50 ס\"מ ושאינם כלולים בפרטים 1 עד 3","כלי עבודה קטנים",512,"מקדחות מעל 2קג",0.5,0.6]
[5175,"(5) מכשירי חשמל קטנים, שאף צלע שלהם לא ארוכה מ-50 ס\"מ ושאינם כלולים בפרטים 1 עד 3","כלי עבודה קטנים",513,"כלי עבודה לגינה",0.5,0.7]
[5176,"(5) מכשירי חשמל קטנים, שאף צלע שלהם לא ארוכה מ-50 ס\"מ ושאינם כלולים בפרטים 1 עד 3","מכונות תפירה",514,"מכונות תפירה",0.46,0.7]
[5177,"(5) מכשירי חשמל קטנים, שאף צלע שלהם לא ארוכה מ-50 ס\"מ ושאינם כלולים בפרטים 1 עד 3","מכשירים רפואיים קטנים",514,"מכשירים רפואיים קטנים",0.15,0.15]
[5184,"(5) מכשירי חשמל קטנים, שאף צלע שלהם לא ארוכה מ-50 ס\"מ ושאינם כלולים בפרטים 1 עד 3","מכשירים רפואיים קטנים",515,"מכשירים רפואיים קטנים המכילים חומ\"ס כגון רכיב רדיואקטיבי",1,1]
[5178,"(5) מכשירי חשמל קטנים, שאף צלע שלהם לא ארוכה מ-50 ס\"מ ושאינם כלולים בפרטים 1 עד 3","מכשירי בקרה וניטור קטנים, כגון גלאי עשן, בקרי חום, וסתי חום, גלאי תנועה, שלטים;",515,"מכשירי בקרה וניטור קטנים, כגון גלאי עשן, בקרי חום, וסתי חום, גלאי תנועה, שלטים;",0.03,0.03]
[5182,"(5) מכשירי חשמל קטנים, שאף צלע שלהם לא ארוכה מ-50 ס\"מ ושאינם כלולים בפרטים 1 עד 3","מכשירי בקרה וניטור קטנים, כגון גלאי עשן, בקרי חום, וסתי חום, גלאי תנועה, שלטים;",516,"מכשירי בקרה וניטור קטנים, כגון גלאי עשן, בקרי חום, וסתי חום, גלאי תנועה, שלטים המכילים חומ\"ס כגון רכיב רדיואקטיבי",1,1]
[5183,"(5) מכשירי חשמל קטנים, שאף צלע שלהם לא ארוכה מ-50 ס\"מ ושאינם כלולים בפרטים 1 עד 3","מכשירי מדידה קטנים",516,"מכשירי מדידה קטנים מכילים חומ\"ס כגון רכיב רדיואקטיבי",1,1]
[5179,"(5) מכשירי חשמל קטנים, שאף צלע שלהם לא ארוכה מ-50 ס\"מ ושאינם כלולים בפרטים 1 עד 3","מכשירי מדידה קטנים",517,"מכשירי מדידה קטנים",0.1,0.11]
[5180,"(5) מכשירי חשמל קטנים, שאף צלע שלהם לא ארוכה מ-50 ס\"מ ושאינם כלולים בפרטים 1 עד 3","מכשירים אוטומטיים קטנים להגשה או לממכר מוצרים",518,"מכשירים אוטומטיים קטנים להגשה או לממכר מוצרים",0.76,2.4]
[5181,"(5) מכשירי חשמל קטנים, שאף צלע שלהם לא ארוכה מ-50 ס\"מ ושאינם כלולים בפרטים 1 עד 3","מכשירים קטנים עם פאנלים פוטו-וולטאיים אינטגרליים.",601,"מכשירים קטנים עם פאנלים פוטו-וולטאיים אינטגרליים.",7.0000000000000007E-2,0.09]
[6100,"(6) ציוד תקשורת וטכנולוגיית מידע (IT) קטן, שאף צלע שלו לא ארוכה מ-50 ס\"מ","ציוד משרדי",603,"מחשב שולחני",0.6,0.75]
[6101,"(6) ציוד תקשורת וטכנולוגיית מידע (IT) קטן, שאף צלע שלו לא ארוכה מ-50 ס\"מ","ציוד משרדי",603,"שרת",1.08,1.1000000000000001]
[6102,"(6) ציוד תקשורת וטכנולוגיית מידע (IT) קטן, שאף צלע שלו לא ארוכה מ-50 ס\"מ","ציוד משרדי",604,"נתב מסחרי",2,3]
[6103,"(6) ציוד תקשורת וטכנולוגיית מידע (IT) קטן, שאף צלע שלו לא ארוכה מ-50 ס\"מ","ציוד משרדי",604,"מדפסות וסורקים",0.68,0.7]
[6104,"(6) ציוד תקשורת וטכנולוגיית מידע (IT) קטן, שאף צלע שלו לא ארוכה מ-50 ס\"מ","ציוד משרדי",604,"מגרסת נייר",0.45,0.45]
[6105,"(6) ציוד תקשורת וטכנולוגיית מידע (IT) קטן, שאף צלע שלו לא ארוכה מ-50 ס\"מ","ציוד משרדי",604,"מכשירי למינציה",0.45,0.5]
[6106,"(6) ציוד תקשורת וטכנולוגיית מידע (IT) קטן, שאף צלע שלו לא ארוכה מ-50 ס\"מ","ציוד משרדי",601,"מכשירי כריכה בחום",0.23,0.25]
[6107,"(6) ציוד תקשורת וטכנולוגיית מידע (IT) קטן, שאף צלע שלו לא ארוכה מ-50 ס\"מ","ציוד משרדי",601,"מקרנים עוצמת הארה עד 1500",0.23,0.25]
[6108,"(6) ציוד תקשורת וטכנולוגיית מידע (IT) קטן, שאף צלע שלו לא ארוכה מ-50 ס\"מ","ציוד משרדי",604,"מקרנים עוצמת הארה מעל 1500",0.34,0.35]
[6109,"(6) ציוד תקשורת וטכנולוגיית מידע (IT) קטן, שאף צלע שלו לא ארוכה מ-50 ס\"מ","ציוד משרדי",601,"ציוד משרדי אלקטרוני קטן (כגון מחשבונים)",0.02,0.02]
[6110,"(6) ציוד תקשורת וטכנולוגיית מידע (IT) קטן, שאף צלע שלו לא ארוכה מ-50 ס\"מ","ציוד משרדי",602,"תחנת עגינה למחשב נייד",0.08,0.08]
[6111,"(6) ציוד תקשורת וטכנולוגיית מידע (IT) קטן, שאף צלע שלו לא ארוכה מ-50 ס\"מ","ציוד משרדי",602,"מחשב נייד  עד 12.5\"",0.27,0.3]
[6112,"(6) ציוד תקשורת וטכנולוגיית מידע (IT) קטן, שאף צלע שלו לא ארוכה מ-50 ס\"מ","ציוד משרדי",602,"מחשב נייד  מ 12.5\" עד 14\"",0.46,0.5]
[6113,"(6) ציוד תקשורת וטכנולוגיית מידע (IT) קטן, שאף צלע שלו לא ארוכה מ-50 ס\"מ","ציוד משרדי",602,"טאבלטים",0.09,0.1]
[6114,"(6) ציוד תקשורת וטכנולוגיית מידע (IT) קטן, שאף צלע שלו לא ארוכה מ-50 ס\"מ","ציוד משרדי",604,"מסכים/טלוויזיות עד 15\"",0.61,0.53]
[6115,"(6) ציוד תקשורת וטכנולוגיית מידע (IT) קטן, שאף צלע שלו לא ארוכה מ-50 ס\"מ","ציוד משרדי",603,"ציוד נלווה למחשב ( מקלדת, עכבר וכו)",7.0000000000000007E-2,7.0000000000000007E-2]
[6116,"(6) ציוד תקשורת וטכנולוגיית מידע (IT) קטן, שאף צלע שלו לא ארוכה מ-50 ס\"מ","ציוד משרדי",601,"מערכת אלפסק למחשב בייתי",0.6,0.6]
[6001,"(6) ציוד תקשורת וטכנולוגיית מידע (IT) קטן, שאף צלע שלו לא ארוכה מ-50 ס\"מ","ציוד משרדי",604,"מחשוב- כגון:  נגנים, דיסק און קי, גאדג'טים אחר לפי טון",150,150]
[6002,"(6) ציוד תקשורת וטכנולוגיית מידע (IT) קטן, שאף צלע שלו לא ארוכה מ-50 ס\"מ","ציוד משרדי",601,"ציוד משרדי – כגון: מדפסות ,סורקים , מכשירי כריכה ולמינציה,אחר",230,230]
[6117,"(6) ציוד תקשורת וטכנולוגיית מידע (IT) קטן, שאף צלע שלו לא ארוכה מ-50 ס\"מ","תקשורת",603,"מערכות ניווט",0.12,0.2]
[6118,"(6) ציוד תקשורת וטכנולוגיית מידע (IT) קטן, שאף צלע שלו לא ארוכה מ-50 ס\"מ","תקשורת",603,"טלפונים",0.1,0.11]
[6119,"(6) ציוד תקשורת וטכנולוגיית מידע (IT) קטן, שאף צלע שלו לא ארוכה מ-50 ס\"מ","תקשורת",603,"טלפונים ניידים",0.02,7.0000000000000007E-2]
[6120,"(6) ציוד תקשורת וטכנולוגיית מידע (IT) קטן, שאף צלע שלו לא ארוכה מ-50 ס\"מ","תקשורת",603,"מכשירי קשר",0.09,0.11]
[6121,"(6) ציוד תקשורת וטכנולוגיית מידע (IT) קטן, שאף צלע שלו לא ארוכה מ-50 ס\"מ","תקשורת",603,"מוצרי bluetooth",0.02,0.02]
[6122,"(6) ציוד תקשורת וטכנולוגיית מידע (IT) קטן, שאף צלע שלו לא ארוכה מ-50 ס\"מ","תקשורת",603,"ממיר דיגיטלי",0.15,0.15]
[6123,"(6) ציוד תקשורת וטכנולוגיית מידע (IT) קטן, שאף צלע שלו לא ארוכה מ-50 ס\"מ","תקשורת",603,"סטרימר",0.2,0.23]
[6124,"(6) ציוד תקשורת וטכנולוגיית מידע (IT) קטן, שאף צלע שלו לא ארוכה מ-50 ס\"מ","תקשורת",601,"נתב ביתי, מודם ביתי",0.04,0.05]
[6125,"(6) ציוד תקשורת וטכנולוגיית מידע (IT) קטן, שאף צלע שלו לא ארוכה מ-50 ס\"מ","תקשורת",601,"נגני mp3/mp4 עד16 GB",0.02,0.02]
[6126,"(6) ציוד תקשורת וטכנולוגיית מידע (IT) קטן, שאף צלע שלו לא ארוכה מ-50 ס\"מ","תקשורת",604,"נגני mp3/mp4 מעל 16GB",0.02,0.02]
[6003,"(6) ציוד תקשורת וטכנולוגיית מידע (IT) קטן, שאף צלע שלו לא ארוכה מ-50 ס\"מ","ציוד משרדי ותקשורת אחר (כולל רכיבים)",null,null,200,230]
[]
[]
[null,"סוללות"]
[7001,"סוללות המכילות עופרת",null,701,null,100,100]
[7002,"סוללות המכילות ניקל קדיום",null,702,null,1743,1400]
[7003,"סוללות ליתיום ראשוני 4SO, סוללות מימן (Litium Priamery)",null,703,null,1743,1400]
[7004,"סוללות אחר",null,703,null,612,660]